BODY,BODY NAME,DATE,TRANSACTION NUMBER,THEIR REF,CATEGORY,AMOUNT,SUPPLIER NAME,SUPPLIER CODE,EXPENSE AREA,EXPENSE TYPE,EXPENSE CODE
http://statistics.data.gov.uk/id/local-authority/12UE,Huntingdonshire District Council,25/09/2014,156101,563,5,"1,944.00",Elephant & Castle Freehouse & Motel,CR401969,Accommodation For Homeless,Bed & Breakfast Payment,818
http://statistics.data.gov.uk/id/local-authority/12UE,Huntingdonshire District Council,18/09/2014,155740,562,5,"2,970.00",Elephant & Castle Freehouse & Motel,CR401969,Accommodation For Homeless,Bed & Breakfast Payment,818
http://statistics.data.gov.uk/id/local-authority/12UE,Huntingdonshire District Council,18/09/2014,155368,4,5,"1,050.00",The Station Hotel,CR453752,Accommodation For Homeless,Bed & Breakfast Payment,818
http://statistics.data.gov.uk/id/local-authority/12UE,Huntingdonshire District Council,11/09/2014,155346,561,5,"2,700.00",Elephant & Castle Freehouse & Motel,CR401969,Accommodation For Homeless,Bed & Breakfast Payment,818
http://statistics.data.gov.uk/id/local-authority/12UE,Huntingdonshire District Council,04/09/2014,154949,D1IN/00015837,5,"35,000.00",Stonham Home Group,CR455893,Accommodation For Homeless,Management Charge,733
http://statistics.data.gov.uk/id/local-authority/12UE,Huntingdonshire District Council,04/09/2014,154917,560,5,"3,078.00",Elephant & Castle Freehouse & Motel,CR401969,Accommodation For Homeless,Bed & Breakfast Payment,818
http://statistics.data.gov.uk/id/local-authority/12UE,Huntingdonshire District Council,28/08/2014,154384,559,5,"3,024.00",Elephant & Castle Freehouse & Motel,CR401969,Accommodation For Homeless,Bed & Breakfast Payment,818
http://statistics.data.gov.uk/id/local-authority/12UE,Huntingdonshire District Council,25/09/2014,154186,17994,5,"2,263.33",King Street Housing Society,CR409301,Accommodation For Homeless,Management Charge,733
http://statistics.data.gov.uk/id/local-authority/12UE,Huntingdonshire District Council,21/08/2014,154081,558,5,"2,916.00",Elephant & Castle Freehouse & Motel,CR401969,Accommodation For Homeless,Bed & Breakfast Payment,818
http://statistics.data.gov.uk/id/local-authority/12UE,Huntingdonshire District Council,14/08/2014,153715,557,5,"2,916.00",Elephant & Castle Freehouse & Motel,CR401969,Accommodation For Homeless,Bed & Breakfast Payment,818
http://statistics.data.gov.uk/id/local-authority/12UE,Huntingdonshire District Council,07/08/2014,153215,556,5,"2,970.00",Elephant & Castle Freehouse & Motel,CR401969,Accommodation For Homeless,Bed & Breakfast Payment,818
http://statistics.data.gov.uk/id/local-authority/12UE,Huntingdonshire District Council,31/07/2014,152958,555,5,"2,592.00",Elephant & Castle Freehouse & Motel,CR401969,Accommodation For Homeless,Bed & Breakfast Payment,818
http://statistics.data.gov.uk/id/local-authority/12UE,Huntingdonshire District Council,31/07/2014,152955,17868,5,"1,671.03",King Street Housing Society,CR409301,Accommodation For Homeless,Management Charge,733
http://statistics.data.gov.uk/id/local-authority/12UE,Huntingdonshire District Council,31/07/2014,152954,17927,5,"2,299.97",King Street Housing Society,CR409301,Accommodation For Homeless,Management Charge,733
http://statistics.data.gov.uk/id/local-authority/12UE,Huntingdonshire District Council,24/07/2014,152522,554,5,"2,430.00",Elephant & Castle Freehouse & Motel,CR401969,Accommodation For Homeless,Bed & Breakfast Payment,818
http://statistics.data.gov.uk/id/local-authority/12UE,Huntingdonshire District Council,17/07/2014,152071,553,5,"2,646.00",Elephant & Castle Freehouse & Motel,CR401969,Accommodation For Homeless,Bed & Breakfast Payment,818
http://statistics.data.gov.uk/id/local-authority/12UE,Huntingdonshire District Council,10/07/2014,151677,552,5,"2,916.00",Elephant & Castle Freehouse & Motel,CR401969,Accommodation For Homeless,Bed & Breakfast Payment,818
http://statistics.data.gov.uk/id/local-authority/12UE,Huntingdonshire District Council,03/07/2014,151230,551,5,"2,700.00",Elephant & Castle Freehouse & Motel,CR401969,Accommodation For Homeless,Bed & Breakfast Payment,818
http://statistics.data.gov.uk/id/local-authority/12UE,Huntingdonshire District Council,11/09/2014,155193,1121278068,5,-71.62,Orange Airtime,CR455799,Animal Welfare,Mobile Telephones & Radios,241
http://statistics.data.gov.uk/id/local-authority/12UE,Huntingdonshire District Council,21/08/2014,152834,1043,5,"1,500.00",Wood Green Animal Shelters,CR019139,Animal Welfare,Contribution (Paid Out),810
http://statistics.data.gov.uk/id/local-authority/12UE,Huntingdonshire District Council,21/08/2014,152833,1042,5,"1,700.00",Wood Green Animal Shelters,CR019139,Animal Welfare,Contribution (Paid Out),810
http://statistics.data.gov.uk/id/local-authority/12UE,Huntingdonshire District Council,14/08/2014,152751,1111911030,5,4.8,Orange Airtime,CR455799,Animal Welfare,Mobile Telephones & Radios,241
http://statistics.data.gov.uk/id/local-authority/12UE,Huntingdonshire District Council,24/07/2014,151446,1026,5,"1,500.00",Wood Green Animal Shelters,CR019139,Animal Welfare,Contribution (Paid Out),810
http://statistics.data.gov.uk/id/local-authority/12UE,Huntingdonshire District Council,17/07/2014,151145,1027,5,"1,700.00",Wood Green Animal Shelters,CR019139,Animal Welfare,Contribution (Paid Out),810
http://statistics.data.gov.uk/id/local-authority/12UE,Huntingdonshire District Council,17/07/2014,150794,1102105950,5,5.26,Orange Airtime,CR455799,Animal Welfare,Mobile Telephones & Radios,241
http://statistics.data.gov.uk/id/local-authority/12UE,Huntingdonshire District Council,11/09/2014,569708,1-12394,5,"2,088.00",Pengelly And Mizen,CR411042,Animal Welfare,Vets,760
http://statistics.data.gov.uk/id/local-authority/12UE,Huntingdonshire District Council,11/09/2014,569828,1-12441,5,828,Pengelly And Mizen,CR411042,Animal Welfare,Vets,760
http://statistics.data.gov.uk/id/local-authority/12UE,Huntingdonshire District Council,25/09/2014,155983,14475702,5,760.2,Bedford Borough Council,CR401424,Building Control Other,Subcontractors,777
http://statistics.data.gov.uk/id/local-authority/12UE,Huntingdonshire District Council,10/07/2014,566784,1456104667,6,449.4,West Lindsey District Council,CR404636,Building Control Other,Subcontractors,777
http://statistics.data.gov.uk/id/local-authority/12UE,Huntingdonshire District Council,03/07/2014,567223,2000001781,6,960,Mid Suffolk District Council,CR478093,Building Control Other,Subcontractors,777
http://statistics.data.gov.uk/id/local-authority/12UE,Huntingdonshire District Council,31/07/2014,568200,BC340458,5,"1,200.00",North Kesteven District Council,CR477399,Building Control Other,Subcontractors,777
http://statistics.data.gov.uk/id/local-authority/12UE,Huntingdonshire District Council,14/08/2014,568733,14407171,5,"2,688.00",Bedford Borough Council,CR401424,Building Control Other,Subcontractors,777
http://statistics.data.gov.uk/id/local-authority/12UE,Huntingdonshire District Council,11/09/2014,569839,BC340614,6,"1,200.00",North Kesteven District Council,CR480804,Building Control Other,Subcontractors,777
http://statistics.data.gov.uk/id/local-authority/12UE,Huntingdonshire District Council,04/09/2014,153309,52705,5,"1,090.38",Beebys Limited,CR415822,Bus Shelters,Building Cleaning Internal,440
http://statistics.data.gov.uk/id/local-authority/12UE,Huntingdonshire District Council,28/08/2014,153273,GFL1674HDC,5,"1,212.00",G Ferrara Ltd,CR478949,Bus Shelters,Sitework,359
http://statistics.data.gov.uk/id/local-authority/12UE,Huntingdonshire District Council,07/08/2014,151786,2014/056,5,695.04,Primesight  Ltd,CR132710,Bus Shelters,Sitework,359
http://statistics.data.gov.uk/id/local-authority/12UE,Huntingdonshire District Council,10/07/2014,150294,1668,5,726,G Ferrara Ltd,CR478949,Bus Shelters,Sitework,359
http://statistics.data.gov.uk/id/local-authority/12UE,Huntingdonshire District Council,03/07/2014,148482,GFL1662HDC,5,606,G Ferrara Ltd,CR478949,Bus Shelters,Sitework,359
http://statistics.data.gov.uk/id/local-authority/12UE,Huntingdonshire District Council,17/07/2014,148440,2014/041,5,695.04,Primesight  Ltd,CR132710,Bus Shelters,Sitework,359
http://statistics.data.gov.uk/id/local-authority/12UE,Huntingdonshire District Council,17/07/2014,150668,JBC/25865/4663/,5,"7,201.92",J Breheny Contractors Ltd,CR000314,Bus Station & Shelters General,Sitework,359
http://statistics.data.gov.uk/id/local-authority/12UE,Huntingdonshire District Council,14/08/2014,153669,661225560,5,"1,445.05",Swalec,CR407130,Bus Stations,Electricity,420
http://statistics.data.gov.uk/id/local-authority/12UE,Huntingdonshire District Council,24/07/2014,151956,18486,5,360.73,B. S. Graves Electrical Ltd,CR000363,Bus Stations,Gen Building Mtce - Responsive,303
http://statistics.data.gov.uk/id/local-authority/12UE,Huntingdonshire District Council,31/07/2014,151555,52533,5,"1,090.38",Beebys Limited,CR415822,Bus Stations,Building Cleaning Internal,440
http://statistics.data.gov.uk/id/local-authority/12UE,Huntingdonshire District Council,03/07/2014,149927,52357,5,"1,090.38",Beebys Limited,CR415822,Bus Stations,Building Cleaning Internal,440
http://statistics.data.gov.uk/id/local-authority/12UE,Huntingdonshire District Council,31/07/2014,567866,145,1,255.18,St Ives Town Council,CR000701,Bus Stations,Building Cleaning Internal,440
http://statistics.data.gov.uk/id/local-authority/12UE,Huntingdonshire District Council,18/09/2014,570070,09-Jul-00,1,253.35,St Ives Town Council,CR000701,Bus Stations,Electricity,420
http://statistics.data.gov.uk/id/local-authority/12UE,Huntingdonshire District Council,18/09/2014,570071,195,1,271.38,St Ives Town Council,CR000701,Bus Stations,Building Cleaning Internal,440
http://statistics.data.gov.uk/id/local-authority/12UE,Huntingdonshire District Council,04/09/2014,154974,2176676,5,693.6,Haymarket Media Group,CR479500,Business & Enterprise Support,Conferences,137
http://statistics.data.gov.uk/id/local-authority/12UE,Huntingdonshire District Council,25/09/2014,156097,INV-0025,5,30,Worksmart Leisure Ltd,CR422551,Business Analysis,Training - Other,136
http://statistics.data.gov.uk/id/local-authority/12UE,Huntingdonshire District Council,11/09/2014,155193,1121278068,5,14.4,Orange Airtime,CR455799,Business Analysis,Mobile Telephones & Radios,241
http://statistics.data.gov.uk/id/local-authority/12UE,Huntingdonshire District Council,14/08/2014,152751,1111911030,5,14.4,Orange Airtime,CR455799,Business Analysis,Mobile Telephones & Radios,241
http://statistics.data.gov.uk/id/local-authority/12UE,Huntingdonshire District Council,17/07/2014,150794,1102105950,5,14.4,Orange Airtime,CR455799,Business Analysis,Mobile Telephones & Radios,241
http://statistics.data.gov.uk/id/local-authority/12UE,Huntingdonshire District Council,25/09/2014,156214,213880,5,"50,068.32",Bt Redcare,CR410623,C C T V,Transmission Lines Rental,767
http://statistics.data.gov.uk/id/local-authority/12UE,Huntingdonshire District Council,25/09/2014,155732,INV1496126,5,426.36,Interaction Recruitment Plc,CR007892,C C T V,Hired Staff,100
http://statistics.data.gov.uk/id/local-authority/12UE,Huntingdonshire District Council,18/09/2014,155731,INV1488812,5,434.11,Interaction Recruitment Plc,CR007892,C C T V,Hired Staff,100
http://statistics.data.gov.uk/id/local-authority/12UE,Huntingdonshire District Council,11/09/2014,155379,7814,5,253.82,Lightning Recruitment,CR028184,C C T V,Hired Staff,100
http://statistics.data.gov.uk/id/local-authority/12UE,Huntingdonshire District Council,11/09/2014,155193,1121278068,5,43.3,Orange Airtime,CR455799,C C T V,Mobile Telephones & Radios,241
http://statistics.data.gov.uk/id/local-authority/12UE,Huntingdonshire District Council,25/09/2014,154953,SIN074311,5,"2,840.83",Quadrant Security Group,CR027775,C C T V,Equipment Maintenance,511
http://statistics.data.gov.uk/id/local-authority/12UE,Huntingdonshire District Council,04/09/2014,154950,3957,5,"1,432.80",Access Hire And Hydraulics,CR422526,C C T V,Equipment Maintenance,511
http://statistics.data.gov.uk/id/local-authority/12UE,Huntingdonshire District Council,04/09/2014,154925,7635,5,"1,278.00",Richard Jasny,CR422524,C C T V,Cctv Equipment,526
http://statistics.data.gov.uk/id/local-authority/12UE,Huntingdonshire District Council,28/08/2014,154617,213868,5,300,British Telecommunications Plc,CR027071,C C T V,Transmission Lines Rental,767
http://statistics.data.gov.uk/id/local-authority/12UE,Huntingdonshire District Council,28/08/2014,153754,OP/L880235,5,770.7,Scc,CR409247,C C T V,Other I T Hardware,203
http://statistics.data.gov.uk/id/local-authority/12UE,Huntingdonshire District Council,14/08/2014,153675,34993,5,874.8,Cambs Lock & Safe,CR422491,C C T V,Equipment Purchases,500
http://statistics.data.gov.uk/id/local-authority/12UE,Huntingdonshire District Council,28/08/2014,153378,SIN074078,5,"2,840.83",Quadrant Security Group,CR027775,C C T V,Equipment Maintenance,511
http://statistics.data.gov.uk/id/local-authority/12UE,Huntingdonshire District Council,14/08/2014,152751,1111911030,5,71.66,Orange Airtime,CR455799,C C T V,Mobile Telephones & Radios,241
http://statistics.data.gov.uk/id/local-authority/12UE,Huntingdonshire District Council,14/08/2014,152543,SIN073916,5,"62,984.40",Quadrant Security Group,CR027775,C C T V,Equipment Maintenance,511
http://statistics.data.gov.uk/id/local-authority/12UE,Huntingdonshire District Council,31/07/2014,152538,242160-090,5,"2,414.16",Virgin Media Business/Cpsn,CR455148,C C T V,Transmission Lines Rental,767
http://statistics.data.gov.uk/id/local-authority/12UE,Huntingdonshire District Council,07/08/2014,152463,INV33665,5,"15,030.00",Shopsafe Ltd,CR411150,C C T V,Mobile Telephones & Radios,241
http://statistics.data.gov.uk/id/local-authority/12UE,Huntingdonshire District Council,17/07/2014,152135,11398240710,5,791.4,E-On Energy,CR416430,C C T V,Electricity,420
http://statistics.data.gov.uk/id/local-authority/12UE,Huntingdonshire District Council,24/07/2014,151515,IN073666,5,"2,840.83",Quadrant Security Group,CR027775,C C T V,Equipment Maintenance,511
http://statistics.data.gov.uk/id/local-authority/12UE,Huntingdonshire District Council,17/07/2014,150794,1102105950,5,9.6,Orange Airtime,CR455799,C C T V,Mobile Telephones & Radios,241
http://statistics.data.gov.uk/id/local-authority/12UE,Huntingdonshire District Council,23/09/2014,146864,213639,5,300,Bt Redcare,CR410623,C C T V,Equipment Maintenance,511
http://statistics.data.gov.uk/id/local-authority/12UE,Huntingdonshire District Council,25/09/2014,156097,INV-0025,5,330,Worksmart Leisure Ltd,CR422551,Call Centre,Training - Other,131
http://statistics.data.gov.uk/id/local-authority/12UE,Huntingdonshire District Council,25/09/2014,155991,37037,5,279.07,Communications Solutions Uk Ltd,COMMUNIC,Call Centre,Other I T Hardware,203
http://statistics.data.gov.uk/id/local-authority/12UE,Huntingdonshire District Council,25/09/2014,155991,37037,5,9.54,Communications Solutions Uk Ltd,COMMUNIC,Call Centre,Postage,231
http://statistics.data.gov.uk/id/local-authority/12UE,Huntingdonshire District Council,11/09/2014,155193,1121278068,5,12,Orange Airtime,CR455799,Call Centre,Mobile Telephones & Radios,241
http://statistics.data.gov.uk/id/local-authority/12UE,Huntingdonshire District Council,21/08/2014,152873,IN00534285,5,900,Happy Serious Learning,CR455473,Call Centre,Training - Other,136
http://statistics.data.gov.uk/id/local-authority/12UE,Huntingdonshire District Council,14/08/2014,152751,1111911030,5,12,Orange Airtime,CR455799,Call Centre,Mobile Telephones & Radios,241
http://statistics.data.gov.uk/id/local-authority/12UE,Huntingdonshire District Council,31/07/2014,152068,242095-090,5,"10,710.00",Virgin Media Business/Cpsn,CR455148,Call Centre,I T Line Rental,248
http://statistics.data.gov.uk/id/local-authority/12UE,Huntingdonshire District Council,17/07/2014,151167,310046301,5,450,Happy Serious Learning,CR455473,Call Centre,Conferences,137
http://statistics.data.gov.uk/id/local-authority/12UE,Huntingdonshire District Council,17/07/2014,150794,1102105950,5,12,Orange Airtime,CR455799,Call Centre,Mobile Telephones & Radios,241
http://statistics.data.gov.uk/id/local-authority/12UE,Huntingdonshire District Council,25/09/2014,154859,1566,5,300,K & M Lighting Services Ltd,CR455166,Car Park Assets,Sitework,359
http://statistics.data.gov.uk/id/local-authority/12UE,Huntingdonshire District Council,28/08/2014,152835,1481,5,300,K & M Lighting Services Ltd,CR455166,Car Park Assets,Sitework,359
http://statistics.data.gov.uk/id/local-authority/12UE,Huntingdonshire District Council,21/08/2014,152407,1473,5,553.79,K & M Lighting Services Ltd,CR455166,Car Park Assets,Sitework,359
http://statistics.data.gov.uk/id/local-authority/12UE,Huntingdonshire District Council,24/07/2014,151438,1453,5,546,K & M Lighting Services Ltd,CR455166,Car Park Assets,Sitework,359
http://statistics.data.gov.uk/id/local-authority/12UE,Huntingdonshire District Council,24/07/2014,151259,1450,5,300,K & M Lighting Services Ltd,CR455166,Car Park Assets,Sitework,359
http://statistics.data.gov.uk/id/local-authority/12UE,Huntingdonshire District Council,17/07/2014,150697,JBC/25866/4663,5,926.1,J Breheny Contractors Ltd,CR000314,Car Park Assets,Sitework,359
http://statistics.data.gov.uk/id/local-authority/12UE,Huntingdonshire District Council,17/07/2014,150670,JBC/25864/4663/,5,"2,130.00",J Breheny Contractors Ltd,CR000314,Car Park Assets,Sitework,359
http://statistics.data.gov.uk/id/local-authority/12UE,Huntingdonshire District Council,28/08/2014,153938,6527,5,"10,090.90",Durman Stearn (Civil Engineering) Ltd,CR455055,Car Parks Capital,Building Construction,300
http://statistics.data.gov.uk/id/local-authority/12UE,Huntingdonshire District Council,25/09/2014,156089,90139536,5,456.04,Freeth Cartwright Llp,CR480787,Central Services M Us,Legal Fees,729
http://statistics.data.gov.uk/id/local-authority/12UE,Huntingdonshire District Council,25/09/2014,156087,1573,5,258,Lgg,CR402064,Central Services M Us,Legal Fees,729
http://statistics.data.gov.uk/id/local-authority/12UE,Huntingdonshire District Council,25/09/2014,156085,9514.001,5,519.25,Sarfo Solicitors,CR415973,Central Services M Us,Legal Fees,729
http://statistics.data.gov.uk/id/local-authority/12UE,Huntingdonshire District Council,18/09/2014,155781,D14N29904,5,949,Lexisnexis,CR000801,Central Services M Us,Books & Publications,250
http://statistics.data.gov.uk/id/local-authority/12UE,Huntingdonshire District Council,11/09/2014,155193,1121278068,5,29.18,Orange Airtime,CR455799,Central Services M Us,Mobile Telephones & Radios,241
http://statistics.data.gov.uk/id/local-authority/12UE,Huntingdonshire District Council,25/09/2014,154807,801818609,5,522,Thomson Reuters,CR412314,Central Services M Us,Books & Publications,250
http://statistics.data.gov.uk/id/local-authority/12UE,Huntingdonshire District Council,04/09/2014,154805,9440.001/1897,5,635.08,Sarfo Solicitors,CR415973,Central Services M Us,Legal Fees,729
http://statistics.data.gov.uk/id/local-authority/12UE,Huntingdonshire District Council,11/09/2014,154167,1472,5,258,Lgg Ltd,CR401720,Central Services M Us,Conferences,137
http://statistics.data.gov.uk/id/local-authority/12UE,Huntingdonshire District Council,21/08/2014,154135,801813636,5,560,Thomson Reuters,CR412314,Central Services M Us,Books & Publications,250
http://statistics.data.gov.uk/id/local-authority/12UE,Huntingdonshire District Council,14/08/2014,153613,,5,"28,844.02",Tinkler Solicitors Client Account,CR422486,Central Services M Us,Legal Fees,729
http://statistics.data.gov.uk/id/local-authority/12UE,Huntingdonshire District Council,31/07/2014,152825,PK078992,5,270,Dods Parliamentary Communications Ltd,CR477923,Central Services M Us,Training - Professional,130
http://statistics.data.gov.uk/id/local-authority/12UE,Huntingdonshire District Council,14/08/2014,152751,1111911030,5,28.8,Orange Airtime,CR455799,Central Services M Us,Mobile Telephones & Radios,241
http://statistics.data.gov.uk/id/local-authority/12UE,Huntingdonshire District Council,24/07/2014,152061,801805427,5,261,Thomson Reuters,CR412314,Central Services M Us,Books & Publications,250
http://statistics.data.gov.uk/id/local-authority/12UE,Huntingdonshire District Council,31/07/2014,152060,104M24680,5,648.56,Lexisnexis,CR401981,Central Services M Us,Books & Publications,250
http://statistics.data.gov.uk/id/local-authority/12UE,Huntingdonshire District Council,17/07/2014,151958,60127058,5,805,Anglia Co-Operative Funerals,CR401059,Central Services M Us,Burials Under Health Act,DY01
http://statistics.data.gov.uk/id/local-authority/12UE,Huntingdonshire District Council,24/07/2014,150865,40137428,5,"3,386.42",Local Government Association,CR400598,Central Services M Us,Legal Fees,729
http://statistics.data.gov.uk/id/local-authority/12UE,Huntingdonshire District Council,17/07/2014,150794,1102105950,5,28.9,Orange Airtime,CR455799,Central Services M Us,Mobile Telephones & Radios,241
http://statistics.data.gov.uk/id/local-authority/12UE,Huntingdonshire District Council,14/08/2014,568723,10544437,5,"12,000.00",Cambridgeshire County Council,CR006678,Central Services M Us,Legal Fees,729
http://statistics.data.gov.uk/id/local-authority/12UE,Huntingdonshire District Council,13/08/2014,568737,69139 FYFEVHDC,5,300,Miss Saira Kabir Sheikh,CR409440,Central Services M Us,Laboratory Services,725
http://statistics.data.gov.uk/id/local-authority/12UE,Huntingdonshire District Council,25/09/2014,570255,10549199,5,"6,000.00",Cambridgeshire County Council,CR006678,Central Services M Us,Legal Fees,729
http://statistics.data.gov.uk/id/local-authority/12UE,Huntingdonshire District Council,11/09/2014,155492,IN16PS14005573,5,397.14,Whistl,CR479965,Chief Executive & Comt,Postage,231
http://statistics.data.gov.uk/id/local-authority/12UE,Huntingdonshire District Council,18/09/2014,155000,4529,5,672,Cambridgeshire Acre,CR025674,Chief Executive & Comt,Training - Professional,130
http://statistics.data.gov.uk/id/local-authority/12UE,Huntingdonshire District Council,11/09/2014,154072,9139017,6,"8,280.00",East Of England Governemnt Association,CR455720,Chief Executive & Comt,Hired Staff,100
http://statistics.data.gov.uk/id/local-authority/12UE,Huntingdonshire District Council,31/07/2014,152909,9133303,6,"6,480.00",East Of England Governemnt Association,CR455720,Chief Executive & Comt,Hired Staff,100
http://statistics.data.gov.uk/id/local-authority/12UE,Huntingdonshire District Council,21/08/2014,152908,9136854,6,"5,760.00",East Of England Governemnt Association,CR455720,Chief Executive & Comt,Hired Staff,100
http://statistics.data.gov.uk/id/local-authority/12UE,Huntingdonshire District Council,21/07/2014,152363,40136255/56/85,5,-594,Lga Conference Account,CR409238,Chief Executive & Comt,Conferences,137
http://statistics.data.gov.uk/id/local-authority/12UE,Huntingdonshire District Council,31/07/2014,151511,25933/4663,5,"5,960.28",J Breheny Contractors Ltd,CR000314,Chief Executive & Comt,Sitework,359
http://statistics.data.gov.uk/id/local-authority/12UE,Huntingdonshire District Council,03/07/2014,149828,60514340,7,"1,051.00",Asha Pawar,CR477415,Chief Executive & Comt,Training - Professional,130
http://statistics.data.gov.uk/id/local-authority/12UE,Huntingdonshire District Council,21/07/2014,146927,40136255/56/85,5,594,Lga Conference Account,CR409238,Chief Executive & Comt,Conferences,137
http://statistics.data.gov.uk/id/local-authority/12UE,Huntingdonshire District Council,28/08/2014,154414,C-0001925439,5,"5,910.72",Computershare Vouchers Ltd,CR412205,Child Care Vouchers - Payroll,Deductions Paid To Third Party,144
http://statistics.data.gov.uk/id/local-authority/12UE,Huntingdonshire District Council,31/07/2014,152953,6261,5,250.52,Locata Housing Services Ltd,CR478274,Choice Based Lettings (Ex Chr),Postage,231
http://statistics.data.gov.uk/id/local-authority/12UE,Huntingdonshire District Council,31/07/2014,152952,6209,5,594.48,Locata Housing Services Ltd,CR478274,Choice Based Lettings (Ex Chr),Advertising/Promoting Services,255
http://statistics.data.gov.uk/id/local-authority/12UE,Huntingdonshire District Council,03/07/2014,151232,6130,5,"5,400.00",Locata Housing Services Ltd,CR478274,Choice Based Lettings (Ex Chr),Software,206
http://statistics.data.gov.uk/id/local-authority/12UE,Huntingdonshire District Council,17/07/2014,151231,DINV/202687,5,"1,065.60",South Cambridgeshire District Council,CR405127,Choice Based Lettings (Ex Chr),Management Charge,733
http://statistics.data.gov.uk/id/local-authority/12UE,Huntingdonshire District Council,11/09/2014,154999,4843,5,389.62,Hunts Forum Of Voluntary Organisations,CR030582,Commercial Properties,Gen Building Mtce - Responsive,303
http://statistics.data.gov.uk/id/local-authority/12UE,Huntingdonshire District Council,31/07/2014,568152,,4,750,Huntingdon Community Group,CR422464,Community Safety,Grants (Paid Out),800
http://statistics.data.gov.uk/id/local-authority/12UE,Huntingdonshire District Council,14/08/2014,568192,,6,"3,000.00",Cambridgeshire Police Shrievality Trust,CR422470,Community Safety,Grants (Paid Out),800
http://statistics.data.gov.uk/id/local-authority/12UE,Huntingdonshire District Council,14/08/2014,568735,,6,"1,000.00",Upwood & Raveley Community Allotments Assoc,CR422487,Community Safety,Grants (Paid Out),800
http://statistics.data.gov.uk/id/local-authority/12UE,Huntingdonshire District Council,21/08/2014,569073,,4,500,Riverside Theatre Company,CR422493,Community Safety,Grants (Paid Out),800
http://statistics.data.gov.uk/id/local-authority/12UE,Huntingdonshire District Council,21/08/2014,569074,,4,"1,200.00",REDACTED PERSONAL DATA,CR082972,Community Safety,Grants (Paid Out),800
http://statistics.data.gov.uk/id/local-authority/12UE,Huntingdonshire District Council,25/09/2014,156097,INV-0025,5,30,Worksmart Leisure Ltd,CR422551,Community Services M Us,Training - Operational,136
http://statistics.data.gov.uk/id/local-authority/12UE,Huntingdonshire District Council,11/09/2014,155193,1121278068,5,31.2,Orange Airtime,CR455799,Community Services M Us,Mobile Telephones & Radios,241
http://statistics.data.gov.uk/id/local-authority/12UE,Huntingdonshire District Council,11/09/2014,153998,5158,5,576,Point Professional Recruitment Ltd,CR422374,Community Services M Us,Hired Staff,100
http://statistics.data.gov.uk/id/local-authority/12UE,Huntingdonshire District Council,28/08/2014,153321,5087,5,667.2,Point Professional Recruitment Ltd,CR422374,Community Services M Us,Hired Staff,100
http://statistics.data.gov.uk/id/local-authority/12UE,Huntingdonshire District Council,21/08/2014,153318,5049,5,729.6,Point Professional Recruitment Ltd,CR422374,Community Services M Us,Hired Staff,100
http://statistics.data.gov.uk/id/local-authority/12UE,Huntingdonshire District Council,14/08/2014,153315,5010,5,715.2,Point Professional Recruitment Ltd,CR422374,Community Services M Us,Hired Staff,100
http://statistics.data.gov.uk/id/local-authority/12UE,Huntingdonshire District Council,14/08/2014,152751,1111911030,5,31.2,Orange Airtime,CR455799,Community Services M Us,Mobile Telephones & Radios,241
http://statistics.data.gov.uk/id/local-authority/12UE,Huntingdonshire District Council,24/07/2014,152568,PRS1415036,5,800,Prsgc,CR422459,Community Services M Us,Training - Operational,131
http://statistics.data.gov.uk/id/local-authority/12UE,Huntingdonshire District Council,31/07/2014,151989,4928,5,494.4,Point Professional Recruitment Ltd,CR422374,Community Services M Us,Hired Staff,100
http://statistics.data.gov.uk/id/local-authority/12UE,Huntingdonshire District Council,07/08/2014,151988,4970,5,715.2,Point Professional Recruitment Ltd,CR422374,Community Services M Us,Hired Staff,100
http://statistics.data.gov.uk/id/local-authority/12UE,Huntingdonshire District Council,17/07/2014,151181,4844,5,729.6,Point Professional Recruitment Ltd,CR422374,Community Services M Us,Hired Staff,100
http://statistics.data.gov.uk/id/local-authority/12UE,Huntingdonshire District Council,24/07/2014,151180,4885,5,734.4,Point Professional Recruitment Ltd,CR422374,Community Services M Us,Hired Staff,100
http://statistics.data.gov.uk/id/local-authority/12UE,Huntingdonshire District Council,10/07/2014,150806,GD270,5,300,Greenday Energy Ltd,CR422398,Community Services M Us,Consultants,711
http://statistics.data.gov.uk/id/local-authority/12UE,Huntingdonshire District Council,17/07/2014,150794,1102105950,5,21.6,Orange Airtime,CR455799,Community Services M Us,Mobile Telephones & Radios,241
http://statistics.data.gov.uk/id/local-authority/12UE,Huntingdonshire District Council,10/07/2014,150437,4800,5,628.8,Point Professional Recruitment Ltd,CR422374,Community Services M Us,Hired Staff,100
http://statistics.data.gov.uk/id/local-authority/12UE,Huntingdonshire District Council,03/07/2014,149949,4763,5,686.4,Point Professional Recruitment Ltd,CR422374,Community Services M Us,Hired Staff,100
http://statistics.data.gov.uk/id/local-authority/12UE,Huntingdonshire District Council,28/08/2014,154590,284,5,"1,703.50",Hact,CR455657,Concessionary Fares,Contribution (Paid Out),810
http://statistics.data.gov.uk/id/local-authority/12UE,Huntingdonshire District Council,24/07/2014,151576,262,5,"1,584.13",Hact,CR455657,Concessionary Fares,Contribution (Paid Out),810
http://statistics.data.gov.uk/id/local-authority/12UE,Huntingdonshire District Council,24/07/2014,151213,6285967,5,300,Landmark Information Group Ltd,CR40060,Contaminated Land,Licences,730
http://statistics.data.gov.uk/id/local-authority/12UE,Huntingdonshire District Council,25/09/2014,154938,2014282,5,"8,244.00",Modern Mindset Ltd,CR482623,Corporate Committees,Software,206
http://statistics.data.gov.uk/id/local-authority/12UE,Huntingdonshire District Council,11/09/2014,155193,1121278068,5,62.4,Orange Airtime,CR455799,Corporate Office Mus,Mobile Telephones & Radios,241
http://statistics.data.gov.uk/id/local-authority/12UE,Huntingdonshire District Council,18/09/2014,155001,HDC025,5,"2,070.00",Cfl Estate Services,CR455208,Corporate Office Mus,Property Management,781
http://statistics.data.gov.uk/id/local-authority/12UE,Huntingdonshire District Council,28/08/2014,154550,72724251,5,70.34,Vodafone Limited,CR029120,Corporate Office Mus,Mobile Telephones & Radios,241
http://statistics.data.gov.uk/id/local-authority/12UE,Huntingdonshire District Council,25/09/2014,154489,7977,5,823.78,Lightning Recruitment,CR028184,Corporate Office Mus,Recruitment - Consultants,123
http://statistics.data.gov.uk/id/local-authority/12UE,Huntingdonshire District Council,18/09/2014,154074,7922,5,622,Lightning Recruitment,CR028184,Corporate Office Mus,Recruitment - Consultants,123
http://statistics.data.gov.uk/id/local-authority/12UE,Huntingdonshire District Council,11/09/2014,153934,7864,5,788.17,Lightning Recruitment,CR028184,Corporate Office Mus,Recruitment - Consultants,123
http://statistics.data.gov.uk/id/local-authority/12UE,Huntingdonshire District Council,04/09/2014,153213,7813,5,762.76,Lightning Recruitment,CR028184,Corporate Office Mus,Recruitment - Consultants,123
http://statistics.data.gov.uk/id/local-authority/12UE,Huntingdonshire District Council,28/08/2014,152910,7756,5,772.92,Lightning Recruitment,CR028184,Corporate Office Mus,Recruitment - Consultants,123
http://statistics.data.gov.uk/id/local-authority/12UE,Huntingdonshire District Council,14/08/2014,152751,1111911030,5,62.4,Orange Airtime,CR455799,Corporate Office Mus,Mobile Telephones & Radios,241
http://statistics.data.gov.uk/id/local-authority/12UE,Huntingdonshire District Council,21/08/2014,152423,7710,5,783.1,Lightning Recruitment,CR028184,Corporate Office Mus,Recruitment - Consultants,123
http://statistics.data.gov.uk/id/local-authority/12UE,Huntingdonshire District Council,07/08/2014,151770,7610,5,803.44,Lightning Recruitment,CR028184,Corporate Office Mus,Recruitment - Consultants,123
http://statistics.data.gov.uk/id/local-authority/12UE,Huntingdonshire District Council,24/07/2014,151222,7553,5,772.92,Lightning Recruitment,CR028184,Corporate Office Mus,Recruitment - Consultants,123
http://statistics.data.gov.uk/id/local-authority/12UE,Huntingdonshire District Council,24/07/2014,150889,7493,5,796.72,Lightning Recruitment,CR028184,Corporate Office Mus,Recruitment - Consultants,123
http://statistics.data.gov.uk/id/local-authority/12UE,Huntingdonshire District Council,17/07/2014,150794,1102105950,5,62.4,Orange Airtime,CR455799,Corporate Office Mus,Mobile Telephones & Radios,241
http://statistics.data.gov.uk/id/local-authority/12UE,Huntingdonshire District Council,03/07/2014,150439,HDC023,5,"2,418.00",Cfl Estate Services,CR455208,Corporate Office Mus,Property Management,781
http://statistics.data.gov.uk/id/local-authority/12UE,Huntingdonshire District Council,03/07/2014,150433,7440,5,798.35,Lightning Recruitment,CR028184,Corporate Office Mus,Recruitment - Consultants,123
http://statistics.data.gov.uk/id/local-authority/12UE,Huntingdonshire District Council,03/07/2014,150306,7381,5,472.91,Lightning Recruitment,CR028184,Corporate Office Mus,Recruitment - Consultants,123
http://statistics.data.gov.uk/id/local-authority/12UE,Huntingdonshire District Council,25/09/2014,156183,90354,5,727.76,Newlyn Plc,CR409114,Council Tax,Bailiffs,703
http://statistics.data.gov.uk/id/local-authority/12UE,Huntingdonshire District Council,18/09/2014,155463,90086,5,252.4,Newlyn Plc,CR409114,Council Tax,Bailiffs,703
http://statistics.data.gov.uk/id/local-authority/12UE,Huntingdonshire District Council,18/09/2014,155449,90084,5,697.05,Newlyn Plc,CR409114,Council Tax,Bailiffs,703
http://statistics.data.gov.uk/id/local-authority/12UE,Huntingdonshire District Council,11/09/2014,155259,89478,5,460.05,Newlyn Plc,CR409114,Council Tax,Bailiffs,703
http://statistics.data.gov.uk/id/local-authority/12UE,Huntingdonshire District Council,11/09/2014,155236,89777,5,676.65,Newlyn Plc,CR409114,Council Tax,Bailiffs,703
http://statistics.data.gov.uk/id/local-authority/12UE,Huntingdonshire District Council,25/09/2014,155204,228802,5,497.75,Jacobs,CR422350,Council Tax,Bailiffs,703
http://statistics.data.gov.uk/id/local-authority/12UE,Huntingdonshire District Council,11/09/2014,154883,89779,5,353.45,Newlyn Plc,CR409114,Council Tax,Bailiffs,703
http://statistics.data.gov.uk/id/local-authority/12UE,Huntingdonshire District Council,25/09/2014,154629,228414,5,304.87,Jacobs,CR422350,Council Tax,Bailiffs,703
http://statistics.data.gov.uk/id/local-authority/12UE,Huntingdonshire District Council,28/08/2014,154377,89223,5,644.57,Newlyn Plc,CR409114,Council Tax,Bailiffs,703
http://statistics.data.gov.uk/id/local-authority/12UE,Huntingdonshire District Council,11/09/2014,154375,228006,5,"1,367.43",Jacobs,CR422350,Council Tax,Bailiffs,703
http://statistics.data.gov.uk/id/local-authority/12UE,Huntingdonshire District Council,28/08/2014,154373,89089,5,254.85,Newlyn Plc,CR409114,Council Tax,Bailiffs,703
http://statistics.data.gov.uk/id/local-authority/12UE,Huntingdonshire District Council,28/08/2014,154371,89225,5,423.09,Newlyn Plc,CR409114,Council Tax,Bailiffs,703
http://statistics.data.gov.uk/id/local-authority/12UE,Huntingdonshire District Council,21/08/2014,153733,88877,5,253.51,Newlyn Plc,CR409114,Council Tax,Bailiffs,703
http://statistics.data.gov.uk/id/local-authority/12UE,Huntingdonshire District Council,14/08/2014,153709,88602,5,462.07,Newlyn Plc,CR409114,Council Tax,Bailiffs,703
http://statistics.data.gov.uk/id/local-authority/12UE,Huntingdonshire District Council,21/08/2014,153559,226858,5,303.84,Jacobs,CR422350,Council Tax,Bailiffs,703
http://statistics.data.gov.uk/id/local-authority/12UE,Huntingdonshire District Council,07/08/2014,152829,88285,5,351.26,Newlyn Plc,CR409114,Council Tax,Bailiffs,703
http://statistics.data.gov.uk/id/local-authority/12UE,Huntingdonshire District Council,31/07/2014,152405,87945,5,739.63,Newlyn Plc,CR409114,Council Tax,Bailiffs,703
http://statistics.data.gov.uk/id/local-authority/12UE,Huntingdonshire District Council,31/07/2014,152404,87943,5,430.89,Newlyn Plc,CR409114,Council Tax,Bailiffs,703
http://statistics.data.gov.uk/id/local-authority/12UE,Huntingdonshire District Council,24/07/2014,152320,87675,5,283.95,Newlyn Plc,CR409114,Council Tax,Bailiffs,703
http://statistics.data.gov.uk/id/local-authority/12UE,Huntingdonshire District Council,17/07/2014,151550,87421,5,291.99,Newlyn Plc,CR409114,Council Tax,Bailiffs,703
http://statistics.data.gov.uk/id/local-authority/12UE,Huntingdonshire District Council,10/07/2014,151189,87106,5,592.26,Newlyn Plc,CR409114,Council Tax,Bailiffs,703
http://statistics.data.gov.uk/id/local-authority/12UE,Huntingdonshire District Council,03/07/2014,150803,86745,5,548.11,Newlyn Plc,CR409114,Council Tax,Bailiffs,703
http://statistics.data.gov.uk/id/local-authority/12UE,Huntingdonshire District Council,29/07/2014,568180,PO26400,6,300,Hm Courts & Tribunals Service,CR413466,Council Tax,Legal Fees,729
http://statistics.data.gov.uk/id/local-authority/12UE,Huntingdonshire District Council,25/09/2014,156097,INV-0025,5,30,Worksmart Leisure Ltd,CR422551,Countryside,Training - Other,136
http://statistics.data.gov.uk/id/local-authority/12UE,Huntingdonshire District Council,18/09/2014,155763,210664938,5,263.18,Booker Cash And Carry,CR027611,Countryside,Catering Materials,559
http://statistics.data.gov.uk/id/local-authority/12UE,Huntingdonshire District Council,25/09/2014,155762,2101674053,5,364.47,Booker Cash And Carry,CR027611,Countryside,Catering Materials,559
http://statistics.data.gov.uk/id/local-authority/12UE,Huntingdonshire District Council,25/09/2014,155756,136643,5,347.09,Arthur Ibbett Ltd,CR000430,Countryside,Materials,550
http://statistics.data.gov.uk/id/local-authority/12UE,Huntingdonshire District Council,25/09/2014,155710,941403268,5,250.06,Swalec,CR407130,Countryside,Electricity,420
http://statistics.data.gov.uk/id/local-authority/12UE,Huntingdonshire District Council,11/09/2014,155326,117054,5,865.36,Huntingdon Timber Supplies,CR415663,Countryside,Training - Operational,131
http://statistics.data.gov.uk/id/local-authority/12UE,Huntingdonshire District Council,25/09/2014,155313,29859,5,268.56,Meyer Scott Recruitment Limited,CR422369,Countryside,Training - Operational,131
http://statistics.data.gov.uk/id/local-authority/12UE,Huntingdonshire District Council,25/09/2014,155312,787051,5,766,King Bros,CR411339,Countryside,Catering Materials,559
http://statistics.data.gov.uk/id/local-authority/12UE,Huntingdonshire District Council,11/09/2014,155193,1121278068,5,36.46,Orange Airtime,CR455799,Countryside,Mobile Telephones & Radios,241
http://statistics.data.gov.uk/id/local-authority/12UE,Huntingdonshire District Council,11/09/2014,154958,135958,5,516.5,Arthur Ibbett Ltd,CR000430,Countryside,Vehicle Maintenance External,619
http://statistics.data.gov.uk/id/local-authority/12UE,Huntingdonshire District Council,04/09/2014,154860,311226373,5,430.27,Swalec,CR407130,Countryside,Electricity,420
http://statistics.data.gov.uk/id/local-authority/12UE,Huntingdonshire District Council,28/08/2014,154620,10729,5,296.4,Training Courses & Careers Update,CR422516,Countryside,Training - Operational,131
http://statistics.data.gov.uk/id/local-authority/12UE,Huntingdonshire District Council,04/09/2014,154609,1592,5,438,County Roadways,CR453964,Countryside,Sitework,359
http://statistics.data.gov.uk/id/local-authority/12UE,Huntingdonshire District Council,04/09/2014,154609,1592,5,"1,752.00",County Roadways,CR453964,Countryside,Sitework,359
http://statistics.data.gov.uk/id/local-authority/12UE,Huntingdonshire District Council,28/08/2014,154608,41226290,5,"1,377.34",Swalec,CR407130,Countryside,Electricity,420
http://statistics.data.gov.uk/id/local-authority/12UE,Huntingdonshire District Council,04/09/2014,154607,1593,5,182.4,County Roadways,CR453964,Countryside,Sitework,359
http://statistics.data.gov.uk/id/local-authority/12UE,Huntingdonshire District Council,04/09/2014,154607,1593,5,729.6,County Roadways,CR453964,Countryside,Sitework,359
http://statistics.data.gov.uk/id/local-authority/12UE,Huntingdonshire District Council,11/09/2014,154581,29813,5,308.84,Meyer Scott Recruitment Limited,CR422369,Countryside,Training - Operational,131
http://statistics.data.gov.uk/id/local-authority/12UE,Huntingdonshire District Council,04/09/2014,154578,2101647625,5,325.1,Booker Cash And Carry,CR027611,Countryside,Catering Materials,559
http://statistics.data.gov.uk/id/local-authority/12UE,Huntingdonshire District Council,11/09/2014,154576,486032,5,432.6,King Bros,CR411339,Countryside,Catering Materials,559
http://statistics.data.gov.uk/id/local-authority/12UE,Huntingdonshire District Council,18/09/2014,154575,786498,5,281.89,King Bros,CR411339,Countryside,Catering Materials,559
http://statistics.data.gov.uk/id/local-authority/12UE,Huntingdonshire District Council,18/09/2014,154575,786498,5,9.99,King Bros,CR411339,Countryside,Cleaning Materials,443
http://statistics.data.gov.uk/id/local-authority/12UE,Huntingdonshire District Council,28/08/2014,154574,776764,5,624.81,King Bros,CR411339,Countryside,Catering Materials,559
http://statistics.data.gov.uk/id/local-authority/12UE,Huntingdonshire District Council,21/08/2014,154148,488,5,"2,983.13",Flf Trading Company Limited,CR422512,Countryside,Equipment Purchases,500
http://statistics.data.gov.uk/id/local-authority/12UE,Huntingdonshire District Council,28/08/2014,154103,2101639198,5,374.66,Booker Cash And Carry,CR027611,Countryside,Catering Materials,559
http://statistics.data.gov.uk/id/local-authority/12UE,Huntingdonshire District Council,04/09/2014,154099,29769,5,268.56,Meyer Scott Recruitment Limited,CR422369,Countryside,Training - Operational,131
http://statistics.data.gov.uk/id/local-authority/12UE,Huntingdonshire District Council,11/09/2014,154098,785626,5,466.22,King Bros,CR411339,Countryside,Catering Materials,559
http://statistics.data.gov.uk/id/local-authority/12UE,Huntingdonshire District Council,28/08/2014,153984,29720,5,268.56,Meyer Scott Recruitment Limited,CR422369,Countryside,Hired Staff,100
http://statistics.data.gov.uk/id/local-authority/12UE,Huntingdonshire District Council,21/08/2014,153979,59227,5,"1,438.80",Woodberry Of Leamington Spa,CR479458,Countryside,Equipment Purchases,500
http://statistics.data.gov.uk/id/local-authority/12UE,Huntingdonshire District Council,21/08/2014,153961,776764,5,624.81,Booker Cash And Carry,CR027611,Countryside,Catering Materials,559
http://statistics.data.gov.uk/id/local-authority/12UE,Huntingdonshire District Council,21/08/2014,153954,2101629949,5,312.11,Booker Cash And Carry,CR027611,Countryside,Catering Materials,559
http://statistics.data.gov.uk/id/local-authority/12UE,Huntingdonshire District Council,04/09/2014,153953,784691,5,692.28,King Bros,CR411339,Countryside,Catering Materials,559
http://statistics.data.gov.uk/id/local-authority/12UE,Huntingdonshire District Council,04/09/2014,153952,784914,5,347.06,King Bros,CR411339,Countryside,Catering Materials,559
http://statistics.data.gov.uk/id/local-authority/12UE,Huntingdonshire District Council,21/08/2014,153950,784915,5,-347.06,King Bros,CR411339,Countryside,Catering Materials,559
http://statistics.data.gov.uk/id/local-authority/12UE,Huntingdonshire District Council,21/08/2014,153684,29691,5,268.56,Meyer Scott Recruitment Limited,CR422369,Countryside,Equipment Maintenance,511
http://statistics.data.gov.uk/id/local-authority/12UE,Huntingdonshire District Council,28/08/2014,153682,213953,5,394.17,Pilgrim Foodservice Ltd,CR455695,Countryside,Materials For Resale,570
http://statistics.data.gov.uk/id/local-authority/12UE,Huntingdonshire District Council,21/08/2014,153680,208568,5,529.3,Pilgrim Foodservice Ltd,CR455695,Countryside,Catering Materials,559
http://statistics.data.gov.uk/id/local-authority/12UE,Huntingdonshire District Council,28/08/2014,153676,SO4348830,5,41.08,Shell Uk Ltd,CR028192,Countryside,Petrol,614
http://statistics.data.gov.uk/id/local-authority/12UE,Huntingdonshire District Council,14/08/2014,153674,133924,5,480,Arthur Ibbett Ltd,CR000430,Countryside,Equipment Purchases,500
http://statistics.data.gov.uk/id/local-authority/12UE,Huntingdonshire District Council,28/08/2014,153673,135017,5,769.95,Arthur Ibbett Ltd,CR000430,Countryside,Equipment Maintenance,511
http://statistics.data.gov.uk/id/local-authority/12UE,Huntingdonshire District Council,28/08/2014,153673,135017,5,381.96,Arthur Ibbett Ltd,CR000430,Countryside,Materials,550
http://statistics.data.gov.uk/id/local-authority/12UE,Huntingdonshire District Council,28/08/2014,153672,72449,5,404.28,Green Magic Co Uk Ltd,CR422205,Countryside,Materials,550
http://statistics.data.gov.uk/id/local-authority/12UE,Huntingdonshire District Council,14/08/2014,153597,2101621190,5,572.14,Booker Cash And Carry,CR027611,Countryside,Materials For Resale,570
http://statistics.data.gov.uk/id/local-authority/12UE,Huntingdonshire District Council,28/08/2014,153595,783670,5,390.36,King Bros,CR411339,Countryside,Catering Materials,559
http://statistics.data.gov.uk/id/local-authority/12UE,Huntingdonshire District Council,28/08/2014,153594,784137,5,553.04,King Bros,CR411339,Countryside,Catering Materials,559
http://statistics.data.gov.uk/id/local-authority/12UE,Huntingdonshire District Council,14/08/2014,153357,29635,5,268.56,Meyer Scott Recruitment Limited,CR422369,Countryside,Training - Operational,131
http://statistics.data.gov.uk/id/local-authority/12UE,Huntingdonshire District Council,21/08/2014,153134,782614,5,608.96,King Bros,CR411339,Countryside,Catering Materials,559
http://statistics.data.gov.uk/id/local-authority/12UE,Huntingdonshire District Council,21/08/2014,153133,783099,5,589.63,King Bros,CR411339,Countryside,Catering Materials,559
http://statistics.data.gov.uk/id/local-authority/12UE,Huntingdonshire District Council,07/08/2014,152947,869954,5,403.2,Hire Or Buy Group Ltd,CR000707,Countryside,Equipment Hire,507
http://statistics.data.gov.uk/id/local-authority/12UE,Huntingdonshire District Council,07/08/2014,152938,17874,5,"1,764.00",Sps Pumps & Engineering Ltd,CR401392,Countryside,Stationery,225
http://statistics.data.gov.uk/id/local-authority/12UE,Huntingdonshire District Council,07/08/2014,152907,2101612136,5,281.34,Booker Cash And Carry,CR027611,Countryside,Catering Materials,559
http://statistics.data.gov.uk/id/local-authority/12UE,Huntingdonshire District Council,14/08/2014,152906,781623,5,610.97,King Bros,CR411339,Countryside,Catering Materials,559
http://statistics.data.gov.uk/id/local-authority/12UE,Huntingdonshire District Council,31/07/2014,152889,128128,5,630.08,Arthur Ibbett Ltd,CR000430,Countryside,Equipment Purchases,500
http://statistics.data.gov.uk/id/local-authority/12UE,Huntingdonshire District Council,14/08/2014,152751,1111911030,5,33.6,Orange Airtime,CR455799,Countryside,Mobile Telephones & Radios,241
http://statistics.data.gov.uk/id/local-authority/12UE,Huntingdonshire District Council,31/07/2014,152556,1821,5,786,Bellmans Buffet Service,CR032961,Countryside,Litter Bins,520
http://statistics.data.gov.uk/id/local-authority/12UE,Huntingdonshire District Council,24/07/2014,152145,868060,5,804,Hire Or Buy Group Ltd,CR000707,Countryside,Equipment Purchases,500
http://statistics.data.gov.uk/id/local-authority/12UE,Huntingdonshire District Council,10/07/2014,151635,2101578236,5,258.25,Booker Cash And Carry,CR027611,Countryside,Catering Materials,559
http://statistics.data.gov.uk/id/local-authority/12UE,Huntingdonshire District Council,31/07/2014,151626,779749,5,293.5,King Bros,CR411339,Countryside,Catering Materials,559
http://statistics.data.gov.uk/id/local-authority/12UE,Huntingdonshire District Council,31/07/2014,151536,SO4332671,5,130.46,Shell Uk Ltd,CR028192,Countryside,Petrol,614
http://statistics.data.gov.uk/id/local-authority/12UE,Huntingdonshire District Council,17/07/2014,151458,777791,5,572.56,King Bros,CR411339,Countryside,Catering Materials,559
http://statistics.data.gov.uk/id/local-authority/12UE,Huntingdonshire District Council,24/07/2014,151457,77877,5,573.43,King Bros,CR411339,Countryside,Catering Materials,559
http://statistics.data.gov.uk/id/local-authority/12UE,Huntingdonshire District Council,17/07/2014,151456,2101586683,5,265.29,Booker Cash And Carry,CR027611,Countryside,Catering Materials,559
http://statistics.data.gov.uk/id/local-authority/12UE,Huntingdonshire District Council,10/07/2014,151159,113415079,5,267.59,Anglian Water,CR000071,Countryside,Water,432
http://statistics.data.gov.uk/id/local-authority/12UE,Huntingdonshire District Council,03/07/2014,151158,YI0039106N.,5,"1,272.00",Navigators & General,CR455204,Countryside,Vehicle Insurance,610
http://statistics.data.gov.uk/id/local-authority/12UE,Huntingdonshire District Council,24/07/2014,151132,1808,5,367.2,Bellmans Buffet Service,CR032961,Countryside,Promotions And Exhibitions,743
http://statistics.data.gov.uk/id/local-authority/12UE,Huntingdonshire District Council,10/07/2014,150901,131750,5,917.72,Arthur Ibbett Ltd,CR000430,Countryside,Vehicle Maintenance External,619
http://statistics.data.gov.uk/id/local-authority/12UE,Huntingdonshire District Council,17/07/2014,150794,1102105950,5,33.6,Orange Airtime,CR455799,Countryside,Mobile Telephones & Radios,241
http://statistics.data.gov.uk/id/local-authority/12UE,Huntingdonshire District Council,17/07/2014,150648,JBC/25860/4663/,5,"15,530.47",J Breheny Contractors Ltd,CR000314,Countryside,Sitework,359
http://statistics.data.gov.uk/id/local-authority/12UE,Huntingdonshire District Council,03/07/2014,150235,775577,5,446.39,King Bros,CR411339,Countryside,Catering Materials,559
http://statistics.data.gov.uk/id/local-authority/12UE,Huntingdonshire District Council,03/07/2014,149951,600231304,5,266.65,British Gas Business,CR478619,Countryside,Gas,421
http://statistics.data.gov.uk/id/local-authority/12UE,Huntingdonshire District Council,25/09/2014,155461,11696,5,334.8,Jade Security Services Ltd,CR422256,Customer Service Centres,Cash Collection,702
http://statistics.data.gov.uk/id/local-authority/12UE,Huntingdonshire District Council,11/09/2014,155193,1121278068,5,12,Orange Airtime,CR455799,Customer Service Centres,Mobile Telephones & Radios,241
http://statistics.data.gov.uk/id/local-authority/12UE,Huntingdonshire District Council,21/08/2014,153945,IN00533932,5,360,Happy Serious Learning,CR455473,Customer Service Centres,Training - Other,136
http://statistics.data.gov.uk/id/local-authority/12UE,Huntingdonshire District Council,04/09/2014,153738,7.43E+11,5,0.08,Virgin Media Business,CR033120,Customer Service Centres,Telephone Charges,248
http://statistics.data.gov.uk/id/local-authority/12UE,Huntingdonshire District Council,28/08/2014,153734,11528,5,385.02,Jade Security Services Ltd,CR422256,Customer Service Centres,Cash Collection,702
http://statistics.data.gov.uk/id/local-authority/12UE,Huntingdonshire District Council,14/08/2014,152751,1111911030,5,12,Orange Airtime,CR455799,Customer Service Centres,Mobile Telephones & Radios,241
http://statistics.data.gov.uk/id/local-authority/12UE,Huntingdonshire District Council,24/07/2014,152097,11437,5,351.54,Jade Security Services Ltd,CR422256,Customer Service Centres,Cash Collection,702
http://statistics.data.gov.uk/id/local-authority/12UE,Huntingdonshire District Council,31/07/2014,151681,742878104/0714,5,0.3,Virgin Media Business,CR033120,Customer Service Centres,Telephone Charges,248
http://statistics.data.gov.uk/id/local-authority/12UE,Huntingdonshire District Council,17/07/2014,151167,310046301,5,300,Happy Serious Learning,CR455473,Customer Service Centres,Conferences,137
http://statistics.data.gov.uk/id/local-authority/12UE,Huntingdonshire District Council,17/07/2014,150794,1102105950,5,12,Orange Airtime,CR455799,Customer Service Centres,Mobile Telephones & Radios,241
http://statistics.data.gov.uk/id/local-authority/12UE,Huntingdonshire District Council,17/07/2014,150650,JBC/25869/4663/,5,"1,080.00",J Breheny Contractors Ltd,CR000314,Cycling,Sitework,359
http://statistics.data.gov.uk/id/local-authority/12UE,Huntingdonshire District Council,28/08/2014,154603,25023,5,"6,490.10",The Landscape Partnership,CR455142,Dc Application Processing,Consultants,711
http://statistics.data.gov.uk/id/local-authority/12UE,Huntingdonshire District Council,28/08/2014,154599,1111082302,5,"5,604.22",Deloitte,CR416667,Dc Application Processing,Legal Fees,729
http://statistics.data.gov.uk/id/local-authority/12UE,Huntingdonshire District Council,28/08/2014,154589,9921801,5,"2,358.77",Snr Denton,CR453969,Dc Application Processing,Legal Fees,729
http://statistics.data.gov.uk/id/local-authority/12UE,Huntingdonshire District Council,18/09/2014,154585,9922898 VAT,5,"1,772.32",Snr Denton,CR453969,Dc Application Processing,Legal Fees,729
http://statistics.data.gov.uk/id/local-authority/12UE,Huntingdonshire District Council,07/08/2014,153393,87,5,400,Icthus Aquaculture,CR422476,Dc Application Processing,Consultants,711
http://statistics.data.gov.uk/id/local-authority/12UE,Huntingdonshire District Council,07/08/2014,152866,56,5,"4,000.00",Steve Arnold,CR452161,Dc Application Processing,Consultants,711
http://statistics.data.gov.uk/id/local-authority/12UE,Huntingdonshire District Council,31/07/2014,152855,00348/07-14,5,864,Sports Huntingdon Ltd,CR480316,Dc Application Processing,Hire Of Rooms,411
http://statistics.data.gov.uk/id/local-authority/12UE,Huntingdonshire District Council,07/08/2014,152853,59434560,5,345.6,Local World Ltd,CR000072,Dc Application Processing,Advertising - Statutory Notice,257
http://statistics.data.gov.uk/id/local-authority/12UE,Huntingdonshire District Council,31/07/2014,152846,5867/14/362/PA,5,"1,795.62",Reading Agricultural Consultants,CR404991,Dc Application Processing,Consultants,711
http://statistics.data.gov.uk/id/local-authority/12UE,Huntingdonshire District Council,24/07/2014,151574,9920320,5,"1,790.81",Snr Denton,CR453969,Dc Application Processing,Legal Fees,729
http://statistics.data.gov.uk/id/local-authority/12UE,Huntingdonshire District Council,24/07/2014,151571,1111074308,5,"7,687.43",Deloitte Llp,CR400573,Dc Application Processing,Consultants,711
http://statistics.data.gov.uk/id/local-authority/12UE,Huntingdonshire District Council,03/07/2014,151284,9919728,5,"1,151.48",Snr Denton,CR453969,Dc Application Processing,Legal Fees,729
http://statistics.data.gov.uk/id/local-authority/12UE,Huntingdonshire District Council,03/07/2014,151280,A02/B14002,5,"12,634.19",The Landscape Partnership,CR455142,Dc Application Processing,Consultants,711
http://statistics.data.gov.uk/id/local-authority/12UE,Huntingdonshire District Council,03/07/2014,151275,6186/14/154/PA,5,900,Reading Agricultural Consultants,CR404991,Dc Application Processing,Consultants,711
http://statistics.data.gov.uk/id/local-authority/12UE,Huntingdonshire District Council,25/09/2014,156097,INV-0025,5,30,Worksmart Leisure Ltd,CR422551,Development Team,Training - Other,136
http://statistics.data.gov.uk/id/local-authority/12UE,Huntingdonshire District Council,18/09/2014,155799,2221,5,"5,635.00",Percipient Studios,CR422541,Development Team,Relocation Expenses,126
http://statistics.data.gov.uk/id/local-authority/12UE,Huntingdonshire District Council,07/08/2014,152473,394,5,"1,800.00",Astun Techynology Ltd,CR481143,Development Team,Software,206
http://statistics.data.gov.uk/id/local-authority/12UE,Huntingdonshire District Council,07/08/2014,152473,394,5,"1,840.80",Astun Techynology Ltd,CR481143,Development Team,Software,206
http://statistics.data.gov.uk/id/local-authority/12UE,Huntingdonshire District Council,03/07/2014,150046,INV5042,5,"1,152.00",Socitm,CR403291,Development Team,Software,206
http://statistics.data.gov.uk/id/local-authority/12UE,Huntingdonshire District Council,18/09/2014,155837,316311,5,359.28,Surrey Envelopes,CR482428,Document Centre,Paper,562
http://statistics.data.gov.uk/id/local-authority/12UE,Huntingdonshire District Council,25/09/2014,155683,307862C,5,446.46,Masons Paper Co Ltd,CR001164,Document Centre,Paper,562
http://statistics.data.gov.uk/id/local-authority/12UE,Huntingdonshire District Council,25/09/2014,155674,IN16PS14005961,5,"1,162.16",Whistl,CR479965,Document Centre,Postage,231
http://statistics.data.gov.uk/id/local-authority/12UE,Huntingdonshire District Council,25/09/2014,155667,4981089,5,"3,497.42",Canon Uk Ltd,CR409013,Document Centre,Equipment Maintenance,511
http://statistics.data.gov.uk/id/local-authority/12UE,Huntingdonshire District Council,25/09/2014,155661,9048025888,5,804.86,Royal Mail,CR027083,Document Centre,Postage,231
http://statistics.data.gov.uk/id/local-authority/12UE,Huntingdonshire District Council,25/09/2014,155627,VQ4055287,5,138,Antalis Ltd,CR479468,Document Centre,Paper,562
http://statistics.data.gov.uk/id/local-authority/12UE,Huntingdonshire District Council,25/09/2014,155627,VQ4055287,5,530.4,Antalis Ltd,CR479468,Document Centre,Paper,562
http://statistics.data.gov.uk/id/local-authority/12UE,Huntingdonshire District Council,11/09/2014,155492,IN16PS14005573,5,866.95,Whistl,CR479965,Document Centre,Postage,231
http://statistics.data.gov.uk/id/local-authority/12UE,Huntingdonshire District Council,18/09/2014,155491,IN16PS14005787,5,812.05,Whistl,CR479965,Document Centre,Postage,231
http://statistics.data.gov.uk/id/local-authority/12UE,Huntingdonshire District Council,11/09/2014,155193,1121278068,5,2.4,Orange Airtime,CR455799,Document Centre,Mobile Telephones & Radios,241
http://statistics.data.gov.uk/id/local-authority/12UE,Huntingdonshire District Council,11/09/2014,154188,9047937659,5,747.07,Royal Mail,CR027083,Document Centre,Postage,231
http://statistics.data.gov.uk/id/local-authority/12UE,Huntingdonshire District Council,11/09/2014,154134,VQ4025536,5,247.32,Antalis Ltd,CR479468,Document Centre,Paper,562
http://statistics.data.gov.uk/id/local-authority/12UE,Huntingdonshire District Council,11/09/2014,154134,VQ4025536,5,101.3,Antalis Ltd,CR479468,Document Centre,Paper,562
http://statistics.data.gov.uk/id/local-authority/12UE,Huntingdonshire District Council,11/09/2014,154134,VQ4025536,5,49.1,Antalis Ltd,CR479468,Document Centre,Paper,562
http://statistics.data.gov.uk/id/local-authority/12UE,Huntingdonshire District Council,28/08/2014,153990,9047900163,5,-640.33,Royal Mail,CR027083,Document Centre,Postage,231
http://statistics.data.gov.uk/id/local-authority/12UE,Huntingdonshire District Council,04/09/2014,153988,IN16PS14005412,5,"1,147.55",Whistl,CR479965,Document Centre,Postage,231
http://statistics.data.gov.uk/id/local-authority/12UE,Huntingdonshire District Council,04/09/2014,153987,9047900154,5,"2,570.69",Royal Mail,CR027083,Document Centre,Postage,231
http://statistics.data.gov.uk/id/local-authority/12UE,Huntingdonshire District Council,28/08/2014,153819,IN16PS14005237,5,"1,023.07",Whistl,CR479965,Document Centre,Postage,231
http://statistics.data.gov.uk/id/local-authority/12UE,Huntingdonshire District Council,28/08/2014,153805,VQ3996289,5,530.4,Antalis Ltd,CR479468,Document Centre,Paper,562
http://statistics.data.gov.uk/id/local-authority/12UE,Huntingdonshire District Council,28/08/2014,153760,16955,5,"1,132.80",Swan Print Ltd,CR413699,Document Centre,Subcontractors,777
http://statistics.data.gov.uk/id/local-authority/12UE,Huntingdonshire District Council,21/08/2014,153570,VQ3978116,5,191.58,Antalis Ltd,CR479468,Document Centre,Paper,562
http://statistics.data.gov.uk/id/local-authority/12UE,Huntingdonshire District Council,21/08/2014,153570,VQ3978116,5,64.32,Antalis Ltd,CR479468,Document Centre,Paper,562
http://statistics.data.gov.uk/id/local-authority/12UE,Huntingdonshire District Council,21/08/2014,153569,VQ397117,5,27.6,Antalis Ltd,CR479468,Document Centre,Paper,562
http://statistics.data.gov.uk/id/local-authority/12UE,Huntingdonshire District Council,21/08/2014,153569,VQ397117,5,"1,060.80",Antalis Ltd,CR479468,Document Centre,Paper,562
http://statistics.data.gov.uk/id/local-authority/12UE,Huntingdonshire District Council,21/08/2014,153568,VQ3981711,5,283.91,Antalis Ltd,CR479468,Document Centre,Paper,562
http://statistics.data.gov.uk/id/local-authority/12UE,Huntingdonshire District Council,28/08/2014,153567,317087,5,"1,314.00",Surrey Envelopes,CR482428,Document Centre,Envelopes,224
http://statistics.data.gov.uk/id/local-authority/12UE,Huntingdonshire District Council,21/08/2014,153561,VQ3978115,5,276,Antalis Ltd,CR479468,Document Centre,Paper,562
http://statistics.data.gov.uk/id/local-authority/12UE,Huntingdonshire District Council,14/08/2014,153552,IN16PS14005063,5,"1,267.68",Whistl,CR479965,Document Centre,Postage,231
http://statistics.data.gov.uk/id/local-authority/12UE,Huntingdonshire District Council,14/08/2014,153551,9047758697,5,"3,719.70",Royal Mail,CR027083,Document Centre,Postage,231
http://statistics.data.gov.uk/id/local-authority/12UE,Huntingdonshire District Council,28/08/2014,153550,9047853411,5,"1,418.05",Royal Mail,CR027083,Document Centre,Postage,231
http://statistics.data.gov.uk/id/local-authority/12UE,Huntingdonshire District Council,31/07/2014,152966,16931,5,"1,132.80",Swan Print Ltd,CR413699,Document Centre,Subcontractors,777
http://statistics.data.gov.uk/id/local-authority/12UE,Huntingdonshire District Council,07/08/2014,152752,50017989,5,"4,061.34",Moore Paragon Uk Limited,CR030863,Document Centre,Equipment Maintenance,511
http://statistics.data.gov.uk/id/local-authority/12UE,Huntingdonshire District Council,14/08/2014,152751,1111911030,5,2.4,Orange Airtime,CR455799,Document Centre,Mobile Telephones & Radios,241
http://statistics.data.gov.uk/id/local-authority/12UE,Huntingdonshire District Council,07/08/2014,152549,IN16PS14004696,5,"1,537.58",Whistl,CR479965,Document Centre,Postage,231
http://statistics.data.gov.uk/id/local-authority/12UE,Huntingdonshire District Council,14/08/2014,152548,IN16PS14004870,5,"1,765.56",Whistl,CR479965,Document Centre,Postage,231
http://statistics.data.gov.uk/id/local-authority/12UE,Huntingdonshire District Council,07/08/2014,152547,9047702993,5,"2,026.99",Royal Mail,CR027083,Document Centre,Postage,231
http://statistics.data.gov.uk/id/local-authority/12UE,Huntingdonshire District Council,14/08/2014,152545,1113769984,5,"2,328.48",Konica Minolta,CR478866,Document Centre,Equipment Maintenance,511
http://statistics.data.gov.uk/id/local-authority/12UE,Huntingdonshire District Council,14/08/2014,152468,VQ3947901,5,316.97,Antalis Ltd,CR479468,Document Centre,Paper,562
http://statistics.data.gov.uk/id/local-authority/12UE,Huntingdonshire District Council,24/07/2014,152462,19150,5,"1,524.00",B & H Digital Ltd,CR478080,Document Centre,Subcontractors,777
http://statistics.data.gov.uk/id/local-authority/12UE,Huntingdonshire District Council,24/07/2014,152427,VQ3862085,5,635.84,Antalis Ltd,CR479468,Document Centre,Paper,562
http://statistics.data.gov.uk/id/local-authority/12UE,Huntingdonshire District Council,31/07/2014,152426,4961400,5,"1,881.00",Canon Uk Ltd,CR409013,Document Centre,Equipment Maintenance,511
http://statistics.data.gov.uk/id/local-authority/12UE,Huntingdonshire District Council,14/08/2014,152420,VQ3955438,5,35.78,Antalis Ltd,CR479468,Document Centre,Paper,562
http://statistics.data.gov.uk/id/local-authority/12UE,Huntingdonshire District Council,14/08/2014,152420,VQ3955438,5,52.49,Antalis Ltd,CR479468,Document Centre,Paper,562
http://statistics.data.gov.uk/id/local-authority/12UE,Huntingdonshire District Council,14/08/2014,152420,VQ3955438,5,45.66,Antalis Ltd,CR479468,Document Centre,Paper,562
http://statistics.data.gov.uk/id/local-authority/12UE,Huntingdonshire District Council,14/08/2014,152420,VQ3955438,5,44.46,Antalis Ltd,CR479468,Document Centre,Paper,562
http://statistics.data.gov.uk/id/local-authority/12UE,Huntingdonshire District Council,14/08/2014,152420,VQ3955438,5,56.78,Antalis Ltd,CR479468,Document Centre,Paper,562
http://statistics.data.gov.uk/id/local-authority/12UE,Huntingdonshire District Council,14/08/2014,152420,VQ3955438,5,"1,060.80",Antalis Ltd,CR479468,Document Centre,Paper,562
http://statistics.data.gov.uk/id/local-authority/12UE,Huntingdonshire District Council,14/08/2014,152420,VQ3955438,5,43.38,Antalis Ltd,CR479468,Document Centre,Paper,562
http://statistics.data.gov.uk/id/local-authority/12UE,Huntingdonshire District Council,14/08/2014,152412,316719,5,915.6,Surrey Envelopes,CR482428,Document Centre,Envelopes,224
http://statistics.data.gov.uk/id/local-authority/12UE,Huntingdonshire District Council,14/08/2014,152411,316718,5,"1,300.32",Surrey Envelopes,CR482428,Document Centre,Envelopes,224
http://statistics.data.gov.uk/id/local-authority/12UE,Huntingdonshire District Council,14/08/2014,152411,316718,5,"2,229.12",Surrey Envelopes,CR482428,Document Centre,Envelopes,224
http://statistics.data.gov.uk/id/local-authority/12UE,Huntingdonshire District Council,14/08/2014,152410,316793,5,516,Surrey Envelopes,CR482428,Document Centre,Envelopes,224
http://statistics.data.gov.uk/id/local-authority/12UE,Huntingdonshire District Council,31/07/2014,151985,IN16PS14004512,5,"1,221.45",Whistl,CR479965,Document Centre,Postage,231
http://statistics.data.gov.uk/id/local-authority/12UE,Huntingdonshire District Council,24/07/2014,151978,Apr-89,5,335.94,Fingerprint,CR001165,Document Centre,Equipment Maintenance,511
http://statistics.data.gov.uk/id/local-authority/12UE,Huntingdonshire District Council,24/07/2014,151468,9047610587,5,"1,962.34",Royal Mail,CR027083,Document Centre,Postage,231
http://statistics.data.gov.uk/id/local-authority/12UE,Huntingdonshire District Council,24/07/2014,151467,1113443686,5,"2,222.23",Konica Minolta,CR478866,Document Centre,Equipment Maintenance,511
http://statistics.data.gov.uk/id/local-authority/12UE,Huntingdonshire District Council,24/07/2014,151464,VQ3891019,5,530.4,Antalis Ltd,CR479468,Document Centre,Paper,562
http://statistics.data.gov.uk/id/local-authority/12UE,Huntingdonshire District Council,17/07/2014,151463,IN16PS14004124,5,"2,744.38",Whistl,CR479965,Document Centre,Postage,231
http://statistics.data.gov.uk/id/local-authority/12UE,Huntingdonshire District Council,24/07/2014,151462,IN16PS14004264,5,"1,436.41",Whistl,CR479965,Document Centre,Postage,231
http://statistics.data.gov.uk/id/local-authority/12UE,Huntingdonshire District Council,24/07/2014,151139,13395,5,324,Bigprinting,CR416383,Document Centre,Subcontractors,777
http://statistics.data.gov.uk/id/local-authority/12UE,Huntingdonshire District Council,24/07/2014,151136,13392,5,"1,077.60",Bigprinting,CR416383,Document Centre,Subcontractors,777
http://statistics.data.gov.uk/id/local-authority/12UE,Huntingdonshire District Council,17/07/2014,150892,9047569163,5,80.3,Royal Mail,CR027083,Document Centre,Postage,231
http://statistics.data.gov.uk/id/local-authority/12UE,Huntingdonshire District Council,17/07/2014,150794,1102105950,5,2.4,Orange Airtime,CR455799,Document Centre,Mobile Telephones & Radios,241
http://statistics.data.gov.uk/id/local-authority/12UE,Huntingdonshire District Council,10/07/2014,150746,10286405,5,"1,887.95",Moore Paragon Uk Limited,CR030863,Document Centre,Subcontractors,777
http://statistics.data.gov.uk/id/local-authority/12UE,Huntingdonshire District Council,10/07/2014,150659,1113250734,5,"1,715.38",Konica Minolta,CR478866,Document Centre,Equipment Maintenance,511
http://statistics.data.gov.uk/id/local-authority/12UE,Huntingdonshire District Council,03/07/2014,150658,9047457939,5,"1,411.84",Royal Mail,CR027083,Document Centre,Postage,231
http://statistics.data.gov.uk/id/local-authority/12UE,Huntingdonshire District Council,10/07/2014,150657,9047520005,5,"2,674.38",Royal Mail,CR027083,Document Centre,Postage,231
http://statistics.data.gov.uk/id/local-authority/12UE,Huntingdonshire District Council,10/07/2014,150656,IN16PS14003941,5,805.99,Whistl,CR479965,Document Centre,Postage,231
http://statistics.data.gov.uk/id/local-authority/12UE,Huntingdonshire District Council,03/07/2014,150654,315327,5,359.28,Surrey Envelopes,CR482428,Document Centre,Envelopes,224
http://statistics.data.gov.uk/id/local-authority/12UE,Huntingdonshire District Council,03/07/2014,150048,IN16PS14003782,5,672.96,Whistl,CR479965,Document Centre,Postage,231
http://statistics.data.gov.uk/id/local-authority/12UE,Huntingdonshire District Council,25/09/2014,155674,IN16PS14005961,5,231.56,Whistl,CR479965,Domestic Refuse,Postage,231
http://statistics.data.gov.uk/id/local-authority/12UE,Huntingdonshire District Council,11/09/2014,155492,IN16PS14005573,5,44.66,Whistl,CR479965,Domestic Refuse,Postage,231
http://statistics.data.gov.uk/id/local-authority/12UE,Huntingdonshire District Council,18/09/2014,155491,IN16PS14005787,5,11.46,Whistl,CR479965,Domestic Refuse,Postage,231
http://statistics.data.gov.uk/id/local-authority/12UE,Huntingdonshire District Council,25/09/2014,155438,IN0398542,5,"4,664.76",Staffline Group,CR416827,Domestic Refuse,Hired Staff,100
http://statistics.data.gov.uk/id/local-authority/12UE,Huntingdonshire District Council,25/09/2014,155437,IN0398540,5,"5,497.70",Staffline Group,CR416827,Domestic Refuse,Hired Staff,100
http://statistics.data.gov.uk/id/local-authority/12UE,Huntingdonshire District Council,18/09/2014,155416,SIN078929,5,638.82,Imperial Polythene Products Ltd,CR455671,Domestic Refuse,Materials,550
http://statistics.data.gov.uk/id/local-authority/12UE,Huntingdonshire District Council,11/09/2014,155378,26807,5,270,Coolair Logan Ltd,CR410942,Domestic Refuse,Vehicle Parts & Fittings,625
http://statistics.data.gov.uk/id/local-authority/12UE,Huntingdonshire District Council,25/09/2014,155336,35741,5,162.48,Trinity Engineering & Component Supplies Ltd,CR455479,Domestic Refuse,Vehicle Parts & Fittings,625
http://statistics.data.gov.uk/id/local-authority/12UE,Huntingdonshire District Council,18/09/2014,154975,IN0397673,5,"3,751.24",Staffline Group,CR416827,Domestic Refuse,Hired Staff,100
http://statistics.data.gov.uk/id/local-authority/12UE,Huntingdonshire District Council,11/09/2014,154966,IN0396621,5,"4,300.13",Staffline Group,CR416827,Domestic Refuse,Hired Staff,100
http://statistics.data.gov.uk/id/local-authority/12UE,Huntingdonshire District Council,18/09/2014,154964,IN0397671,5,"4,959.94",Staffline Group,CR416827,Domestic Refuse,Hired Staff,100
http://statistics.data.gov.uk/id/local-authority/12UE,Huntingdonshire District Council,11/09/2014,154963,IN0396619,5,"4,342.79",Staffline Group,CR416827,Domestic Refuse,Hired Staff,100
http://statistics.data.gov.uk/id/local-authority/12UE,Huntingdonshire District Council,04/09/2014,154551,18059,5,120,M & N Vehicle Services,CR480661,Domestic Refuse,Vehicle Mot,622
http://statistics.data.gov.uk/id/local-authority/12UE,Huntingdonshire District Council,04/09/2014,154551,18059,5,"1,189.08",M & N Vehicle Services,CR480661,Domestic Refuse,Vehicle Parts & Fittings,625
http://statistics.data.gov.uk/id/local-authority/12UE,Huntingdonshire District Council,18/09/2014,154544,DE10808077,5,403.67,Dennis Eagle Ltd,CR000200,Domestic Refuse,Vehicle Parts & Fittings,625
http://statistics.data.gov.uk/id/local-authority/12UE,Huntingdonshire District Council,28/08/2014,154520,37223,5,573,E Rand And Sons,CR405746,Domestic Refuse,Vehicle Parts & Fittings,625
http://statistics.data.gov.uk/id/local-authority/12UE,Huntingdonshire District Council,11/09/2014,154496,DE10806538,5,281.42,Dennis Eagle Ltd,CR000200,Domestic Refuse,Vehicle Parts & Fittings,625
http://statistics.data.gov.uk/id/local-authority/12UE,Huntingdonshire District Council,04/09/2014,154121,IN0395049,5,"4,638.56",Staffline Group,CR416827,Domestic Refuse,Hired Staff,100
http://statistics.data.gov.uk/id/local-authority/12UE,Huntingdonshire District Council,04/09/2014,154119,IN0395051,5,"3,657.38",Staffline Group,CR416827,Domestic Refuse,Hired Staff,100
http://statistics.data.gov.uk/id/local-authority/12UE,Huntingdonshire District Council,04/09/2014,153988,IN16PS14005412,5,11.06,Whistl,CR479965,Domestic Refuse,Postage,231
http://statistics.data.gov.uk/id/local-authority/12UE,Huntingdonshire District Council,28/08/2014,153975,IN0394418,5,"4,581.68",Staffline Group,CR416827,Domestic Refuse,Hired Staff,100
http://statistics.data.gov.uk/id/local-authority/12UE,Huntingdonshire District Council,28/08/2014,153973,IN0394420,5,"4,078.30",Staffline Group,CR416827,Domestic Refuse,Hired Staff,100
http://statistics.data.gov.uk/id/local-authority/12UE,Huntingdonshire District Council,28/08/2014,153819,IN16PS14005237,5,77.84,Whistl,CR479965,Domestic Refuse,Postage,231
http://statistics.data.gov.uk/id/local-authority/12UE,Huntingdonshire District Council,04/09/2014,153698,DE10805892,5,358.25,Dennis Eagle Ltd,CR000200,Domestic Refuse,Vehicle Parts & Fittings,625
http://statistics.data.gov.uk/id/local-authority/12UE,Huntingdonshire District Council,28/08/2014,153696,35671,5,106.82,Trinity Engineering & Component Supplies Ltd,CR455479,Domestic Refuse,Vehicle Parts & Fittings,625
http://statistics.data.gov.uk/id/local-authority/12UE,Huntingdonshire District Council,04/09/2014,153693,96300369,5,962.54,Terberg Matec Uk Ltd,CR402183,Domestic Refuse,Vehicle Parts & Fittings,625
http://statistics.data.gov.uk/id/local-authority/12UE,Huntingdonshire District Council,28/08/2014,153605,SIN078637,5,814.32,Imperial Polythene Products Ltd,CR455671,Domestic Refuse,Materials,550
http://statistics.data.gov.uk/id/local-authority/12UE,Huntingdonshire District Council,04/09/2014,153603,SIN078692,5,"1,330.06",Imperial Polythene Products Ltd,CR455671,Domestic Refuse,Materials,550
http://statistics.data.gov.uk/id/local-authority/12UE,Huntingdonshire District Council,04/09/2014,153602,SIN078725,5,624.31,Imperial Polythene Products Ltd,CR455671,Domestic Refuse,Materials,550
http://statistics.data.gov.uk/id/local-authority/12UE,Huntingdonshire District Council,04/09/2014,153601,SIN078705,5,"3,990.17",Imperial Polythene Products Ltd,CR455671,Domestic Refuse,Materials,550
http://statistics.data.gov.uk/id/local-authority/12UE,Huntingdonshire District Council,28/08/2014,153596,10546762,5,"11,554.00",Cambridgeshire County Council,CR006678,Domestic Refuse,Contribution (Paid Out),810
http://statistics.data.gov.uk/id/local-authority/12UE,Huntingdonshire District Council,14/08/2014,153552,IN16PS14005063,5,192.44,Whistl,CR479965,Domestic Refuse,Postage,231
http://statistics.data.gov.uk/id/local-authority/12UE,Huntingdonshire District Council,28/08/2014,153241,96300023,5,"1,007.08",Terberg Matec Uk Ltd,CR402183,Domestic Refuse,Vehicle Parts & Fittings,625
http://statistics.data.gov.uk/id/local-authority/12UE,Huntingdonshire District Council,21/08/2014,153230,IN0393145,5,"2,815.56",Staffline Group,CR416827,Domestic Refuse,Hired Staff,100
http://statistics.data.gov.uk/id/local-authority/12UE,Huntingdonshire District Council,21/08/2014,153222,IN0393143,5,"4,672.69",Staffline Group,CR416827,Domestic Refuse,Hired Staff,100
http://statistics.data.gov.uk/id/local-authority/12UE,Huntingdonshire District Council,07/08/2014,153195,249007I,5,331.75,A C Commercials,CR000141,Domestic Refuse,Vehicle Parts & Fittings,625
http://statistics.data.gov.uk/id/local-authority/12UE,Huntingdonshire District Council,14/08/2014,153194,249009I,5,267,A C Commercials,CR000141,Domestic Refuse,Vehicle Parts & Fittings,625
http://statistics.data.gov.uk/id/local-authority/12UE,Huntingdonshire District Council,28/08/2014,153188,DE10803786,5,581.5,Dennis Eagle Ltd,CR000200,Domestic Refuse,Vehicle Parts & Fittings,625
http://statistics.data.gov.uk/id/local-authority/12UE,Huntingdonshire District Council,28/08/2014,153153,67540,5,"2,687.74",Bandvulc Truck Tyres,CR406810,Domestic Refuse,Tyres,630
http://statistics.data.gov.uk/id/local-authority/12UE,Huntingdonshire District Council,21/08/2014,153142,249288I,5,289.76,A C Commercials,CR000141,Domestic Refuse,Vehicle Parts & Fittings,625
http://statistics.data.gov.uk/id/local-authority/12UE,Huntingdonshire District Council,21/08/2014,153136,156606,5,294,Barton Petroleum,CR409205,Domestic Refuse,Vehicle Oil & Lubricants,626
http://statistics.data.gov.uk/id/local-authority/12UE,Huntingdonshire District Council,07/08/2014,152941,52587,5,551.4,Garwood Europe Ltd,CR415210,Domestic Refuse,Vehicle Parts & Fittings,625
http://statistics.data.gov.uk/id/local-authority/12UE,Huntingdonshire District Council,07/08/2014,152939,52588,5,858,Garwood Europe Ltd,CR415210,Domestic Refuse,Vehicle Parts & Fittings,625
http://statistics.data.gov.uk/id/local-authority/12UE,Huntingdonshire District Council,07/08/2014,152902,SIN00425104,5,244.34,Barclay & Mathieson Ltd,CR478330,Domestic Refuse,Vehicle Parts & Fittings,625
http://statistics.data.gov.uk/id/local-authority/12UE,Huntingdonshire District Council,31/07/2014,152887,246843,5,"1,053.18",Dennis Eagle Ltd,CR000200,Domestic Refuse,Vehicle Parts & Fittings,625
http://statistics.data.gov.uk/id/local-authority/12UE,Huntingdonshire District Council,31/07/2014,152807,11041,5,"1,446.14",John Henry & Sons Ta Wfl Enterprises Ltd,CR456001,Domestic Refuse,Vehicle Parts & Fittings,625
http://statistics.data.gov.uk/id/local-authority/12UE,Huntingdonshire District Council,14/08/2014,152806,11171,5,390,John Henry & Sons Ta Wfl Enterprises Ltd,CR456001,Domestic Refuse,Vehicle Parts & Fittings,625
http://statistics.data.gov.uk/id/local-authority/12UE,Huntingdonshire District Council,31/07/2014,152799,35574,5,148.77,Trinity Engineering & Component Supplies Ltd,CR455479,Domestic Refuse,Vehicle Parts & Fittings,625
http://statistics.data.gov.uk/id/local-authority/12UE,Huntingdonshire District Council,31/07/2014,152798,35573,5,221.83,Trinity Engineering & Component Supplies Ltd,CR455479,Domestic Refuse,Vehicle Parts & Fittings,625
http://statistics.data.gov.uk/id/local-authority/12UE,Huntingdonshire District Council,31/07/2014,152797,35572,5,247.67,Trinity Engineering & Component Supplies Ltd,CR455479,Domestic Refuse,Vehicle Parts & Fittings,625
http://statistics.data.gov.uk/id/local-authority/12UE,Huntingdonshire District Council,31/07/2014,152796,35571,5,135.84,Trinity Engineering & Component Supplies Ltd,CR455479,Domestic Refuse,Vehicle Parts & Fittings,625
http://statistics.data.gov.uk/id/local-authority/12UE,Huntingdonshire District Council,07/08/2014,152561,SINV-071786,5,"1,908.04",Gelpack Excelsior Limited,CR002966,Domestic Refuse,Equipment Purchases,500
http://statistics.data.gov.uk/id/local-authority/12UE,Huntingdonshire District Council,07/08/2014,152549,IN16PS14004696,5,98.8,Whistl,CR479965,Domestic Refuse,Postage,231
http://statistics.data.gov.uk/id/local-authority/12UE,Huntingdonshire District Council,14/08/2014,152548,IN16PS14004870,5,174.66,Whistl,CR479965,Domestic Refuse,Postage,231
http://statistics.data.gov.uk/id/local-authority/12UE,Huntingdonshire District Council,07/08/2014,152459,IN0390948,5,"2,943.54",Staffline Group,CR416827,Domestic Refuse,Hired Staff,100
http://statistics.data.gov.uk/id/local-authority/12UE,Huntingdonshire District Council,07/08/2014,152451,IN0390946,5,"4,624.34",Staffline Group,CR416827,Domestic Refuse,Hired Staff,100
http://statistics.data.gov.uk/id/local-authority/12UE,Huntingdonshire District Council,31/07/2014,152444,IN0389503,5,"4,294.44",Staffline Group,CR416827,Domestic Refuse,Hired Staff,100
http://statistics.data.gov.uk/id/local-authority/12UE,Huntingdonshire District Council,31/07/2014,152442,IN0389505,5,"4,635.72",Staffline Group,CR416827,Domestic Refuse,Hired Staff,100
http://statistics.data.gov.uk/id/local-authority/12UE,Huntingdonshire District Council,24/07/2014,152434,IN0388554,5,"4,462.24",Staffline Group,CR416827,Domestic Refuse,Hired Staff,100
http://statistics.data.gov.uk/id/local-authority/12UE,Huntingdonshire District Council,24/07/2014,152431,IN0388552,5,"4,126.64",Staffline Group,CR416827,Domestic Refuse,Hired Staff,100
http://statistics.data.gov.uk/id/local-authority/12UE,Huntingdonshire District Council,31/07/2014,151985,IN16PS14004512,5,256.46,Whistl,CR479965,Domestic Refuse,Postage,231
http://statistics.data.gov.uk/id/local-authority/12UE,Huntingdonshire District Council,07/08/2014,151781,248822I,5,255.86,A C Commercials,CR000141,Domestic Refuse,Vehicle Parts & Fittings,625
http://statistics.data.gov.uk/id/local-authority/12UE,Huntingdonshire District Council,07/08/2014,151780,2248890I,5,336.42,A C Commercials,CR000141,Domestic Refuse,Vehicle Parts & Fittings,625
http://statistics.data.gov.uk/id/local-authority/12UE,Huntingdonshire District Council,17/07/2014,151675,9090,5,722.4,G&C Coachworks Ltd,CR455755,Domestic Refuse,Vehicle Maintenance External,619
http://statistics.data.gov.uk/id/local-authority/12UE,Huntingdonshire District Council,17/07/2014,151529,IN0387593,5,"3,606.19",Staffline Group,CR416827,Domestic Refuse,Hired Staff,100
http://statistics.data.gov.uk/id/local-authority/12UE,Huntingdonshire District Council,17/07/2014,151528,IN0387595,5,"4,922.96",Staffline Group,CR416827,Domestic Refuse,Hired Staff,100
http://statistics.data.gov.uk/id/local-authority/12UE,Huntingdonshire District Council,10/07/2014,151525,IN0386689,5,"3,569.22",Staffline Group,CR416827,Domestic Refuse,Hired Staff,100
http://statistics.data.gov.uk/id/local-authority/12UE,Huntingdonshire District Council,10/07/2014,151524,IN0386691,5,"2,895.19",Staffline Group,CR416827,Domestic Refuse,Hired Staff,100
http://statistics.data.gov.uk/id/local-authority/12UE,Huntingdonshire District Council,24/07/2014,151508,66709,5,"2,112.63",Bandvulc Truck Tyres,CR406810,Domestic Refuse,Tyres,630
http://statistics.data.gov.uk/id/local-authority/12UE,Huntingdonshire District Council,24/07/2014,151505,DE10795655,5,170.64,Dennis Eagle Ltd,CR000200,Domestic Refuse,Vehicle Parts & Fittings,625
http://statistics.data.gov.uk/id/local-authority/12UE,Huntingdonshire District Council,24/07/2014,151498,DE10795346,5,689.13,Dennis Eagle Ltd,CR000200,Domestic Refuse,Vehicle Parts & Fittings,625
http://statistics.data.gov.uk/id/local-authority/12UE,Huntingdonshire District Council,10/07/2014,151483,96297678/1,5,258,Terberg Matec Uk Ltd,CR402183,Domestic Refuse,Training - Operational,131
http://statistics.data.gov.uk/id/local-authority/12UE,Huntingdonshire District Council,17/07/2014,151472,DE10794034,5,"1,276.87",Dennis Eagle Ltd,CR000200,Domestic Refuse,Vehicle Parts & Fittings,625
http://statistics.data.gov.uk/id/local-authority/12UE,Huntingdonshire District Council,24/07/2014,151462,IN16PS14004264,5,188.89,Whistl,CR479965,Domestic Refuse,Postage,231
http://statistics.data.gov.uk/id/local-authority/12UE,Huntingdonshire District Council,10/07/2014,151454,247150I,5,"1,497.30",A C Commercials,CR000141,Domestic Refuse,Vehicle Oil & Lubricants,626
http://statistics.data.gov.uk/id/local-authority/12UE,Huntingdonshire District Council,03/07/2014,151163,SIN077446,5,950.04,Imperial Polythene Products Ltd,CR455671,Domestic Refuse,Materials,550
http://statistics.data.gov.uk/id/local-authority/12UE,Huntingdonshire District Council,03/07/2014,151162,SIN077411,5,950.04,Imperial Polythene Products Ltd,CR455671,Domestic Refuse,Materials,550
http://statistics.data.gov.uk/id/local-authority/12UE,Huntingdonshire District Council,03/07/2014,151160,SIN077417,5,"1,900.08",Imperial Polythene Products Ltd,CR455671,Domestic Refuse,Materials,550
http://statistics.data.gov.uk/id/local-authority/12UE,Huntingdonshire District Council,24/07/2014,151133,47392,5,215.54,Interflon,CR482679,Domestic Refuse,Vehicle Parts & Fittings,625
http://statistics.data.gov.uk/id/local-authority/12UE,Huntingdonshire District Council,17/07/2014,151122,96298464,5,444.79,Terberg Matec Uk Ltd,CR402183,Domestic Refuse,Vehicle Parts & Fittings,625
http://statistics.data.gov.uk/id/local-authority/12UE,Huntingdonshire District Council,17/07/2014,151119,96298283,5,"12,861.46",Terberg Matec Uk Ltd,CR402183,Domestic Refuse,Vehicle Parts & Fittings,625
http://statistics.data.gov.uk/id/local-authority/12UE,Huntingdonshire District Council,24/07/2014,150902,248589I,5,350.88,A C Commercials,CR000141,Domestic Refuse,Vehicle Parts & Fittings,625
http://statistics.data.gov.uk/id/local-authority/12UE,Huntingdonshire District Council,10/07/2014,150872,72240G,5,137.76,Freedom Lubricants Ltd,CR411569,Domestic Refuse,Vehicle Oil & Lubricants,626
http://statistics.data.gov.uk/id/local-authority/12UE,Huntingdonshire District Council,03/07/2014,150778,96297878,5,-258,Terberg Matec Uk Ltd,CR402183,Domestic Refuse,Training - Operational,131
http://statistics.data.gov.uk/id/local-authority/12UE,Huntingdonshire District Council,03/07/2014,150400,IN0384745,5,"3,964.54",Staffline Group,CR416827,Domestic Refuse,Hired Staff,100
http://statistics.data.gov.uk/id/local-authority/12UE,Huntingdonshire District Council,03/07/2014,150398,INI0384743,5,"4,211.96",Staffline Group,CR416827,Domestic Refuse,Hired Staff,100
http://statistics.data.gov.uk/id/local-authority/12UE,Huntingdonshire District Council,10/07/2014,150390,17581,5,120,M & N Vehicle Services,CR480661,Domestic Refuse,Vehicle Mot,622
http://statistics.data.gov.uk/id/local-authority/12UE,Huntingdonshire District Council,10/07/2014,150390,17581,5,"1,611.61",M & N Vehicle Services,CR480661,Domestic Refuse,Vehicle Parts & Fittings,625
http://statistics.data.gov.uk/id/local-authority/12UE,Huntingdonshire District Council,10/07/2014,150298,155032,5,310.8,Barton Petroleum,CR409205,Domestic Refuse,Vehicle Oil & Lubricants,626
http://statistics.data.gov.uk/id/local-authority/12UE,Huntingdonshire District Council,03/07/2014,149983,96297678,5,258,Terberg Matec Uk Ltd,CR402183,Domestic Refuse,Training - Operational,131
http://statistics.data.gov.uk/id/local-authority/12UE,Huntingdonshire District Council,25/09/2014,156078,130588239,5,524.53,Anglian Water,CR000071,E F H And Depots,Sewerage,433
http://statistics.data.gov.uk/id/local-authority/12UE,Huntingdonshire District Council,25/09/2014,156078,130588239,5,483.1,Anglian Water,CR000071,E F H And Depots,Water,432
http://statistics.data.gov.uk/id/local-authority/12UE,Huntingdonshire District Council,18/09/2014,155371,12489089940,5,366.86,E-On Energy,CR416430,E F H And Depots,Gas,421
http://statistics.data.gov.uk/id/local-authority/12UE,Huntingdonshire District Council,25/09/2014,155267,65924,5,"2,793.65",Haven Power Ltd,CR455940,E F H And Depots,Electricity,420
http://statistics.data.gov.uk/id/local-authority/12UE,Huntingdonshire District Council,25/09/2014,155253,533482,5,"1,356.60",Ecocleen Services Limited,CR406985,E F H And Depots,Building Cleaning Internal,440
http://statistics.data.gov.uk/id/local-authority/12UE,Huntingdonshire District Council,28/08/2014,153608,532787,5,"1,356.60",Ecocleen Services Limited,CR406985,E F H And Depots,Building Cleaning Internal,440
http://statistics.data.gov.uk/id/local-authority/12UE,Huntingdonshire District Council,14/08/2014,153581,12489089940,5,312.86,E-On Energy,CR416430,E F H And Depots,Gas,421
http://statistics.data.gov.uk/id/local-authority/12UE,Huntingdonshire District Council,21/08/2014,153363,65924,5,"2,461.95",Haven Power Ltd,CR455940,E F H And Depots,Electricity,420
http://statistics.data.gov.uk/id/local-authority/12UE,Huntingdonshire District Council,28/08/2014,153307,3049554,5,"2,054.84",First In Service Ltd,CR422285,E F H And Depots,Plant & Equipment Maintenance,380
http://statistics.data.gov.uk/id/local-authority/12UE,Huntingdonshire District Council,14/08/2014,152771,14381,5,"1,536.97",Bh Doors & Engineering Ltd,CR455707,E F H And Depots,Gen Building Mtce - Responsive,303
http://statistics.data.gov.uk/id/local-authority/12UE,Huntingdonshire District Council,14/08/2014,152389,140,5,906,Universal Safety Systems Ltd,CR478208,E F H And Depots,Gen Building Mtce - Planned,304
http://statistics.data.gov.uk/id/local-authority/12UE,Huntingdonshire District Council,07/08/2014,152093,61403400,5,294.74,Phs Datashred,CR480152,E F H And Depots,Shredding,773
http://statistics.data.gov.uk/id/local-authority/12UE,Huntingdonshire District Council,14/08/2014,152038,2289,5,252.41,Saltream,CR411219,E F H And Depots,Gen Building Mtce - Responsive,303
http://statistics.data.gov.uk/id/local-authority/12UE,Huntingdonshire District Council,17/07/2014,152037,1.25E+11,5,378.16,E-On Energy,CR416430,E F H And Depots,Gas,421
http://statistics.data.gov.uk/id/local-authority/12UE,Huntingdonshire District Council,07/08/2014,152020,383239,5,740.11,Zip Heaters Uk Ltd,CR478275,E F H And Depots,Gen Building Mtce - Planned,304
http://statistics.data.gov.uk/id/local-authority/12UE,Huntingdonshire District Council,07/08/2014,152016,600008112,5,518.4,Edf Energy Customer Field Services,CR477611,E F H And Depots,Electricity,420
http://statistics.data.gov.uk/id/local-authority/12UE,Huntingdonshire District Council,17/07/2014,151759,6218,5,816,Cambridge Door Services,CR415341,E F H And Depots,Gen Building Mtce - Planned,304
http://statistics.data.gov.uk/id/local-authority/12UE,Huntingdonshire District Council,17/07/2014,151665,65924,5,"2,186.60",Haven Power Ltd,CR455940,E F H And Depots,Electricity,420
http://statistics.data.gov.uk/id/local-authority/12UE,Huntingdonshire District Council,31/07/2014,151559,3049546,5,"2,210.40",First In Service Ltd,CR422285,E F H And Depots,Gen Building Mtce - Responsive,303
http://statistics.data.gov.uk/id/local-authority/12UE,Huntingdonshire District Council,31/07/2014,151494,532067,5,"1,356.60",Ecocleen Services Limited,CR406985,E F H And Depots,Building Cleaning Internal,440
http://statistics.data.gov.uk/id/local-authority/12UE,Huntingdonshire District Council,10/07/2014,151282,530887,5,197.78,Ecocleen Services Limited,CR406985,E F H And Depots,Cleaning Materials,441
http://statistics.data.gov.uk/id/local-authority/12UE,Huntingdonshire District Council,18/09/2014,154380,45069,5,18,Cirrus Research Plc,CR479189,Eh Health & Safety,Equipment Maintenance,511
http://statistics.data.gov.uk/id/local-authority/12UE,Huntingdonshire District Council,18/09/2014,154380,45069,5,30,Cirrus Research Plc,CR479189,Eh Health & Safety,Equipment Maintenance,511
http://statistics.data.gov.uk/id/local-authority/12UE,Huntingdonshire District Council,18/09/2014,154380,45069,5,482.4,Cirrus Research Plc,CR479189,Eh Health & Safety,Equipment Maintenance,511
http://statistics.data.gov.uk/id/local-authority/12UE,Huntingdonshire District Council,18/09/2014,154380,45069,5,50.4,Cirrus Research Plc,CR479189,Eh Health & Safety,Equipment Maintenance,511
http://statistics.data.gov.uk/id/local-authority/12UE,Huntingdonshire District Council,18/09/2014,154380,45069,5,108,Cirrus Research Plc,CR479189,Eh Health & Safety,Equipment Maintenance,511
http://statistics.data.gov.uk/id/local-authority/12UE,Huntingdonshire District Council,28/08/2014,154370,2296,5,276,Sci Print Limited,CR416581,Elections,Hire Of Rooms,411
http://statistics.data.gov.uk/id/local-authority/12UE,Huntingdonshire District Council,21/08/2014,154021,3237,5,432,Victoirepress,CR404724,Elections,Stationery,225
http://statistics.data.gov.uk/id/local-authority/12UE,Huntingdonshire District Council,28/08/2014,153550,9047853411,5,266.95,Royal Mail,CR027083,Elections,Postage,231
http://statistics.data.gov.uk/id/local-authority/12UE,Huntingdonshire District Council,14/08/2014,152546,9047745840,5,"1,390.44",Royal Mail,CR027083,Elections,Postage,231
http://statistics.data.gov.uk/id/local-authority/12UE,Huntingdonshire District Council,17/07/2014,150892,9047569163,5,"1,126.95",Royal Mail,CR027083,Elections,Postage,231
http://statistics.data.gov.uk/id/local-authority/12UE,Huntingdonshire District Council,03/07/2014,150074,742878104/0614,5,54,Virgin Media Business,CR033120,Elections,I T Line Rental,248
http://statistics.data.gov.uk/id/local-authority/12UE,Huntingdonshire District Council,25/09/2014,155674,IN16PS14005961,5,4.74,Whistl,CR479965,Electoral Registration,Postage,231
http://statistics.data.gov.uk/id/local-authority/12UE,Huntingdonshire District Council,18/09/2014,155491,IN16PS14005787,5,256.06,Whistl,CR479965,Electoral Registration,Postage,231
http://statistics.data.gov.uk/id/local-authority/12UE,Huntingdonshire District Council,04/09/2014,155028,13871,5,726,Aea Training,CR40222,Electoral Registration,Training - Other,136
http://statistics.data.gov.uk/id/local-authority/12UE,Huntingdonshire District Council,04/09/2014,154020,DM6071,5,"1,003.43",Link Support Services (Uk) Lts,CR482303,Electoral Registration,Training - Professional,130
http://statistics.data.gov.uk/id/local-authority/12UE,Huntingdonshire District Council,04/09/2014,154018,25573,5,780,Community Information Services Ltd,CR478148,Electoral Registration,Advertising/Promoting Services,255
http://statistics.data.gov.uk/id/local-authority/12UE,Huntingdonshire District Council,04/09/2014,153988,IN16PS14005412,5,94.05,Whistl,CR479965,Electoral Registration,Postage,231
http://statistics.data.gov.uk/id/local-authority/12UE,Huntingdonshire District Council,04/09/2014,153987,9047900154,5,14.28,Royal Mail,CR027083,Electoral Registration,Postage,231
http://statistics.data.gov.uk/id/local-authority/12UE,Huntingdonshire District Council,04/09/2014,153818,9047894067,5,"38,318.90",Royal Mail,CR027083,Electoral Registration,Postage,231
http://statistics.data.gov.uk/id/local-authority/12UE,Huntingdonshire District Council,14/08/2014,153552,IN16PS14005063,5,22.52,Whistl,CR479965,Electoral Registration,Postage,231
http://statistics.data.gov.uk/id/local-authority/12UE,Huntingdonshire District Council,07/08/2014,152549,IN16PS14004696,5,32,Whistl,CR479965,Electoral Registration,Postage,231
http://statistics.data.gov.uk/id/local-authority/12UE,Huntingdonshire District Council,14/08/2014,152548,IN16PS14004870,5,23.32,Whistl,CR479965,Electoral Registration,Postage,231
http://statistics.data.gov.uk/id/local-authority/12UE,Huntingdonshire District Council,07/08/2014,152392,13942,5,424.8,Aea Training,CR40222,Electoral Registration,Training - Professional,130
http://statistics.data.gov.uk/id/local-authority/12UE,Huntingdonshire District Council,31/07/2014,151985,IN16PS14004512,5,73.1,Whistl,CR479965,Electoral Registration,Postage,231
http://statistics.data.gov.uk/id/local-authority/12UE,Huntingdonshire District Council,17/07/2014,151463,IN16PS14004124,5,126.06,Whistl,CR479965,Electoral Registration,Postage,231
http://statistics.data.gov.uk/id/local-authority/12UE,Huntingdonshire District Council,10/07/2014,150656,IN16PS14003941,5,11.87,Whistl,CR479965,Electoral Registration,Postage,231
http://statistics.data.gov.uk/id/local-authority/12UE,Huntingdonshire District Council,04/09/2014,569014,830797,5,607.74,East Cambridgeshire District Council,CR413319,Electoral Registration,Advertising/Promoting Services,255
http://statistics.data.gov.uk/id/local-authority/12UE,Huntingdonshire District Council,17/07/2014,150792,14546,5,321.15,Khipu Networks Ltd,CR482348,Emergency Planning,Equipment Purchases,500
http://statistics.data.gov.uk/id/local-authority/12UE,Huntingdonshire District Council,24/09/2014,156132,TAN YARD,5,"-1,412.40",Uk Power Networks,CR403938,Energy Efficiency,Sitework,359
http://statistics.data.gov.uk/id/local-authority/12UE,Huntingdonshire District Council,24/09/2014,156131,,5,"1,412.40",Uk Power Networks,CR403938,Energy Efficiency,Sitework,359
http://statistics.data.gov.uk/id/local-authority/12UE,Huntingdonshire District Council,25/09/2014,154849,HDC031,5,720,Marney Hall Consultancy Limited,CR480342,Energy Efficiency,Sitework,359
http://statistics.data.gov.uk/id/local-authority/12UE,Huntingdonshire District Council,11/09/2014,154126,2608/03,5,"5,496.00",Oakleaf Technical Services Ltd,CR422395,Energy Efficiency,Consultants,711
http://statistics.data.gov.uk/id/local-authority/12UE,Huntingdonshire District Council,04/09/2014,153706,59506468,5,428.15,Local World Ltd,CR000072,Energy Efficiency,Advertising/Promoting Services,255
http://statistics.data.gov.uk/id/local-authority/12UE,Huntingdonshire District Council,04/09/2014,153615,HCD030,5,360,Marney Hall Consultancy Limited,CR480342,Energy Efficiency,Sitework,359
http://statistics.data.gov.uk/id/local-authority/12UE,Huntingdonshire District Council,28/08/2014,153587,80714,5,"1,800.00",Liftshare.Com.Ltd,CR479179,Energy Efficiency,Advertising - Communication,256
http://statistics.data.gov.uk/id/local-authority/12UE,Huntingdonshire District Council,31/07/2014,151661,Mar-83,5,"5,659.20",Oakleaf Technical Services Ltd,CR422395,Energy Efficiency,Consultants,711
http://statistics.data.gov.uk/id/local-authority/12UE,Huntingdonshire District Council,31/07/2014,151650,59418522,5,428.15,Local World Ltd,CR000072,Energy Efficiency,Advertising/Promoting Services,255
http://statistics.data.gov.uk/id/local-authority/12UE,Huntingdonshire District Council,24/07/2014,151155,HCD029,5,360,Marney Hall Consultancy Limited,CR480342,Energy Efficiency,Sitework,359
http://statistics.data.gov.uk/id/local-authority/12UE,Huntingdonshire District Council,24/07/2014,151153,8568,5,360,Gas Street Works Ltd,CR479939,Energy Efficiency,Advertising/Promoting Services,255
http://statistics.data.gov.uk/id/local-authority/12UE,Huntingdonshire District Council,03/07/2014,150692,59335320,5,428.15,Local World Ltd,CR000072,Energy Efficiency,Advertising/Promoting Services,255
http://statistics.data.gov.uk/id/local-authority/12UE,Huntingdonshire District Council,04/09/2014,154851,524,5,"3,588.00",Aragon Homes Ltd,CR132307,Environment Equipment Capital,Gen Building Mtce - Responsive,303
http://statistics.data.gov.uk/id/local-authority/12UE,Huntingdonshire District Council,18/09/2014,154372,3052974,5,"7,212.00",First In Service Ltd,CR422285,Environment Equipment Capital,Equipment Purchases,500
http://statistics.data.gov.uk/id/local-authority/12UE,Huntingdonshire District Council,24/07/2014,151757,9183,5,176.4,Roger Wilson Electronics,CR028041,Environment Equipment Capital,Equipment Purchases,500
http://statistics.data.gov.uk/id/local-authority/12UE,Huntingdonshire District Council,11/09/2014,155193,1121278068,5,151.66,Orange Airtime,CR455799,Environmental Health M Us,Mobile Telephones & Radios,241
http://statistics.data.gov.uk/id/local-authority/12UE,Huntingdonshire District Council,28/08/2014,154550,72724251,5,69.7,Vodafone Limited,CR029120,Environmental Health M Us,Mobile Telephones & Radios,241
http://statistics.data.gov.uk/id/local-authority/12UE,Huntingdonshire District Council,21/08/2014,154191,10859,5,689.89,Red Snapper Recruitment Ltd,CR422409,Environmental Health M Us,Hired Staff,100
http://statistics.data.gov.uk/id/local-authority/12UE,Huntingdonshire District Council,11/09/2014,154190,10518,5,690.61,Red Snapper Recruitment Ltd,CR422409,Environmental Health M Us,Hired Staff,100
http://statistics.data.gov.uk/id/local-authority/12UE,Huntingdonshire District Council,14/08/2014,152751,1111911030,5,160.51,Orange Airtime,CR455799,Environmental Health M Us,Mobile Telephones & Radios,241
http://statistics.data.gov.uk/id/local-authority/12UE,Huntingdonshire District Council,14/08/2014,152315,9188,5,672.55,Red Snapper Recruitment Ltd,CR422409,Environmental Health M Us,Hired Staff,100
http://statistics.data.gov.uk/id/local-authority/12UE,Huntingdonshire District Council,07/08/2014,151760,8874,5,675.62,Red Snapper Recruitment Ltd,CR422409,Environmental Health M Us,Hired Staff,100
http://statistics.data.gov.uk/id/local-authority/12UE,Huntingdonshire District Council,17/07/2014,150926,7804,5,677.26,Red Snapper Recruitment Ltd,CR422409,Environmental Health M Us,Hired Staff,100
http://statistics.data.gov.uk/id/local-authority/12UE,Huntingdonshire District Council,17/07/2014,150794,1102105950,5,151.36,Orange Airtime,CR455799,Environmental Health M Us,Mobile Telephones & Radios,241
http://statistics.data.gov.uk/id/local-authority/12UE,Huntingdonshire District Council,11/09/2014,569821,CIEH CONFERENCE,2,350,REDACTED PERSONAL DATA,CR422530,Environmental Health M Us,Conferences,137
http://statistics.data.gov.uk/id/local-authority/12UE,Huntingdonshire District Council,17/07/2014,150699,JBC/25872/4663,5,725.71,J Breheny Contractors Ltd,CR000314,Environmental Imps Mgt,Sitework,359
http://statistics.data.gov.uk/id/local-authority/12UE,Huntingdonshire District Council,10/07/2014,150292,30435,5,252,Peterborough Engraving,CR000620,Environmental Imps Mgt,Sitework,359
http://statistics.data.gov.uk/id/local-authority/12UE,Huntingdonshire District Council,07/08/2014,567878,10543415,5,590,Cambridgeshire County Council,CR006678,Environmental Imps Mgt,Consultation And Surveys,770
http://statistics.data.gov.uk/id/local-authority/12UE,Huntingdonshire District Council,11/09/2014,155193,1121278068,5,98.94,Orange Airtime,CR455799,Environmental Management,Mobile Telephones & Radios,241
http://statistics.data.gov.uk/id/local-authority/12UE,Huntingdonshire District Council,11/09/2014,154543,7402143947,5,412.56,Dell Computer Corporation,CR408320,Environmental Management,Other I T Hardware,203
http://statistics.data.gov.uk/id/local-authority/12UE,Huntingdonshire District Council,21/08/2014,154184,203920,5,"1,080.00",Labc Services,CR406941,Environmental Management,Other Staff Expenses,149
http://statistics.data.gov.uk/id/local-authority/12UE,Huntingdonshire District Council,07/08/2014,153419,2308,5,774,Autec Training  Ltd,CR487235,Environmental Management,Training - Professional,130
http://statistics.data.gov.uk/id/local-authority/12UE,Huntingdonshire District Council,28/08/2014,153413,94097711/3000,5,"1,532.40",Bsi,CR40082,Environmental Management,Professional Subscriptions,755
http://statistics.data.gov.uk/id/local-authority/12UE,Huntingdonshire District Council,28/08/2014,153178,1844,5,268.8,Bellmans Buffet Service,CR032961,Environmental Management,Training - Operational,131
http://statistics.data.gov.uk/id/local-authority/12UE,Huntingdonshire District Council,14/08/2014,152751,1111911030,5,97.64,Orange Airtime,CR455799,Environmental Management,Mobile Telephones & Radios,241
http://statistics.data.gov.uk/id/local-authority/12UE,Huntingdonshire District Council,14/08/2014,152329,94085671/1000,5,998.4,Bsi,CR40082,Environmental Management,Corporate Subscriptions,754
http://statistics.data.gov.uk/id/local-authority/12UE,Huntingdonshire District Council,17/07/2014,150794,1102105950,5,93.6,Orange Airtime,CR455799,Environmental Management,Mobile Telephones & Radios,241
http://statistics.data.gov.uk/id/local-authority/12UE,Huntingdonshire District Council,10/07/2014,150291,V12207,5,468,Institute Of Lighting Professionals,CR477841,Environmental Management,Training - Professional,130
http://statistics.data.gov.uk/id/local-authority/12UE,Huntingdonshire District Council,31/07/2014,151506,25936/4663,5,"45,402.62",J Breheny Contractors Ltd,CR000314,Estates Properties Capital,Sitework,359
http://statistics.data.gov.uk/id/local-authority/12UE,Huntingdonshire District Council,24/07/2014,150904,1416,5,"4,620.59",K & M Lighting Services Ltd,CR455166,Estates Properties Capital,Sitework,359
http://statistics.data.gov.uk/id/local-authority/12UE,Huntingdonshire District Council,10/07/2014,150068,25836/4662/JC,5,341.18,J Breheny Contractors Ltd,CR000314,Estates Properties Capital,Signs Erecting & Removal,361
http://statistics.data.gov.uk/id/local-authority/12UE,Huntingdonshire District Council,11/09/2014,154911,1354227349,5,"20,880.00",Pricewaterhouse Coopers Llp,CR487210,External Audit,Consultants,711
http://statistics.data.gov.uk/id/local-authority/12UE,Huntingdonshire District Council,11/09/2014,154910,1354226876,5,"24,097.20",Pricewaterhouse Coopers Llp,CR487210,External Audit,Consultants,711
http://statistics.data.gov.uk/id/local-authority/12UE,Huntingdonshire District Council,07/08/2014,152180,1354218424,5,"3,040.80",Pricewaterhouse Coopers Llp,CR487210,External Audit,Audit Fees,701
http://statistics.data.gov.uk/id/local-authority/12UE,Huntingdonshire District Council,31/07/2014,151782,1354182996,5,"36,000.00",Pricewaterhouse Coopers Llp,CR487210,External Audit,Audit Fees,701
http://statistics.data.gov.uk/id/local-authority/12UE,Huntingdonshire District Council,28/08/2014,153199,AC5196,5,"1,950.00",Arlingclose,CR478136,External Fund Management,Consultants,711
http://statistics.data.gov.uk/id/local-authority/12UE,Huntingdonshire District Council,24/07/2014,152190,HDC042,5,"2,069.22",C G Utilities,CR119758,Facilities Mgt,Consultants,711
http://statistics.data.gov.uk/id/local-authority/12UE,Huntingdonshire District Council,25/09/2014,154940,244799,5,"6,819.13",Caci Limited,CR409683,Financial Services,Software,206
http://statistics.data.gov.uk/id/local-authority/12UE,Huntingdonshire District Council,25/09/2014,154939,99045307,5,321.68,Advanced Business Solutions,CR032921,Financial Services,Software,206
http://statistics.data.gov.uk/id/local-authority/12UE,Huntingdonshire District Council,25/09/2014,153752,ARCMIN99040880,5,"2,263.80",Advanced Business Solutions,CR032921,Financial Services,Software,206
http://statistics.data.gov.uk/id/local-authority/12UE,Huntingdonshire District Council,25/09/2014,153751,ARCMCN99003219,5,"-2,263.80",Advanced Business Solutions,CR032921,Financial Services,Software,206
http://statistics.data.gov.uk/id/local-authority/12UE,Huntingdonshire District Council,24/07/2014,151653,ARCMIN/99044296,5,"2,814.38",Advanced Business Solutions,CR032921,Financial Services,Software,206
http://statistics.data.gov.uk/id/local-authority/12UE,Huntingdonshire District Council,25/09/2014,156167,1989263,5,442.37,Insight Direct Uk Ltd,CR000242,Financial Services Mus,Software,206
http://statistics.data.gov.uk/id/local-authority/12UE,Huntingdonshire District Council,25/09/2014,156097,INV-0025,5,30,Worksmart Leisure Ltd,CR422551,Financial Services Mus,Training - Other,136
http://statistics.data.gov.uk/id/local-authority/12UE,Huntingdonshire District Council,25/09/2014,155446,590260,5,46.8,Callcredit Ltd,CR455548,Financial Services Mus,Enquiries,723
http://statistics.data.gov.uk/id/local-authority/12UE,Huntingdonshire District Council,11/09/2014,155193,1121278068,5,12,Orange Airtime,CR455799,Financial Services Mus,Mobile Telephones & Radios,241
http://statistics.data.gov.uk/id/local-authority/12UE,Huntingdonshire District Council,04/09/2014,154882,BC00056,5,"5,400.00",Barry Cornelius Associates,CR422523,Financial Services Mus,Hired Staff,100
http://statistics.data.gov.uk/id/local-authority/12UE,Huntingdonshire District Council,11/09/2014,154545,1975571,5,495.12,Insight Direct Uk Ltd,CR000242,Financial Services Mus,Printers,208
http://statistics.data.gov.uk/id/local-authority/12UE,Huntingdonshire District Council,28/08/2014,153606,587450,5,2.4,Callcredit Ltd,CR455548,Financial Services Mus,Enquiries,723
http://statistics.data.gov.uk/id/local-authority/12UE,Huntingdonshire District Council,20/08/2014,153198,102858,5,"1,308.00",Lavat,CR480410,Financial Services Mus,Training - Other,136
http://statistics.data.gov.uk/id/local-authority/12UE,Huntingdonshire District Council,14/08/2014,152751,1111911030,5,12,Orange Airtime,CR455799,Financial Services Mus,Mobile Telephones & Radios,241
http://statistics.data.gov.uk/id/local-authority/12UE,Huntingdonshire District Council,24/07/2014,152176,51717,5,"9,000.00",Barker Storey Matthews,CR400788,Financial Services Mus,Consultants,711
http://statistics.data.gov.uk/id/local-authority/12UE,Huntingdonshire District Council,24/07/2014,151784,ARBK/99030405,5,"2,340.00",Advanced Business Solutions,CR032921,Financial Services Mus,Consultants,711
http://statistics.data.gov.uk/id/local-authority/12UE,Huntingdonshire District Council,24/07/2014,151437,582404,5,4.8,Callcredit Ltd,CR455548,Financial Services Mus,Enquiries,723
http://statistics.data.gov.uk/id/local-authority/12UE,Huntingdonshire District Council,17/07/2014,150794,1102105950,5,12,Orange Airtime,CR455799,Financial Services Mus,Mobile Telephones & Radios,241
http://statistics.data.gov.uk/id/local-authority/12UE,Huntingdonshire District Council,03/07/2014,150208,2373911,6,"12,177.00",Croydon Council,CR478738,Financial Services Mus,Hired Staff,100
http://statistics.data.gov.uk/id/local-authority/12UE,Huntingdonshire District Council,18/09/2014,154625,SN1785798,5,357.5,Berendsen,CR478298,Fleet Management,Materials,550
http://statistics.data.gov.uk/id/local-authority/12UE,Huntingdonshire District Council,21/08/2014,154115,191114,5,"1,062.00",Chevin Fleet Solutions,CR477454,Fleet Management,Licences,730
http://statistics.data.gov.uk/id/local-authority/12UE,Huntingdonshire District Council,04/09/2014,153691,134742,5,960,Tecalemit Garage Equipment Co Ltd,CR477683,Fleet Management,Equipment Maintenance,511
http://statistics.data.gov.uk/id/local-authority/12UE,Huntingdonshire District Council,28/08/2014,153574,10717897,5,8.09,Euramka Promotions Ltd,CR001864,Fleet Management,Petrol,615
http://statistics.data.gov.uk/id/local-authority/12UE,Huntingdonshire District Council,28/08/2014,153381,PET 10068309,5,353.28,Burnt Tree Group,CR480897,Fleet Management,Vehicle Hire,607
http://statistics.data.gov.uk/id/local-authority/12UE,Huntingdonshire District Council,28/08/2014,153299,PET 10068310,5,353.28,Burnt Tree Group,CR480897,Fleet Management,Vehicle Hire,607
http://statistics.data.gov.uk/id/local-authority/12UE,Huntingdonshire District Council,28/08/2014,153234,EI539793,5,846.37,United Wipes,CR477773,Fleet Management,Materials,550
http://statistics.data.gov.uk/id/local-authority/12UE,Huntingdonshire District Council,21/08/2014,153154,SN1754777,5,448.61,Berendsen,CR478298,Fleet Management,Materials,550
http://statistics.data.gov.uk/id/local-authority/12UE,Huntingdonshire District Council,31/07/2014,152563,16520,5,144,Reeves Valeting,CR409408,Fleet Management,Vehicle Cleaning,620
http://statistics.data.gov.uk/id/local-authority/12UE,Huntingdonshire District Council,31/07/2014,152563,16520,5,216,Reeves Valeting,CR409408,Fleet Management,Vehicle Cleaning,620
http://statistics.data.gov.uk/id/local-authority/12UE,Huntingdonshire District Council,07/08/2014,152539,31977,5,"1,125.60",Mis Fuel Monitoring Ltd,CR478577,Fleet Management,Equipment Maintenance,511
http://statistics.data.gov.uk/id/local-authority/12UE,Huntingdonshire District Council,24/07/2014,151546,PET10067748,5,322.56,Burnt Tree Group,CR480897,Fleet Management,Vehicle Hire,607
http://statistics.data.gov.uk/id/local-authority/12UE,Huntingdonshire District Council,24/07/2014,151545,PET 10067749,5,322.56,Burnt Tree Group,CR480897,Fleet Management,Vehicle Hire,607
http://statistics.data.gov.uk/id/local-authority/12UE,Huntingdonshire District Council,24/07/2014,151520,20838,5,270.56,Pvc Vendo (Ramsey),CR003568,Fleet Management,Vehicle Cleaning,620
http://statistics.data.gov.uk/id/local-authority/12UE,Huntingdonshire District Council,31/07/2014,151459,SN1732543,5,377.76,Berendsen,CR478298,Fleet Management,Materials,550
http://statistics.data.gov.uk/id/local-authority/12UE,Huntingdonshire District Council,10/07/2014,151454,247150I,5,85.56,A C Commercials,CR000141,Fleet Management,Vehicle Oil & Lubricants,626
http://statistics.data.gov.uk/id/local-authority/12UE,Huntingdonshire District Council,10/07/2014,150872,72240G,5,7.87,Freedom Lubricants Ltd,CR411569,Fleet Management,Vehicle Oil & Lubricants,626
http://statistics.data.gov.uk/id/local-authority/12UE,Huntingdonshire District Council,10/07/2014,150404,85543,5,334.91,Starmaker Welding Services,CR029912,Fleet Management,Equipment Maintenance,511
http://statistics.data.gov.uk/id/local-authority/12UE,Huntingdonshire District Council,25/09/2014,155189,INV488069,5,440.14,Chartered Institute Of Environmental Health,CR002987,Food Safety,Books & Publications,250
http://statistics.data.gov.uk/id/local-authority/12UE,Huntingdonshire District Council,25/09/2014,156195,10817957,5,46.64,Euramka Promotions Ltd,CR001864,Grounds Maintenance (Combined),Diesel,615
http://statistics.data.gov.uk/id/local-authority/12UE,Huntingdonshire District Council,25/09/2014,156195,10817957,5,694.66,Euramka Promotions Ltd,CR001864,Grounds Maintenance (Combined),Diesel,615
http://statistics.data.gov.uk/id/local-authority/12UE,Huntingdonshire District Council,25/09/2014,156195,10817957,5,83.16,Euramka Promotions Ltd,CR001864,Grounds Maintenance (Combined),Petrol,614
http://statistics.data.gov.uk/id/local-authority/12UE,Huntingdonshire District Council,25/09/2014,155442,IN0398541,5,596.71,Staffline Group,CR416827,Grounds Maintenance (Combined),Hired Staff,100
http://statistics.data.gov.uk/id/local-authority/12UE,Huntingdonshire District Council,25/09/2014,155336,35741,5,92.86,Trinity Engineering & Component Supplies Ltd,CR455479,Grounds Maintenance (Combined),Vehicle Parts & Fittings,625
http://statistics.data.gov.uk/id/local-authority/12UE,Huntingdonshire District Council,18/09/2014,154971,IN0397672,5,679.56,Staffline Group,CR416827,Grounds Maintenance (Combined),Hired Staff,100
http://statistics.data.gov.uk/id/local-authority/12UE,Huntingdonshire District Council,11/09/2014,154969,IN0396620,5,623.39,Staffline Group,CR416827,Grounds Maintenance (Combined),Hired Staff,100
http://statistics.data.gov.uk/id/local-authority/12UE,Huntingdonshire District Council,04/09/2014,154524,760757,5,466.3,Ernest Doe & Sons,CR000261,Grounds Maintenance (Combined),Vehicle Parts & Fittings,625
http://statistics.data.gov.uk/id/local-authority/12UE,Huntingdonshire District Council,04/09/2014,154117,IN0395050,5,472.58,Staffline Group,CR416827,Grounds Maintenance (Combined),Hired Staff,100
http://statistics.data.gov.uk/id/local-authority/12UE,Huntingdonshire District Council,28/08/2014,153972,IN0394419,5,713.71,Staffline Group,CR416827,Grounds Maintenance (Combined),Hired Staff,100
http://statistics.data.gov.uk/id/local-authority/12UE,Huntingdonshire District Council,28/08/2014,153696,35671,5,61.04,Trinity Engineering & Component Supplies Ltd,CR455479,Grounds Maintenance (Combined),Vehicle Parts & Fittings,625
http://statistics.data.gov.uk/id/local-authority/12UE,Huntingdonshire District Council,28/08/2014,153676,SO4348830,5,349.69,Shell Uk Ltd,CR028192,Grounds Maintenance (Combined),Petrol,614
http://statistics.data.gov.uk/id/local-authority/12UE,Huntingdonshire District Council,28/08/2014,153574,10717897,5,"2,018.04",Euramka Promotions Ltd,CR001864,Grounds Maintenance (Combined),Diesel,614
http://statistics.data.gov.uk/id/local-authority/12UE,Huntingdonshire District Council,28/08/2014,153574,10717897,5,171.68,Euramka Promotions Ltd,CR001864,Grounds Maintenance (Combined),Petrol,614
http://statistics.data.gov.uk/id/local-authority/12UE,Huntingdonshire District Council,21/08/2014,153401,4/24112,5,792,D H M Truck & Tachograph Centr,CR032254,Grounds Maintenance (Combined),Vehicle Maintenance External,619
http://statistics.data.gov.uk/id/local-authority/12UE,Huntingdonshire District Council,28/08/2014,153304,134930,5,533.78,Arthur Ibbett Ltd,CR000430,Grounds Maintenance (Combined),Vehicle Parts & Fittings,625
http://statistics.data.gov.uk/id/local-authority/12UE,Huntingdonshire District Council,07/08/2014,153287,30693,5,462.44,Groundsman,CR452706,Grounds Maintenance (Combined),Equipment Purchases,500
http://statistics.data.gov.uk/id/local-authority/12UE,Huntingdonshire District Council,21/08/2014,153228,IN0393144,5,815.76,Staffline Group,CR416827,Grounds Maintenance (Combined),Hired Staff,100
http://statistics.data.gov.uk/id/local-authority/12UE,Huntingdonshire District Council,21/08/2014,153190,8598775,5,736.02,Lely (Uk) Ltd,CR098282,Grounds Maintenance (Combined),Equipment Purchases,500
http://statistics.data.gov.uk/id/local-authority/12UE,Huntingdonshire District Council,01/08/2014,153105,S1414,7,"10,818.96",Peter J Ward,CR404318,Grounds Maintenance (Combined),Plants And Seeds,556
http://statistics.data.gov.uk/id/local-authority/12UE,Huntingdonshire District Council,07/08/2014,152893,759511,5,362.66,Ernest Doe & Sons,CR000261,Grounds Maintenance (Combined),Equipment Purchases,500
http://statistics.data.gov.uk/id/local-authority/12UE,Huntingdonshire District Council,31/07/2014,152884,133167,5,357.8,Arthur Ibbett Ltd,CR000430,Grounds Maintenance (Combined),Equipment Purchases,500
http://statistics.data.gov.uk/id/local-authority/12UE,Huntingdonshire District Council,31/07/2014,152799,35574,5,85.01,Trinity Engineering & Component Supplies Ltd,CR455479,Grounds Maintenance (Combined),Vehicle Parts & Fittings,625
http://statistics.data.gov.uk/id/local-authority/12UE,Huntingdonshire District Council,31/07/2014,152798,35573,5,126.76,Trinity Engineering & Component Supplies Ltd,CR455479,Grounds Maintenance (Combined),Vehicle Parts & Fittings,625
http://statistics.data.gov.uk/id/local-authority/12UE,Huntingdonshire District Council,31/07/2014,152797,35572,5,141.53,Trinity Engineering & Component Supplies Ltd,CR455479,Grounds Maintenance (Combined),Vehicle Parts & Fittings,625
http://statistics.data.gov.uk/id/local-authority/12UE,Huntingdonshire District Council,31/07/2014,152796,35571,5,77.62,Trinity Engineering & Component Supplies Ltd,CR455479,Grounds Maintenance (Combined),Vehicle Parts & Fittings,625
http://statistics.data.gov.uk/id/local-authority/12UE,Huntingdonshire District Council,07/08/2014,152455,IN0390947,5,"1,438.67",Staffline Group,CR416827,Grounds Maintenance (Combined),Hired Staff,100
http://statistics.data.gov.uk/id/local-authority/12UE,Huntingdonshire District Council,31/07/2014,152441,IN0389504,5,"1,348.56",Staffline Group,CR416827,Grounds Maintenance (Combined),Hired Staff,100
http://statistics.data.gov.uk/id/local-authority/12UE,Huntingdonshire District Council,24/07/2014,152433,IN0388553,5,860.38,Staffline Group,CR416827,Grounds Maintenance (Combined),Hired Staff,100
http://statistics.data.gov.uk/id/local-authority/12UE,Huntingdonshire District Council,24/07/2014,152161,8592306,5,474.31,Lely (Uk) Ltd,CR098282,Grounds Maintenance (Combined),Vehicle Parts & Fittings,625
http://statistics.data.gov.uk/id/local-authority/12UE,Huntingdonshire District Council,24/07/2014,152160,RSIN0104159,5,424.8,Rigby Taylor Ltd,CR001345,Grounds Maintenance (Combined),Chemicals,551
http://statistics.data.gov.uk/id/local-authority/12UE,Huntingdonshire District Council,10/07/2014,151670,72359,5,954,Cambridge Water Plc,CR000172,Grounds Maintenance (Combined),Water,432
http://statistics.data.gov.uk/id/local-authority/12UE,Huntingdonshire District Council,24/07/2014,151568,10617839,5,"2,283.93",Euramka Promotions Ltd,CR001864,Grounds Maintenance (Combined),Diesel,615
http://statistics.data.gov.uk/id/local-authority/12UE,Huntingdonshire District Council,31/07/2014,151536,SO4332671,5,311.18,Shell Uk Ltd,CR028192,Grounds Maintenance (Combined),Petrol,614
http://statistics.data.gov.uk/id/local-authority/12UE,Huntingdonshire District Council,10/07/2014,151532,IN0386690,5,"1,730.86",Staffline Group,CR416827,Grounds Maintenance (Combined),Hired Staff,100
http://statistics.data.gov.uk/id/local-authority/12UE,Huntingdonshire District Council,17/07/2014,151531,IN0387594,5,"1,289.30",Staffline Group,CR416827,Grounds Maintenance (Combined),Hired Staff,100
http://statistics.data.gov.uk/id/local-authority/12UE,Huntingdonshire District Council,24/07/2014,151484,132705,5,757.01,Arthur Ibbett Ltd,CR000430,Grounds Maintenance (Combined),Vehicle Parts & Fittings,625
http://statistics.data.gov.uk/id/local-authority/12UE,Huntingdonshire District Council,10/07/2014,151454,247150I,5,983.94,A C Commercials,CR000141,Grounds Maintenance (Combined),Vehicle Oil & Lubricants,626
http://statistics.data.gov.uk/id/local-authority/12UE,Huntingdonshire District Council,24/07/2014,151449,758903,5,330.18,Ernest Doe & Sons,CR000261,Grounds Maintenance (Combined),Vehicle Parts & Fittings,625
http://statistics.data.gov.uk/id/local-authority/12UE,Huntingdonshire District Council,10/07/2014,151448,748335,5,728.41,Ernest Doe & Sons,CR000261,Grounds Maintenance (Combined),Equipment Purchases,500
http://statistics.data.gov.uk/id/local-authority/12UE,Huntingdonshire District Council,17/07/2014,151126,58336214,5,"1,791.84",Marshall Motor Group,CR009641,Grounds Maintenance (Combined),Vehicle Parts & Fittings,625
http://statistics.data.gov.uk/id/local-authority/12UE,Huntingdonshire District Council,10/07/2014,151120,CD970077273,5,402,Sherriff Amenity Services,CR416316,Grounds Maintenance (Combined),Plants And Seeds,556
http://statistics.data.gov.uk/id/local-authority/12UE,Huntingdonshire District Council,03/07/2014,150925,0940/0133153,5,257.46,Jewson,CR000455,Grounds Maintenance (Combined),Equipment Purchases,500
http://statistics.data.gov.uk/id/local-authority/12UE,Huntingdonshire District Council,10/07/2014,150872,72240G,5,86.93,Freedom Lubricants Ltd,CR411569,Grounds Maintenance (Combined),Vehicle Oil & Lubricants,626
http://statistics.data.gov.uk/id/local-authority/12UE,Huntingdonshire District Council,03/07/2014,150397,IN0384744,5,"1,124.42",Staffline Group,CR416827,Grounds Maintenance (Combined),Hired Staff,100
http://statistics.data.gov.uk/id/local-authority/12UE,Huntingdonshire District Council,03/07/2014,150236,5392,5,18,Ian'S Tyre & Exhaust Centre,CR405836,Grounds Maintenance (Combined),Tyres,630
http://statistics.data.gov.uk/id/local-authority/12UE,Huntingdonshire District Council,11/09/2014,155193,1121278068,5,9.6,Orange Airtime,CR455799,Head Of Imd,Mobile Telephones & Radios,241
http://statistics.data.gov.uk/id/local-authority/12UE,Huntingdonshire District Council,28/08/2014,152911,7757,5,588.74,Lightning Recruitment,CR028184,Head Of Imd,Hired Staff,100
http://statistics.data.gov.uk/id/local-authority/12UE,Huntingdonshire District Council,14/08/2014,152751,1111911030,5,9.6,Orange Airtime,CR455799,Head Of Imd,Mobile Telephones & Radios,241
http://statistics.data.gov.uk/id/local-authority/12UE,Huntingdonshire District Council,21/08/2014,152424,7711,5,588.74,Lightning Recruitment,CR028184,Head Of Imd,Hired Staff,100
http://statistics.data.gov.uk/id/local-authority/12UE,Huntingdonshire District Council,14/08/2014,152066,7659,5,588.74,Lightning Recruitment,CR028184,Head Of Imd,Hired Staff,100
http://statistics.data.gov.uk/id/local-authority/12UE,Huntingdonshire District Council,14/08/2014,152065,7660,5,484,Lightning Recruitment,CR028184,Head Of Imd,Hired Staff,100
http://statistics.data.gov.uk/id/local-authority/12UE,Huntingdonshire District Council,07/08/2014,151771,7611,5,469.4,Lightning Recruitment,CR028184,Head Of Imd,Hired Staff,100
http://statistics.data.gov.uk/id/local-authority/12UE,Huntingdonshire District Council,07/08/2014,151766,7612,5,490.62,Lightning Recruitment,CR028184,Head Of Imd,Hired Staff,100
http://statistics.data.gov.uk/id/local-authority/12UE,Huntingdonshire District Council,24/07/2014,151223,7555,5,291.72,Lightning Recruitment,CR028184,Head Of Imd,Hired Staff,100
http://statistics.data.gov.uk/id/local-authority/12UE,Huntingdonshire District Council,24/07/2014,151221,7554,5,588.74,Lightning Recruitment,CR028184,Head Of Imd,Hired Staff,100
http://statistics.data.gov.uk/id/local-authority/12UE,Huntingdonshire District Council,24/07/2014,150887,7494,5,588.74,Lightning Recruitment,CR028184,Head Of Imd,Hired Staff,100
http://statistics.data.gov.uk/id/local-authority/12UE,Huntingdonshire District Council,17/07/2014,150794,1102105950,5,9.6,Orange Airtime,CR455799,Head Of Imd,Mobile Telephones & Radios,241
http://statistics.data.gov.uk/id/local-authority/12UE,Huntingdonshire District Council,25/09/2014,155457,55215660,5,"3,182.50",Edrm Systems Ltd,CR416278,Helpdesk,Hired Staff,100
http://statistics.data.gov.uk/id/local-authority/12UE,Huntingdonshire District Council,25/09/2014,155452,923469-045A,5,"8,477.46",Virgin Media Business/Cpsn,CR455148,Helpdesk,I T Line Rental,248
http://statistics.data.gov.uk/id/local-authority/12UE,Huntingdonshire District Council,11/09/2014,155193,1121278068,5,4.78,Orange Airtime,CR455799,Helpdesk,Mobile Telephones & Radios,241
http://statistics.data.gov.uk/id/local-authority/12UE,Huntingdonshire District Council,04/09/2014,154947,R001525,5,774,Premier It Recruitment Ltd,CR454029,Helpdesk,Hired Staff,100
http://statistics.data.gov.uk/id/local-authority/12UE,Huntingdonshire District Council,25/09/2014,154946,R002021,5,258,Premier It Recruitment Ltd,CR454029,Helpdesk,Hired Staff,100
http://statistics.data.gov.uk/id/local-authority/12UE,Huntingdonshire District Council,18/09/2014,154945,R002023,5,"1,290.00",Premier It Recruitment Ltd,CR454029,Helpdesk,Hired Staff,100
http://statistics.data.gov.uk/id/local-authority/12UE,Huntingdonshire District Council,25/09/2014,154944,R002022,5,"1,290.00",Premier It Recruitment Ltd,CR454029,Helpdesk,Hired Staff,100
http://statistics.data.gov.uk/id/local-authority/12UE,Huntingdonshire District Council,25/09/2014,154928,101634,5,"2,685.60",Twofold Consulting,CR453929,Helpdesk,Equipment Maintenance,511
http://statistics.data.gov.uk/id/local-authority/12UE,Huntingdonshire District Council,18/09/2014,154561,1980361,5,263.21,Insight Direct Uk Ltd,CR000242,Helpdesk,Other I T Hardware,203
http://statistics.data.gov.uk/id/local-authority/12UE,Huntingdonshire District Council,11/09/2014,154150,R001818,5,"1,032.00",Premier It Recruitment Ltd,CR454029,Helpdesk,Hired Staff,100
http://statistics.data.gov.uk/id/local-authority/12UE,Huntingdonshire District Council,11/09/2014,154149,R001819,5,"1,290.00",Premier It Recruitment Ltd,CR454029,Helpdesk,Hired Staff,100
http://statistics.data.gov.uk/id/local-authority/12UE,Huntingdonshire District Council,18/09/2014,154147,R001923,5,"1,290.00",Premier It Recruitment Ltd,CR454029,Helpdesk,Hired Staff,100
http://statistics.data.gov.uk/id/local-authority/12UE,Huntingdonshire District Council,18/09/2014,154146,R001924,5,"1,290.00",Premier It Recruitment Ltd,CR454029,Helpdesk,Hired Staff,100
http://statistics.data.gov.uk/id/local-authority/12UE,Huntingdonshire District Council,18/09/2014,154144,38381,5,534,Sdi,CR406453,Helpdesk,Training - Other,136
http://statistics.data.gov.uk/id/local-authority/12UE,Huntingdonshire District Council,21/08/2014,154143,25102801,5,"1,490.40",Imtech Aqua Maintenance Ltd,CR422225,Helpdesk,Equipment Maintenance,511
http://statistics.data.gov.uk/id/local-authority/12UE,Huntingdonshire District Council,21/08/2014,153756,128637,5,162.3,The Mammoth Retailgroup Ltd,CR422443,Helpdesk,Protective Clothing & Uniforms,163
http://statistics.data.gov.uk/id/local-authority/12UE,Huntingdonshire District Council,21/08/2014,153756,128637,5,70.8,The Mammoth Retailgroup Ltd,CR422443,Helpdesk,Protective Clothing & Uniforms,163
http://statistics.data.gov.uk/id/local-authority/12UE,Huntingdonshire District Council,21/08/2014,153756,128637,5,126,The Mammoth Retailgroup Ltd,CR422443,Helpdesk,Protective Clothing & Uniforms,163
http://statistics.data.gov.uk/id/local-authority/12UE,Huntingdonshire District Council,21/08/2014,153756,128637,5,110.88,The Mammoth Retailgroup Ltd,CR422443,Helpdesk,Protective Clothing & Uniforms,163
http://statistics.data.gov.uk/id/local-authority/12UE,Huntingdonshire District Council,21/08/2014,153756,128637,5,24,The Mammoth Retailgroup Ltd,CR422443,Helpdesk,Protective Clothing & Uniforms,163
http://statistics.data.gov.uk/id/local-authority/12UE,Huntingdonshire District Council,21/08/2014,153756,128637,5,36.72,The Mammoth Retailgroup Ltd,CR422443,Helpdesk,Protective Clothing & Uniforms,163
http://statistics.data.gov.uk/id/local-authority/12UE,Huntingdonshire District Council,21/08/2014,153756,128637,5,55.08,The Mammoth Retailgroup Ltd,CR422443,Helpdesk,Protective Clothing & Uniforms,163
http://statistics.data.gov.uk/id/local-authority/12UE,Huntingdonshire District Council,21/08/2014,153756,128637,5,34.8,The Mammoth Retailgroup Ltd,CR422443,Helpdesk,Protective Clothing & Uniforms,163
http://statistics.data.gov.uk/id/local-authority/12UE,Huntingdonshire District Council,14/08/2014,153753,102024,5,"2,280.00",It Asset Management Solutions Ltd,CR454032,Helpdesk,Software,206
http://statistics.data.gov.uk/id/local-authority/12UE,Huntingdonshire District Council,14/08/2014,153753,102024,5,"3,869.04",It Asset Management Solutions Ltd,CR454032,Helpdesk,Software,206
http://statistics.data.gov.uk/id/local-authority/12UE,Huntingdonshire District Council,04/09/2014,153749,R001716,5,"1,290.00",Premier It Recruitment Ltd,CR454029,Helpdesk,Hired Staff,100
http://statistics.data.gov.uk/id/local-authority/12UE,Huntingdonshire District Council,04/09/2014,153748,R001715,5,"1,290.00",Premier It Recruitment Ltd,CR454029,Helpdesk,Hired Staff,100
http://statistics.data.gov.uk/id/local-authority/12UE,Huntingdonshire District Council,28/08/2014,153747,R001652,5,"1,032.00",Premier It Recruitment Ltd,CR454029,Helpdesk,Hired Staff,100
http://statistics.data.gov.uk/id/local-authority/12UE,Huntingdonshire District Council,28/08/2014,153746,R001651,5,"1,290.00",Premier It Recruitment Ltd,CR454029,Helpdesk,Hired Staff,100
http://statistics.data.gov.uk/id/local-authority/12UE,Huntingdonshire District Council,28/08/2014,153745,Jul-14,5,"3,852.50",Edrm Systems Ltd,CR416278,Helpdesk,Hired Staff,100
http://statistics.data.gov.uk/id/local-authority/12UE,Huntingdonshire District Council,04/09/2014,153738,7.43E+11,5,"2,014.56",Virgin Media Business,CR033120,Helpdesk,I T Line Rental,240
http://statistics.data.gov.uk/id/local-authority/12UE,Huntingdonshire District Council,04/09/2014,153738,7.43E+11,5,"1,437.02",Virgin Media Business,CR033120,Helpdesk,Telephone Charges,240
http://statistics.data.gov.uk/id/local-authority/12UE,Huntingdonshire District Council,28/08/2014,153736,923469-044A,5,"7,603.73",Virgin Media Business/Cpsn,CR455148,Helpdesk,I T Line Rental,248
http://statistics.data.gov.uk/id/local-authority/12UE,Huntingdonshire District Council,14/08/2014,152751,1111911030,5,4.8,Orange Airtime,CR455799,Helpdesk,Mobile Telephones & Radios,241
http://statistics.data.gov.uk/id/local-authority/12UE,Huntingdonshire District Council,07/08/2014,152469,OP/I730829,5,"2,540.40",Phoenix Software Ltd,CR031918,Helpdesk,Software,206
http://statistics.data.gov.uk/id/local-authority/12UE,Huntingdonshire District Council,17/07/2014,152188,SIN089701,5,"1,290.00",Eacs Ltd,CR404499,Helpdesk,I C T Services,731
http://statistics.data.gov.uk/id/local-authority/12UE,Huntingdonshire District Council,07/08/2014,152187,58919,5,792,Hp Care Pack Sales,CR478055,Helpdesk,Equipment Maintenance,511
http://statistics.data.gov.uk/id/local-authority/12UE,Huntingdonshire District Council,14/08/2014,152184,R001415,5,"1,290.00",Premier It Recruitment Ltd,CR454029,Helpdesk,Hired Staff,100
http://statistics.data.gov.uk/id/local-authority/12UE,Huntingdonshire District Council,07/08/2014,151778,R001196,5,"1,290.00",Premier It Recruitment Ltd,CR454029,Helpdesk,Hired Staff,100
http://statistics.data.gov.uk/id/local-authority/12UE,Huntingdonshire District Council,31/07/2014,151681,742878104/0714,5,"2,014.55",Virgin Media Business,CR033120,Helpdesk,I T Line Rental,240
http://statistics.data.gov.uk/id/local-authority/12UE,Huntingdonshire District Council,31/07/2014,151681,742878104/0714,5,"1,330.62",Virgin Media Business,CR033120,Helpdesk,Telephone Charges,240
http://statistics.data.gov.uk/id/local-authority/12UE,Huntingdonshire District Council,10/07/2014,151658,CONSULTANCY,5,"1,340.00",Edrm Systems Ltd,CR416278,Helpdesk,Hired Staff,100
http://statistics.data.gov.uk/id/local-authority/12UE,Huntingdonshire District Council,31/07/2014,151656,923469-043A,5,"7,770.44",Virgin Media Business/Cpsn,CR455148,Helpdesk,I T Line Rental,248
http://statistics.data.gov.uk/id/local-authority/12UE,Huntingdonshire District Council,31/07/2014,151654,38191,5,714,Sdi,CR406453,Helpdesk,Registration Fee,748
http://statistics.data.gov.uk/id/local-authority/12UE,Huntingdonshire District Council,31/07/2014,151652,UK10/072014/379,5,"2,944.07",Vodafone Cable & Wireless,CR482316,Helpdesk,I T Line Rental,248
http://statistics.data.gov.uk/id/local-authority/12UE,Huntingdonshire District Council,03/07/2014,151296,R000119,5,"1,290.00",Premier It Recruitment Ltd,CR454029,Helpdesk,Hired Staff,100
http://statistics.data.gov.uk/id/local-authority/12UE,Huntingdonshire District Council,03/07/2014,151295,R000419,5,"1,290.00",Premier It Recruitment Ltd,CR454029,Helpdesk,Hired Staff,100
http://statistics.data.gov.uk/id/local-authority/12UE,Huntingdonshire District Council,03/07/2014,151294,R000463,5,"1,290.00",Premier It Recruitment Ltd,CR454029,Helpdesk,Hired Staff,100
http://statistics.data.gov.uk/id/local-authority/12UE,Huntingdonshire District Council,10/07/2014,151293,R0000714,5,"1,290.00",Premier It Recruitment Ltd,CR454029,Helpdesk,Hired Staff,100
http://statistics.data.gov.uk/id/local-authority/12UE,Huntingdonshire District Council,03/07/2014,151292,24842,5,258,Premier It Recruitment Ltd,CR454029,Helpdesk,Hired Staff,100
http://statistics.data.gov.uk/id/local-authority/12UE,Huntingdonshire District Council,31/07/2014,151291,R001166,5,"1,032.00",Premier It Recruitment Ltd,CR454029,Helpdesk,Hired Staff,100
http://statistics.data.gov.uk/id/local-authority/12UE,Huntingdonshire District Council,17/07/2014,150794,1102105950,5,4.8,Orange Airtime,CR455799,Helpdesk,Mobile Telephones & Radios,241
http://statistics.data.gov.uk/id/local-authority/12UE,Huntingdonshire District Council,03/07/2014,150074,742878104/0614,5,"2,014.55",Virgin Media Business,CR033120,Helpdesk,I T Line Rental,248
http://statistics.data.gov.uk/id/local-authority/12UE,Huntingdonshire District Council,03/07/2014,150074,742878104/0614,5,"1,048.39",Virgin Media Business,CR033120,Helpdesk,Telephone Charges,240
http://statistics.data.gov.uk/id/local-authority/12UE,Huntingdonshire District Council,03/07/2014,149971,R000625,5,"1,290.00",Premier It Recruitment Ltd,CR454029,Helpdesk,Hired Staff,100
http://statistics.data.gov.uk/id/local-authority/12UE,Huntingdonshire District Council,25/09/2014,156179,23.09.14,5,624,Alexanders,CR415843,Homelessness Management,Removal/Storage,750
http://statistics.data.gov.uk/id/local-authority/12UE,Huntingdonshire District Council,04/09/2014,154916,28.08.14,5,320.8,Move It Quickly,CR479000,Homelessness Management,Removal/Storage,750
http://statistics.data.gov.uk/id/local-authority/12UE,Huntingdonshire District Council,21/08/2014,154093,19.08.14,5,618.4,Move It Quickly,CR479000,Homelessness Management,Removal/Storage,750
http://statistics.data.gov.uk/id/local-authority/12UE,Huntingdonshire District Council,21/08/2014,154092,19.08.14,5,321.6,Move It Quickly,CR479000,Homelessness Management,Removal/Storage,750
http://statistics.data.gov.uk/id/local-authority/12UE,Huntingdonshire District Council,24/07/2014,152528,8.7.14,5,312,Alexanders,CR415843,Homelessness Management,Removal/Storage,750
http://statistics.data.gov.uk/id/local-authority/12UE,Huntingdonshire District Council,07/08/2014,152077,TUES 08.07.14,5,312,Alexanders,CR415843,Homelessness Management,Removal/Storage,750
http://statistics.data.gov.uk/id/local-authority/12UE,Huntingdonshire District Council,14/08/2014,568740,8266,5,397.8,Steves Taxis & Private Hire,CR155956,Homelessness Management,Travel Expenses,636
http://statistics.data.gov.uk/id/local-authority/12UE,Huntingdonshire District Council,17/07/2014,151602,3015433,5,"18,436.00",Metropolitan Housing Trust Ltd,CR487206,Hostel Support,Hostel Revenue Support,817
http://statistics.data.gov.uk/id/local-authority/12UE,Huntingdonshire District Council,11/09/2014,155193,1121278068,5,9.6,Orange Airtime,CR455799,Housing  Benefits Admin,Mobile Telephones & Radios,241
http://statistics.data.gov.uk/id/local-authority/12UE,Huntingdonshire District Council,14/08/2014,152751,1111911030,5,9.6,Orange Airtime,CR455799,Housing  Benefits Admin,Mobile Telephones & Radios,241
http://statistics.data.gov.uk/id/local-authority/12UE,Huntingdonshire District Council,14/08/2014,152390,16,5,360,P H F Training,CR411471,Housing  Benefits Admin,Training - Professional,130
http://statistics.data.gov.uk/id/local-authority/12UE,Huntingdonshire District Council,17/07/2014,152056,8509,5,"2,088.00",Its Training Uk Ltd,CR478092,Housing  Benefits Admin,Training - Professional,130
http://statistics.data.gov.uk/id/local-authority/12UE,Huntingdonshire District Council,17/07/2014,150794,1102105950,5,9.6,Orange Airtime,CR455799,Housing  Benefits Admin,Mobile Telephones & Radios,241
http://statistics.data.gov.uk/id/local-authority/12UE,Huntingdonshire District Council,24/07/2014,567227,171295,5,"34,659.00",Cambridge City Council,CR017896,Housing  Benefits Admin,Contribution (Paid Out),810
http://statistics.data.gov.uk/id/local-authority/12UE,Huntingdonshire District Council,31/07/2014,567837,DINV/202806,6,"34,000.00",South Cambs District Council,CR002825,Housing  Benefits Admin,Contribution (Paid Out),810
http://statistics.data.gov.uk/id/local-authority/12UE,Huntingdonshire District Council,04/09/2014,153822,HDC 2014-08,5,"1,680.00",Kelsall Consultancy Ltd,CR422497,Housing Associations,Consultants,711
http://statistics.data.gov.uk/id/local-authority/12UE,Huntingdonshire District Council,11/09/2014,155193,1121278068,5,19.2,Orange Airtime,CR455799,Housing Management Units,Mobile Telephones & Radios,241
http://statistics.data.gov.uk/id/local-authority/12UE,Huntingdonshire District Council,04/09/2014,154094,24555,5,521.71,Cintra Ltd,CR028441,Housing Management Units,Translation Services,766
http://statistics.data.gov.uk/id/local-authority/12UE,Huntingdonshire District Council,14/08/2014,153720,10388,5,708,Lime Legal Limited,CR415412,Housing Management Units,Training - Operational,131
http://statistics.data.gov.uk/id/local-authority/12UE,Huntingdonshire District Council,14/08/2014,152751,1111911030,5,19.2,Orange Airtime,CR455799,Housing Management Units,Mobile Telephones & Radios,241
http://statistics.data.gov.uk/id/local-authority/12UE,Huntingdonshire District Council,17/07/2014,150794,1102105950,5,19.2,Orange Airtime,CR455799,Housing Management Units,Mobile Telephones & Radios,241
http://statistics.data.gov.uk/id/local-authority/12UE,Huntingdonshire District Council,25/09/2014,155775,1123639652,5,"5,348.96",Anglian Water,CR000071,Housing Services Other,Water,432
http://statistics.data.gov.uk/id/local-authority/12UE,Huntingdonshire District Council,18/09/2014,155616,481291201,5,"1,034.16",Swalec,CR407130,Housing Services Other,Electricity,420
http://statistics.data.gov.uk/id/local-authority/12UE,Huntingdonshire District Council,21/08/2014,153727,481291201,5,"1,065.30",Swalec,CR407130,Housing Services Other,Electricity,420
http://statistics.data.gov.uk/id/local-authority/12UE,Huntingdonshire District Council,14/08/2014,152535,2806,5,"1,188.00",Luminus Homes,CR401276,Housing Services Other,Gen Building Mtce - Responsive,303
http://statistics.data.gov.uk/id/local-authority/12UE,Huntingdonshire District Council,14/08/2014,152534,2807,5,715.42,Luminus Homes,CR401276,Housing Services Other,Gen Building Mtce - Responsive,303
http://statistics.data.gov.uk/id/local-authority/12UE,Huntingdonshire District Council,14/08/2014,152533,2804,5,357.52,Luminus Homes,CR401276,Housing Services Other,Gen Building Mtce - Responsive,303
http://statistics.data.gov.uk/id/local-authority/12UE,Huntingdonshire District Council,14/08/2014,152532,2805,5,"2,644.00",Luminus Homes,CR401276,Housing Services Other,Gen Building Mtce - Responsive,303
http://statistics.data.gov.uk/id/local-authority/12UE,Huntingdonshire District Council,24/07/2014,152313,481291201,5,713.16,Swalec,CR407130,Housing Services Other,Electricity,420
http://statistics.data.gov.uk/id/local-authority/12UE,Huntingdonshire District Council,24/07/2014,151274,DIHH/00002797,5,"6,805.33",Luminus Homes,CR401276,Housing Services Other,Management Charge,733
http://statistics.data.gov.uk/id/local-authority/12UE,Huntingdonshire District Council,07/08/2014,152078,171913,5,"21,420.00",Cambridge City Council,CR017896,Housing Surveys,Contribution (Paid Out),810
http://statistics.data.gov.uk/id/local-authority/12UE,Huntingdonshire District Council,25/09/2014,156216,C-0001944034,5,"5,288.16",Computershare Vouchers Ltd,CR412205,Human Resources,Childcare Admin Vouchers,144
http://statistics.data.gov.uk/id/local-authority/12UE,Huntingdonshire District Council,25/09/2014,155334,112963,5,"1,260.00",Rsa Environmental Health Limited,CR482415,Human Resources,Consultants,711
http://statistics.data.gov.uk/id/local-authority/12UE,Huntingdonshire District Council,11/09/2014,155193,1121278068,5,14.4,Orange Airtime,CR455799,Human Resources,Mobile Telephones & Radios,241
http://statistics.data.gov.uk/id/local-authority/12UE,Huntingdonshire District Council,18/09/2014,155023,10550031,5,"109,200.00",Cambridgeshire County Council,CR006678,Human Resources,Human Resources Services,772
http://statistics.data.gov.uk/id/local-authority/12UE,Huntingdonshire District Council,04/09/2014,154063,9138487,6,600,East Of England Governemnt Association,CR455720,Human Resources,Human Resources Services,779
http://statistics.data.gov.uk/id/local-authority/12UE,Huntingdonshire District Council,31/07/2014,152945,9133302,6,300,East Of England Governemnt Association,CR455720,Human Resources,Human Resources Services,779
http://statistics.data.gov.uk/id/local-authority/12UE,Huntingdonshire District Council,31/07/2014,152773,1706601,5,"6,841.48",Computershare Vouchers Ltd,CR412205,Human Resources,Childcare Admin Vouchers,144
http://statistics.data.gov.uk/id/local-authority/12UE,Huntingdonshire District Council,14/08/2014,152751,1111911030,5,14.4,Orange Airtime,CR455799,Human Resources,Mobile Telephones & Radios,241
http://statistics.data.gov.uk/id/local-authority/12UE,Huntingdonshire District Council,14/08/2014,152570,112912,5,840,Rsa Environmental Health Limited,CR482415,Human Resources,Consultants,711
http://statistics.data.gov.uk/id/local-authority/12UE,Huntingdonshire District Council,24/07/2014,152064,112868,5,840,Rsa Environmental Health Limited,CR482415,Human Resources,Consultants,711
http://statistics.data.gov.uk/id/local-authority/12UE,Huntingdonshire District Council,07/08/2014,152026,137615,5,"4,780.55",Hinchingbrooke Healthcare Nhs,CR003003,Human Resources,Medical Fees,734
http://statistics.data.gov.uk/id/local-authority/12UE,Huntingdonshire District Council,17/07/2014,150794,1102105950,5,14.4,Orange Airtime,CR455799,Human Resources,Mobile Telephones & Radios,241
http://statistics.data.gov.uk/id/local-authority/12UE,Huntingdonshire District Council,25/09/2014,154928,101634,5,"9,960.00",Twofold Consulting,CR453929,I T Capital,Other I T Hardware,203
http://statistics.data.gov.uk/id/local-authority/12UE,Huntingdonshire District Council,14/08/2014,152471,OP/I731415,5,"2,122.80",Phoenix Software Ltd,CR031918,I T Capital,Software,206
http://statistics.data.gov.uk/id/local-authority/12UE,Huntingdonshire District Council,31/07/2014,151297,115621,5,"1,290.00",It Talent Solutions Ltd,CR482676,I T Capital,Hired Staff,100
http://statistics.data.gov.uk/id/local-authority/12UE,Huntingdonshire District Council,03/07/2014,151112,INV69915,5,"2,390.11",Software Box Limited,CR422303,I T Capital,Software,206
http://statistics.data.gov.uk/id/local-authority/12UE,Huntingdonshire District Council,03/07/2014,151111,INV70048,5,"1,651.62",Software Box Limited,CR422303,I T Capital,Software,206
http://statistics.data.gov.uk/id/local-authority/12UE,Huntingdonshire District Council,03/07/2014,151111,INV70048,5,37.06,Software Box Limited,CR422303,I T Capital,Software,206
http://statistics.data.gov.uk/id/local-authority/12UE,Huntingdonshire District Council,03/07/2014,150897,115580,5,"1,032.00",It Talent Solutions Ltd,CR482676,I T Capital,Hired Staff,100
http://statistics.data.gov.uk/id/local-authority/12UE,Huntingdonshire District Council,17/07/2014,150792,14546,5,160.57,Khipu Networks Ltd,CR482348,I T Capital,Other I T Hardware,203
http://statistics.data.gov.uk/id/local-authority/12UE,Huntingdonshire District Council,17/07/2014,150791,14545,5,481.72,Khipu Networks Ltd,CR482348,I T Capital,Other I T Hardware,203
http://statistics.data.gov.uk/id/local-authority/12UE,Huntingdonshire District Council,10/07/2014,150652,OP/L860559,5,"2,299.50",Scc,CR409247,I T Capital,P C'S And Accessories,201
http://statistics.data.gov.uk/id/local-authority/12UE,Huntingdonshire District Council,03/07/2014,150651,OP/L859355,5,294,Scc,CR409247,I T Capital,P C'S And Accessories,201
http://statistics.data.gov.uk/id/local-authority/12UE,Huntingdonshire District Council,03/07/2014,150651,OP/L859355,5,"3,559.50",Scc,CR409247,I T Capital,P C'S And Accessories,201
http://statistics.data.gov.uk/id/local-authority/12UE,Huntingdonshire District Council,17/07/2014,150456,115502,5,"1,290.00",It Talent Solutions Ltd,CR482676,I T Capital,Hired Staff,100
http://statistics.data.gov.uk/id/local-authority/12UE,Huntingdonshire District Council,03/07/2014,150455,2014210,5,"1,560.00",Modern Mindset Ltd,CR482623,I T Capital,Software,206
http://statistics.data.gov.uk/id/local-authority/12UE,Huntingdonshire District Council,10/07/2014,150454,115440,5,774,It Talent Solutions Ltd,CR482676,I T Capital,Hired Staff,100
http://statistics.data.gov.uk/id/local-authority/12UE,Huntingdonshire District Council,03/07/2014,149974,115378,5,"1,032.00",It Talent Solutions Ltd,CR482676,I T Capital,Hired Staff,100
http://statistics.data.gov.uk/id/local-authority/12UE,Huntingdonshire District Council,03/07/2014,149973,115379,5,630,It Talent Solutions Ltd,CR482676,I T Capital,Hired Staff,100
http://statistics.data.gov.uk/id/local-authority/12UE,Huntingdonshire District Council,10/07/2014,150425,14520,5,963.43,Khipu Networks Ltd,CR482348,Imd Trading,Network Hardware,205
http://statistics.data.gov.uk/id/local-authority/12UE,Huntingdonshire District Council,17/07/2014,567234,OP/I082535,5,640,Total Hygiene Ltd,CR083280,Improvement Grants,Mandatory Grants,801
http://statistics.data.gov.uk/id/local-authority/12UE,Huntingdonshire District Council,03/07/2014,567237,OP/I081227,5,"3,515.00",Total Hygiene Ltd,CR083280,Improvement Grants,Mandatory Grants,801
http://statistics.data.gov.uk/id/local-authority/12UE,Huntingdonshire District Council,24/07/2014,567238,74596,5,"2,650.00",Ems Lifts Ltd,CR479724,Improvement Grants,Mandatory Grants,801
http://statistics.data.gov.uk/id/local-authority/12UE,Huntingdonshire District Council,11/09/2014,155002,I94715,5,310.51,Glazewing,CR482665,Industrial Properties,Equipment Hire,507
http://statistics.data.gov.uk/id/local-authority/12UE,Huntingdonshire District Council,25/09/2014,154839,7409,5,"2,100.00",Playfords Ltd,CR479055,Industrial Properties,Gen Building Mtce - Responsive,303
http://statistics.data.gov.uk/id/local-authority/12UE,Huntingdonshire District Council,04/09/2014,153572,7309/21558,5,825,Roofing Contractors (Cambridge) Ltd,CR422450,Industrial Properties,Gen Building Mtce - Responsive,303
http://statistics.data.gov.uk/id/local-authority/12UE,Huntingdonshire District Council,07/08/2014,153205,19H006,5,"31,513.83",Zurich Municipal,CR477397,Industrial Properties,Ins (Service Related),260
http://statistics.data.gov.uk/id/local-authority/12UE,Huntingdonshire District Council,31/07/2014,152948,90164480,5,"13,386.83",Mouchel,CR408939,Industrial Properties,Consultants,711
http://statistics.data.gov.uk/id/local-authority/12UE,Huntingdonshire District Council,11/09/2014,155193,1121278068,5,9.6,Orange Airtime,CR455799,Information Manager,Mobile Telephones & Radios,241
http://statistics.data.gov.uk/id/local-authority/12UE,Huntingdonshire District Council,14/08/2014,152751,1111911030,5,9.6,Orange Airtime,CR455799,Information Manager,Mobile Telephones & Radios,241
http://statistics.data.gov.uk/id/local-authority/12UE,Huntingdonshire District Council,07/08/2014,152111,10542075,5,"3,360.00",Cambridgeshire County Council,CR017440,Information Manager,Subcontractors,777
http://statistics.data.gov.uk/id/local-authority/12UE,Huntingdonshire District Council,07/08/2014,152105,10542071,5,"1,680.00",Cambridgeshire County Council,CR017440,Information Manager,Subcontractors,777
http://statistics.data.gov.uk/id/local-authority/12UE,Huntingdonshire District Council,10/07/2014,151680,10521056,5,"1,680.00",Cambridgeshire County Council,CR017440,Information Manager,Subcontractors,777
http://statistics.data.gov.uk/id/local-authority/12UE,Huntingdonshire District Council,17/07/2014,150794,1102105950,5,9.6,Orange Airtime,CR455799,Information Manager,Mobile Telephones & Radios,241
http://statistics.data.gov.uk/id/local-authority/12UE,Huntingdonshire District Council,28/08/2014,568746,LPB0001,2,"1,000.00",Laura Prideaux-Brune,CR477819,Information Manager,Consultants,711
http://statistics.data.gov.uk/id/local-authority/12UE,Huntingdonshire District Council,07/08/2014,153206,19H006,5,"16,160.06",Zurich Municipal,CR477397,Insurance Premium Holding,Ins (Service Related),260
http://statistics.data.gov.uk/id/local-authority/12UE,Huntingdonshire District Council,31/07/2014,152760,CE002204,5,"4,608.88",Jlt Speciality Ltd,CR480345,Insurance Premium Holding,Insurance Fidelity Guarantee,166
http://statistics.data.gov.uk/id/local-authority/12UE,Huntingdonshire District Council,31/07/2014,152759,CE002205,5,"84,535.00",Jlt Speciality Ltd,CR480345,Insurance Premium Holding,Vehicle Insurance,610
http://statistics.data.gov.uk/id/local-authority/12UE,Huntingdonshire District Council,31/07/2014,152758,CE002203,5,"3,477.78",Jlt Speciality Ltd,CR480345,Insurance Premium Holding,Insurance Personal Accident,161
http://statistics.data.gov.uk/id/local-authority/12UE,Huntingdonshire District Council,31/07/2014,152756,T COOK V HDC,5,"1,227.98",Berrymans Lace Mawer,CR409779,Insurance Premium Holding,Insurance Public Liability,160
http://statistics.data.gov.uk/id/local-authority/12UE,Huntingdonshire District Council,25/09/2014,155177,1.00E+13,5,410.96,Martin Brokers (Uk) Plc,CR401616,Interest Paid,Brokers Fees,705
http://statistics.data.gov.uk/id/local-authority/12UE,Huntingdonshire District Council,28/08/2014,154615,14631-0314-000,5,339.73,Icap Europe Ltd,CR403501,Interest Paid,Brokers Fees,705
http://statistics.data.gov.uk/id/local-authority/12UE,Huntingdonshire District Council,28/08/2014,154592,5440319,5,611.1,Tnt Uk Limited,CR002239,Internal Services Holding,Postage,231
http://statistics.data.gov.uk/id/local-authority/12UE,Huntingdonshire District Council,21/08/2014,152842,247894,5,259.17,Plot It,CR455069,Internal Services Holding,Printers,208
http://statistics.data.gov.uk/id/local-authority/12UE,Huntingdonshire District Council,07/08/2014,152549,IN16PS14004696,5,217.34,Whistl,CR479965,Internal Services Holding,Postage,231
http://statistics.data.gov.uk/id/local-authority/12UE,Huntingdonshire District Council,28/08/2014,154368,10541709,5,"17,534.00",Cambridgeshire County Council,CR006678,Land Charges,Other Office Expenses,295
http://statistics.data.gov.uk/id/local-authority/12UE,Huntingdonshire District Council,25/09/2014,156088,6972,5,720,Roger Hyde Limited,CR409426,Leisure Centres Capital,Gen Building Mtce - Planned,304
http://statistics.data.gov.uk/id/local-authority/12UE,Huntingdonshire District Council,25/09/2014,156037,6967,5,"1,320.00",Roger Hyde Limited,CR409426,Leisure Centres Capital,Gen Building Mtce - Planned,304
http://statistics.data.gov.uk/id/local-authority/12UE,Huntingdonshire District Council,25/09/2014,155669,6958,5,"1,140.00",Roger Hyde Limited,CR409426,Leisure Centres Capital,Gen Building Mtce - Planned,304
http://statistics.data.gov.uk/id/local-authority/12UE,Huntingdonshire District Council,18/09/2014,155625,6953,5,"2,754.00",Roger Hyde Limited,CR409426,Leisure Centres Capital,Gen Building Mtce - Planned,304
http://statistics.data.gov.uk/id/local-authority/12UE,Huntingdonshire District Council,18/09/2014,155624,6954,5,"8,280.00",Roger Hyde Limited,CR409426,Leisure Centres Capital,Gen Building Mtce - Planned,304
http://statistics.data.gov.uk/id/local-authority/12UE,Huntingdonshire District Council,29/08/2014,154804,6918,5,"18,300.00",Roger Hyde Limited,CR409426,Leisure Centres Capital,Gen Building Mtce - Planned,304
http://statistics.data.gov.uk/id/local-authority/12UE,Huntingdonshire District Council,21/08/2014,154201,9990537,5,574.78,Nisbets,CR412311,Leisure Centres Capital,Equipment Purchases,500
http://statistics.data.gov.uk/id/local-authority/12UE,Huntingdonshire District Council,24/07/2014,152137,PB10030,5,"114,129.82",R G Carter Peterborough,CR401511,Leisure Centres Capital,Gen Building Mtce - Planned,304
http://statistics.data.gov.uk/id/local-authority/12UE,Huntingdonshire District Council,07/08/2014,152092,SWIM POOL HTD,5,"3,120.00",L J Decorators Ltd,CR455429,Leisure Centres Capital,Gen Building Mtce - Planned,304
http://statistics.data.gov.uk/id/local-authority/12UE,Huntingdonshire District Council,04/09/2014,152041,PB10016,5,"3,883.50",R G Carter Peterborough,CR401511,Leisure Centres Capital,Gen Building Mtce - Planned,304
http://statistics.data.gov.uk/id/local-authority/12UE,Huntingdonshire District Council,17/07/2014,151951,DP/5412,5,576,L J Decorators Ltd,CR455429,Leisure Centres Capital,Gen Building Mtce - Planned,304
http://statistics.data.gov.uk/id/local-authority/12UE,Huntingdonshire District Council,10/07/2014,151261,421080,5,"2,260.80",Heasell Electromechanical Services Ltd,CR422407,Leisure Centres Capital,Gen Building Mtce - Planned,304
http://statistics.data.gov.uk/id/local-authority/12UE,Huntingdonshire District Council,24/07/2014,150750,W1015.99,5,"8,496.00",Burwell Mechanical Services Ltd,CR487234,Leisure Centres Capital,Gen Building Mtce - Planned,304
http://statistics.data.gov.uk/id/local-authority/12UE,Huntingdonshire District Council,11/09/2014,155193,1121278068,5,2.4,Orange Airtime,CR455799,Leisure Centres Overall,Mobile Telephones & Radios,241
http://statistics.data.gov.uk/id/local-authority/12UE,Huntingdonshire District Council,04/09/2014,154140,48714,5,259.2,Huntingdon Live Magazine,CR478621,Leisure Centres Overall,Advertising/Promoting Services,255
http://statistics.data.gov.uk/id/local-authority/12UE,Huntingdonshire District Council,07/08/2014,153282,28812,5,834,Borney (Uk) Ltd,CR144249,Leisure Centres Overall,Advertising/Promoting Services,255
http://statistics.data.gov.uk/id/local-authority/12UE,Huntingdonshire District Council,14/08/2014,153280,300680807,5,102,Yell Limited,CR416111,Leisure Centres Overall,Advertising/Promoting Services,255
http://statistics.data.gov.uk/id/local-authority/12UE,Huntingdonshire District Council,14/08/2014,153279,200,5,255,Think Local Magazine,CR422309,Leisure Centres Overall,Advertising/Promoting Services,255
http://statistics.data.gov.uk/id/local-authority/12UE,Huntingdonshire District Council,28/08/2014,153117,59485226,5,264,Local World Ltd,CR000072,Leisure Centres Overall,Advertising/Promoting Services,255
http://statistics.data.gov.uk/id/local-authority/12UE,Huntingdonshire District Council,21/08/2014,152782,59450700,5,420,Local World Ltd,CR000072,Leisure Centres Overall,Advertising/Promoting Services,255
http://statistics.data.gov.uk/id/local-authority/12UE,Huntingdonshire District Council,14/08/2014,152751,1111911030,5,2.4,Orange Airtime,CR455799,Leisure Centres Overall,Mobile Telephones & Radios,241
http://statistics.data.gov.uk/id/local-authority/12UE,Huntingdonshire District Council,24/07/2014,152013,54720891,5,270,Archant Herts & Cambs,CR415764,Leisure Centres Overall,Advertising/Promoting Services,255
http://statistics.data.gov.uk/id/local-authority/12UE,Huntingdonshire District Council,24/07/2014,152010,65882,5,660,Marketing Force Limited,CR478596,Leisure Centres Overall,Advertising/Promoting Services,255
http://statistics.data.gov.uk/id/local-authority/12UE,Huntingdonshire District Council,24/07/2014,151772,36071,5,367,Clanpress King'S Lynn Ltd,CR413516,Leisure Centres Overall,Printing (External),220
http://statistics.data.gov.uk/id/local-authority/12UE,Huntingdonshire District Council,17/07/2014,150794,1102105950,5,2.4,Orange Airtime,CR455799,Leisure Centres Overall,Mobile Telephones & Radios,241
http://statistics.data.gov.uk/id/local-authority/12UE,Huntingdonshire District Council,11/09/2014,155219,103,5,135,Huntingdon Gymnastics Club,CR478042,Leisure Development,Hire Of Rooms,411
http://statistics.data.gov.uk/id/local-authority/12UE,Huntingdonshire District Council,11/09/2014,155219,103,5,270,Huntingdon Gymnastics Club,CR478042,Leisure Development,Instructors/Tutors,720
http://statistics.data.gov.uk/id/local-authority/12UE,Huntingdonshire District Council,18/09/2014,155215,8,5,"1,000.00",Paxton Lakes Sailing Club,CR406534,Leisure Development,Instructors/Tutors,720
http://statistics.data.gov.uk/id/local-authority/12UE,Huntingdonshire District Council,18/09/2014,155215,8,5,178.75,Paxton Lakes Sailing Club,CR406534,Leisure Development,Licences,730
http://statistics.data.gov.uk/id/local-authority/12UE,Huntingdonshire District Council,18/09/2014,155214,9,5,125,Paxton Lakes Sailing Club,CR406534,Leisure Development,Hire Of Rooms,411
http://statistics.data.gov.uk/id/local-authority/12UE,Huntingdonshire District Council,18/09/2014,155214,9,5,500,Paxton Lakes Sailing Club,CR406534,Leisure Development,Instructors/Tutors,720
http://statistics.data.gov.uk/id/local-authority/12UE,Huntingdonshire District Council,11/09/2014,155193,1121278068,5,26.4,Orange Airtime,CR455799,Leisure Development,Mobile Telephones & Radios,241
http://statistics.data.gov.uk/id/local-authority/12UE,Huntingdonshire District Council,25/09/2014,155191,KCL-IS01620/201,5,270,Kiddles Coaches,CR093235,Leisure Development,Vehicle Hire,607
http://statistics.data.gov.uk/id/local-authority/12UE,Huntingdonshire District Council,18/09/2014,154887,1,5,375,Southlake Ski School,CR422517,Leisure Development,Instructors/Tutors,720
http://statistics.data.gov.uk/id/local-authority/12UE,Huntingdonshire District Council,18/09/2014,154428,GW14110F,5,512,Grafham Water Centre,CR416894,Leisure Development,Instructors/Tutors,720
http://statistics.data.gov.uk/id/local-authority/12UE,Huntingdonshire District Council,11/09/2014,154036,GW14105F,5,408,Grafham Water Centre,CR416894,Leisure Development,Instructors/Tutors,720
http://statistics.data.gov.uk/id/local-authority/12UE,Huntingdonshire District Council,11/09/2014,153936,36315,5,374,Clanpress King'S Lynn Ltd,CR413516,Leisure Development,Printing (External),220
http://statistics.data.gov.uk/id/local-authority/12UE,Huntingdonshire District Council,07/08/2014,153277,16899,5,"1,200.00",Swan Print Ltd,CR413699,Leisure Development,Printing (External),220
http://statistics.data.gov.uk/id/local-authority/12UE,Huntingdonshire District Council,14/08/2014,152751,1111911030,5,31.92,Orange Airtime,CR455799,Leisure Development,Mobile Telephones & Radios,241
http://statistics.data.gov.uk/id/local-authority/12UE,Huntingdonshire District Council,17/07/2014,150794,1102105950,5,21.6,Orange Airtime,CR455799,Leisure Development,Mobile Telephones & Radios,241
http://statistics.data.gov.uk/id/local-authority/12UE,Huntingdonshire District Council,10/07/2014,150721,7,5,500,Paxton Lakes Sailing Club,CR406534,Leisure Development,Instructors/Tutors,720
http://statistics.data.gov.uk/id/local-authority/12UE,Huntingdonshire District Council,10/07/2014,150721,7,5,178.75,Paxton Lakes Sailing Club,CR406534,Leisure Development,Licences,730
http://statistics.data.gov.uk/id/local-authority/12UE,Huntingdonshire District Council,11/09/2014,569829,123,5,165,Abbotsley Golf & Squash Club Limited,CR170095,Leisure Development,Hire Of Rooms,411
http://statistics.data.gov.uk/id/local-authority/12UE,Huntingdonshire District Council,11/09/2014,569829,123,5,220,Abbotsley Golf & Squash Club Limited,CR170095,Leisure Development,Instructors/Tutors,720
http://statistics.data.gov.uk/id/local-authority/12UE,Huntingdonshire District Council,25/09/2014,155309,501,5,527.4,Mo'S Motors,CR406493,Licences,Vehicle Inspection,618
http://statistics.data.gov.uk/id/local-authority/12UE,Huntingdonshire District Council,25/09/2014,155308,82014,5,"1,743.00",T C Harrison Ford,CR405072,Licences,Vehicle Inspection,618
http://statistics.data.gov.uk/id/local-authority/12UE,Huntingdonshire District Council,11/09/2014,155193,1121278068,5,4.8,Orange Airtime,CR455799,Licences,Mobile Telephones & Radios,241
http://statistics.data.gov.uk/id/local-authority/12UE,Huntingdonshire District Council,14/08/2014,153766,91016808,5,750,Serco Ltd,CR481193,Licences,Training - Other,136
http://statistics.data.gov.uk/id/local-authority/12UE,Huntingdonshire District Council,28/08/2014,153411,122042,5,"2,885.60",T C Harrison Ford,CR405072,Licences,Vehicle Inspection,618
http://statistics.data.gov.uk/id/local-authority/12UE,Huntingdonshire District Council,14/08/2014,152751,1111911030,5,4.8,Orange Airtime,CR455799,Licences,Mobile Telephones & Radios,241
http://statistics.data.gov.uk/id/local-authority/12UE,Huntingdonshire District Council,14/08/2014,152394,,5,"1,171.20",Mogo Uk,CR410378,Licences,Licence Plates,564
http://statistics.data.gov.uk/id/local-authority/12UE,Huntingdonshire District Council,14/08/2014,152394,,5,17.88,Mogo Uk,CR410378,Licences,Postage,231
http://statistics.data.gov.uk/id/local-authority/12UE,Huntingdonshire District Council,31/07/2014,151611,62014,5,"1,769.85",T C Harrison Ford,CR405072,Licences,Vehicle Inspection,618
http://statistics.data.gov.uk/id/local-authority/12UE,Huntingdonshire District Council,31/07/2014,151596,I04M24681,5,325.39,Lexisnexis,CR000801,Licences,Books & Publications,250
http://statistics.data.gov.uk/id/local-authority/12UE,Huntingdonshire District Council,17/07/2014,151314,EVE10129,5,594,Institute Of Licensing(Events) Limited,CR480382,Licences,Training - Other,136
http://statistics.data.gov.uk/id/local-authority/12UE,Huntingdonshire District Council,17/07/2014,151313,EVE10122,5,594,Institute Of Licensing(Events) Limited,CR480382,Licences,Training - Other,136
http://statistics.data.gov.uk/id/local-authority/12UE,Huntingdonshire District Council,31/07/2014,151311,D14H90585,5,973.94,Lexisnexis,CR000801,Licences,Books & Publications,250
http://statistics.data.gov.uk/id/local-authority/12UE,Huntingdonshire District Council,31/07/2014,151310,DC4L22287,5,-973.94,Lexisnexis,CR000801,Licences,Books & Publications,250
http://statistics.data.gov.uk/id/local-authority/12UE,Huntingdonshire District Council,17/07/2014,150802,PK076093,5,270,Dods Parliamentary Communications Ltd,CR477923,Licences,Training - Other,136
http://statistics.data.gov.uk/id/local-authority/12UE,Huntingdonshire District Council,17/07/2014,150794,1102105950,5,4.8,Orange Airtime,CR455799,Licences,Mobile Telephones & Radios,241
http://statistics.data.gov.uk/id/local-authority/12UE,Huntingdonshire District Council,25/09/2014,154951,28199033,5,"11,233.20",Aecom,CR478307,Local Development Framework,Consultants,711
http://statistics.data.gov.uk/id/local-authority/12UE,Huntingdonshire District Council,25/09/2014,154951,28199033,5,"33,523.20",Aecom,CR478307,Local Development Framework,Consultants,711
http://statistics.data.gov.uk/id/local-authority/12UE,Huntingdonshire District Council,11/09/2014,569600,10548801,5,"7,670.00",Cambridgeshire County Council,CR006678,Local Development Framework,Consultants,711
http://statistics.data.gov.uk/id/local-authority/12UE,Huntingdonshire District Council,28/08/2014,154550,72724251,5,68.4,Vodafone Limited,CR029120,Managing Directors,Mobile Telephones & Radios,241
http://statistics.data.gov.uk/id/local-authority/12UE,Huntingdonshire District Council,24/07/2014,151542,14/290,5,360,Nabma,CR030578,Markets,Training - Operational,131
http://statistics.data.gov.uk/id/local-authority/12UE,Huntingdonshire District Council,25/09/2014,569851,18818,5,388.5,B. S. Graves Electrical Ltd,CR000363,Markets,Sitework,359
http://statistics.data.gov.uk/id/local-authority/12UE,Huntingdonshire District Council,11/09/2014,155193,1121278068,5,33.6,Orange Airtime,CR455799,Member Allowances & Support,Mobile Telephones & Radios,241
http://statistics.data.gov.uk/id/local-authority/12UE,Huntingdonshire District Council,11/09/2014,155024,1700 3259,6,"10,440.00",East Of England Governemnt Association,CR455720,Member Allowances & Support,Corporate Subscriptions,754
http://statistics.data.gov.uk/id/local-authority/12UE,Huntingdonshire District Council,04/09/2014,154020,DM6071,5,763.43,Link Support Services (Uk) Lts,CR482303,Member Allowances & Support,Training - Professional,130
http://statistics.data.gov.uk/id/local-authority/12UE,Huntingdonshire District Council,04/09/2014,153738,7.43E+11,5,6.9,Virgin Media Business,CR033120,Member Allowances & Support,I T Line Rental,248
http://statistics.data.gov.uk/id/local-authority/12UE,Huntingdonshire District Council,31/07/2014,152824,,5,455,Information Commissioner,CR404972,Member Allowances & Support,Registration Fee,748
http://statistics.data.gov.uk/id/local-authority/12UE,Huntingdonshire District Council,14/08/2014,152751,1111911030,5,33.7,Orange Airtime,CR455799,Member Allowances & Support,Mobile Telephones & Radios,241
http://statistics.data.gov.uk/id/local-authority/12UE,Huntingdonshire District Council,21/07/2014,152363,40136255/56/85,5,"-1,188.00",Lga Conference Account,CR409238,Member Allowances & Support,Conferences,137
http://statistics.data.gov.uk/id/local-authority/12UE,Huntingdonshire District Council,31/07/2014,151681,742878104/0714,5,6.9,Virgin Media Business,CR033120,Member Allowances & Support,I T Line Rental,248
http://statistics.data.gov.uk/id/local-authority/12UE,Huntingdonshire District Council,17/07/2014,150794,1102105950,5,36,Orange Airtime,CR455799,Member Allowances & Support,Mobile Telephones & Radios,241
http://statistics.data.gov.uk/id/local-authority/12UE,Huntingdonshire District Council,03/07/2014,150074,742878104/0614,5,6.9,Virgin Media Business,CR033120,Member Allowances & Support,I T Line Rental,240
http://statistics.data.gov.uk/id/local-authority/12UE,Huntingdonshire District Council,21/07/2014,146927,40136255/56/85,5,"1,188.00",Lga Conference Account,CR409238,Member Allowances & Support,Conferences,137
http://statistics.data.gov.uk/id/local-authority/12UE,Huntingdonshire District Council,25/09/2014,155722,900678608,5,807.04,Portakabin Ltd,CR478566,Miscellaneous Grants,Grants (Paid Out),800
http://statistics.data.gov.uk/id/local-authority/12UE,Huntingdonshire District Council,25/09/2014,155721,900678607,5,850.2,Portakabin Ltd,CR478566,Miscellaneous Grants,Grants (Paid Out),800
http://statistics.data.gov.uk/id/local-authority/12UE,Huntingdonshire District Council,28/08/2014,153558,900675443,5,850.2,Portakabin Ltd,CR416090,Miscellaneous Grants,Hire Of Rooms,411
http://statistics.data.gov.uk/id/local-authority/12UE,Huntingdonshire District Council,28/08/2014,153556,900675444,5,807.04,Portakabin Ltd,CR416090,Miscellaneous Grants,Hire Of Rooms,411
http://statistics.data.gov.uk/id/local-authority/12UE,Huntingdonshire District Council,21/08/2014,152847,18605,5,640.92,B. S. Graves Electrical Ltd,CR000363,Miscellaneous Grants,Gen Building Mtce - Responsive,303
http://statistics.data.gov.uk/id/local-authority/12UE,Huntingdonshire District Council,31/07/2014,151445,900672487,5,850.2,Portakabin Ltd,CR416090,Miscellaneous Grants,Hire Of Rooms,411
http://statistics.data.gov.uk/id/local-authority/12UE,Huntingdonshire District Council,31/07/2014,151444,900672488,5,807.04,Portakabin Ltd,CR416090,Miscellaneous Grants,Hire Of Rooms,411
http://statistics.data.gov.uk/id/local-authority/12UE,Huntingdonshire District Council,24/07/2014,150789,2ND QTR,4,"7,500.00",Hunts Shopmobility,CR429218,Miscellaneous Grants,Grants (Paid Out),800
http://statistics.data.gov.uk/id/local-authority/12UE,Huntingdonshire District Council,24/07/2014,150788,QTR 2,5,"4,750.00",Disability Information Service Huntingdonshir,CR408884,Miscellaneous Grants,Grants (Paid Out),800
http://statistics.data.gov.uk/id/local-authority/12UE,Huntingdonshire District Council,24/07/2014,150774,QTR 2,5,"2,500.00",Care Network,CR477579,Miscellaneous Grants,Grants (Paid Out),800
http://statistics.data.gov.uk/id/local-authority/12UE,Huntingdonshire District Council,24/07/2014,567226,QTR 2 PAYMENT,4,"26,328.88",Rural Cambs Citzens Advice Bureau,CR455454,Miscellaneous Grants,Grants (Paid Out),800
http://statistics.data.gov.uk/id/local-authority/12UE,Huntingdonshire District Council,31/07/2014,568151,,4,500,The Acorn Cancer Support Group,CR422454,Miscellaneous Grants,Grants (Paid Out),800
http://statistics.data.gov.uk/id/local-authority/12UE,Huntingdonshire District Council,07/08/2014,568153,,4,"2,340.00",Ramsey Cricket Club,CR422455,Miscellaneous Grants,Grants (Paid Out),800
http://statistics.data.gov.uk/id/local-authority/12UE,Huntingdonshire District Council,07/08/2014,568194,COMMUNITY CHEST,4,650,Offord Recreation Hut,CR422457,Miscellaneous Grants,Grants (Paid Out),800
http://statistics.data.gov.uk/id/local-authority/12UE,Huntingdonshire District Council,07/08/2014,568195,COMMUNITY CHEST,4,"1,250.00",Rainbow Toddler Group,CR422456,Miscellaneous Grants,Grants (Paid Out),800
http://statistics.data.gov.uk/id/local-authority/12UE,Huntingdonshire District Council,04/09/2014,568717,INV007,4,"1,000.00",Rural Cambs Citzens Advice Bureau,CR455454,Miscellaneous Grants,Grants (Paid Out),800
http://statistics.data.gov.uk/id/local-authority/12UE,Huntingdonshire District Council,14/08/2014,568720,,4,"2,000.00",Bacstage,CR422485,Miscellaneous Grants,Grants (Paid Out),800
http://statistics.data.gov.uk/id/local-authority/12UE,Huntingdonshire District Council,21/08/2014,154095,SCS 22786,5,"14,040.00",Static Caravan (Uk) Ltd,CR422378,Mobile Homes Park Capital,Building Construction,300
http://statistics.data.gov.uk/id/local-authority/12UE,Huntingdonshire District Council,17/07/2014,150469,JBC/25871/4663/,5,"11,260.25",J Breheny Contractors Ltd,CR000314,Mobile Homes Park Capital,Sitework,359
http://statistics.data.gov.uk/id/local-authority/12UE,Huntingdonshire District Council,25/09/2014,154628,228415,5,821,Jacobs,CR422350,N N D R Administration,Bailiffs,703
http://statistics.data.gov.uk/id/local-authority/12UE,Huntingdonshire District Council,11/09/2014,154378,228007,5,303.87,Jacobs,CR422350,N N D R Administration,Bailiffs,703
http://statistics.data.gov.uk/id/local-authority/12UE,Huntingdonshire District Council,18/09/2014,570058,CIEH10388,5,270,REDACTED PERSONAL DATA,CR406609,Nuisances,Training - Operational,131
http://statistics.data.gov.uk/id/local-authority/12UE,Huntingdonshire District Council,17/07/2014,150671,JBC/25867/4663/,5,540,J Breheny Contractors Ltd,CR000314,Oak Tree Health Centre,Sitework,359
http://statistics.data.gov.uk/id/local-authority/12UE,Huntingdonshire District Council,25/09/2014,155805,S141684,5,"1,921.82",Chipside,CR479533,Off Street Parking,Other I T Hardware,203
http://statistics.data.gov.uk/id/local-authority/12UE,Huntingdonshire District Council,25/09/2014,155804,S141685,5,"2,280.00",Chipside,CR479533,Off Street Parking,Software,206
http://statistics.data.gov.uk/id/local-authority/12UE,Huntingdonshire District Council,25/09/2014,155801,4019,5,"1,761.79",Oastlodge Ltd,CR479114,Off Street Parking,Rent,410
http://statistics.data.gov.uk/id/local-authority/12UE,Huntingdonshire District Council,25/09/2014,155737,11695,5,"7,134.12",Jade Security Services Ltd,CR422256,Off Street Parking,Cash Collection,702
http://statistics.data.gov.uk/id/local-authority/12UE,Huntingdonshire District Council,18/09/2014,155435,371226896,5,453.39,Swalec,CR407130,Off Street Parking,Electricity,420
http://statistics.data.gov.uk/id/local-authority/12UE,Huntingdonshire District Council,11/09/2014,155418,11554,5,"7,435.08",Jade Security Services Ltd,CR422256,Off Street Parking,Cash Collection,702
http://statistics.data.gov.uk/id/local-authority/12UE,Huntingdonshire District Council,25/09/2014,155306,96774,5,"3,446.22",Cale Briparc Ltd,CR401137,Off Street Parking,Car Park Machines,522
http://statistics.data.gov.uk/id/local-authority/12UE,Huntingdonshire District Council,11/09/2014,155193,1121278068,5,12,Orange Airtime,CR455799,Off Street Parking,Mobile Telephones & Radios,241
http://statistics.data.gov.uk/id/local-authority/12UE,Huntingdonshire District Council,04/09/2014,154634,441567103,5,"1,707.70",Swalec,CR407130,Off Street Parking,Electricity,420
http://statistics.data.gov.uk/id/local-authority/12UE,Huntingdonshire District Council,25/09/2014,154619,533051,5,840.76,Ecocleen Services Limited,CR406985,Off Street Parking,Building Cleaning Internal,440
http://statistics.data.gov.uk/id/local-authority/12UE,Huntingdonshire District Council,28/08/2014,154550,72724251,5,267.3,Vodafone Limited,CR029120,Off Street Parking,Mobile Telephones & Radios,241
http://statistics.data.gov.uk/id/local-authority/12UE,Huntingdonshire District Council,21/08/2014,154133,1697826,5,"1,587.82",G4s Cashservices Uk Ltd,CR407133,Off Street Parking,Cash Collection,702
http://statistics.data.gov.uk/id/local-authority/12UE,Huntingdonshire District Council,28/08/2014,153193,95863,5,"3,446.22",Cale Briparc Ltd,CR401137,Off Street Parking,Car Park Machines,522
http://statistics.data.gov.uk/id/local-authority/12UE,Huntingdonshire District Council,31/07/2014,152892,94286,5,"3,446.22",Cale Briparc Ltd,CR401137,Off Street Parking,Car Park Machines,522
http://statistics.data.gov.uk/id/local-authority/12UE,Huntingdonshire District Council,31/07/2014,152772,91226466,5,253.09,Swalec,CR407130,Off Street Parking,Electricity,420
http://statistics.data.gov.uk/id/local-authority/12UE,Huntingdonshire District Council,21/08/2014,152754,532305,5,840.76,Ecocleen Services Limited,CR406985,Off Street Parking,Cleaning Materials,443
http://statistics.data.gov.uk/id/local-authority/12UE,Huntingdonshire District Council,14/08/2014,152751,1111911030,5,12,Orange Airtime,CR455799,Off Street Parking,Mobile Telephones & Radios,241
http://statistics.data.gov.uk/id/local-authority/12UE,Huntingdonshire District Council,24/07/2014,152569,11436,5,"6,942.60",Jade Security Services Ltd,CR422256,Off Street Parking,Cash Collection,702
http://statistics.data.gov.uk/id/local-authority/12UE,Huntingdonshire District Council,10/07/2014,151688,321225941,5,267.57,Swalec,CR407130,Off Street Parking,Electricity,420
http://statistics.data.gov.uk/id/local-authority/12UE,Huntingdonshire District Council,10/07/2014,151687,491225588,5,429.42,Swalec,CR407130,Off Street Parking,Electricity,420
http://statistics.data.gov.uk/id/local-authority/12UE,Huntingdonshire District Council,24/07/2014,151450,93505,5,787.32,Cale Briparc Ltd,CR401137,Off Street Parking,Equipment Purchases,500
http://statistics.data.gov.uk/id/local-authority/12UE,Huntingdonshire District Council,17/07/2014,150807,35881,5,450,K-Five Sales Ltd,CR422290,Off Street Parking,Training - Health & Safety,133
http://statistics.data.gov.uk/id/local-authority/12UE,Huntingdonshire District Council,17/07/2014,150794,1102105950,5,12,Orange Airtime,CR455799,Off Street Parking,Mobile Telephones & Radios,241
http://statistics.data.gov.uk/id/local-authority/12UE,Huntingdonshire District Council,17/07/2014,150677,JBC/25862/4663/,5,732.42,J Breheny Contractors Ltd,CR000314,Off Street Parking,Sitework,359
http://statistics.data.gov.uk/id/local-authority/12UE,Huntingdonshire District Council,17/07/2014,150624,JBC/25868/4663/,5,768.66,J Breheny Contractors Ltd,CR000314,Off Street Parking,Sitework,359
http://statistics.data.gov.uk/id/local-authority/12UE,Huntingdonshire District Council,17/07/2014,150602,JBC/25876/4663/,5,480,J Breheny Contractors Ltd,CR000314,Off Street Parking,Sitework,359
http://statistics.data.gov.uk/id/local-authority/12UE,Huntingdonshire District Council,17/07/2014,150467,JBC/25875/4663/,5,820.21,J Breheny Contractors Ltd,CR000314,Off Street Parking,Sitework,359
http://statistics.data.gov.uk/id/local-authority/12UE,Huntingdonshire District Council,18/09/2014,155682,14009923,5,"3,618.00",Technogym Uk Ltd,CR033037,One Leisure Huntingdon,Equipment Purchases,500
http://statistics.data.gov.uk/id/local-authority/12UE,Huntingdonshire District Council,18/09/2014,155620,12489088110,5,"1,188.04",E-On Energy,CR416430,One Leisure Huntingdon,Gas,421
http://statistics.data.gov.uk/id/local-authority/12UE,Huntingdonshire District Council,25/09/2014,155485,INV533495,5,"1,387.50",Ecocleen Services Limited,CR406985,One Leisure Huntingdon,Building Cleaning Internal,440
http://statistics.data.gov.uk/id/local-authority/12UE,Huntingdonshire District Council,18/09/2014,155483,251002,5,230.58,South Lincs Food Service,CR033415,One Leisure Huntingdon,Catering Materials,559
http://statistics.data.gov.uk/id/local-authority/12UE,Huntingdonshire District Council,18/09/2014,155483,251002,5,41.96,South Lincs Food Service,CR033415,One Leisure Huntingdon,Confectionery,572
http://statistics.data.gov.uk/id/local-authority/12UE,Huntingdonshire District Council,18/09/2014,155483,251002,5,16.66,South Lincs Food Service,CR033415,One Leisure Huntingdon,Materials,550
http://statistics.data.gov.uk/id/local-authority/12UE,Huntingdonshire District Council,25/09/2014,155461,11696,5,234.36,Jade Security Services Ltd,CR422256,One Leisure Huntingdon,Cash Collection,702
http://statistics.data.gov.uk/id/local-authority/12UE,Huntingdonshire District Council,18/09/2014,155386,381239505,5,540.96,Swalec,CR407130,One Leisure Huntingdon,Electricity,420
http://statistics.data.gov.uk/id/local-authority/12UE,Huntingdonshire District Council,18/09/2014,155369,12489088970,5,644.9,E-On Energy,CR416430,One Leisure Huntingdon,Gas,421
http://statistics.data.gov.uk/id/local-authority/12UE,Huntingdonshire District Council,25/09/2014,155317,65916,5,"4,463.30",Haven Power Ltd,CR455940,One Leisure Huntingdon,Electricity,420
http://statistics.data.gov.uk/id/local-authority/12UE,Huntingdonshire District Council,25/09/2014,155201,48822,5,356.72,Snackline Direct Ltd,CR478090,One Leisure Huntingdon,Vending Materials,560
http://statistics.data.gov.uk/id/local-authority/12UE,Huntingdonshire District Council,11/09/2014,155193,1121278068,5,4.8,Orange Airtime,CR455799,One Leisure Huntingdon,Mobile Telephones & Radios,241
http://statistics.data.gov.uk/id/local-authority/12UE,Huntingdonshire District Council,18/09/2014,155181,47741,5,287.57,Snackline Direct Ltd,CR478090,One Leisure Huntingdon,Bar Provisions,558
http://statistics.data.gov.uk/id/local-authority/12UE,Huntingdonshire District Council,18/09/2014,155181,47741,5,238.23,Snackline Direct Ltd,CR478090,One Leisure Huntingdon,Confectionery,572
http://statistics.data.gov.uk/id/local-authority/12UE,Huntingdonshire District Council,11/09/2014,155007,404220,5,432,Kidscience Ltd,CR452703,One Leisure Huntingdon,Entertainments Inc Cable Tv,744
http://statistics.data.gov.uk/id/local-authority/12UE,Huntingdonshire District Council,25/09/2014,155004,36420,5,716,Clanpress King'S Lynn Ltd,CR413516,One Leisure Huntingdon,Printing (External),220
http://statistics.data.gov.uk/id/local-authority/12UE,Huntingdonshire District Council,04/09/2014,154872,BD833150,5,669.12,Amari Plastics Plc,CR455931,One Leisure Huntingdon,Gen Building Mtce - Planned,304
http://statistics.data.gov.uk/id/local-authority/12UE,Huntingdonshire District Council,11/09/2014,154857,SIN472141,5,"1,409.88",Corporate Trends,CR415966,One Leisure Huntingdon,Protective Clothing & Uniforms,163
http://statistics.data.gov.uk/id/local-authority/12UE,Huntingdonshire District Council,11/09/2014,154847,SIN472121,5,87.36,Corporate Trends,CR415966,One Leisure Huntingdon,Protective Clothing & Uniforms,163
http://statistics.data.gov.uk/id/local-authority/12UE,Huntingdonshire District Council,28/08/2014,154421,1212588,5,696.4,Burgin Ltd,CR482438,One Leisure Huntingdon,Plant & Equipment Maintenance,380
http://statistics.data.gov.uk/id/local-authority/12UE,Huntingdonshire District Council,11/09/2014,154417,44SI 544142,5,403,Brenntag Uk Ltd,CR015017,One Leisure Huntingdon,Chemicals,551
http://statistics.data.gov.uk/id/local-authority/12UE,Huntingdonshire District Council,11/09/2014,154411,48630,5,227.54,Snackline Direct Ltd,CR478090,One Leisure Huntingdon,Bar Provisions,558
http://statistics.data.gov.uk/id/local-authority/12UE,Huntingdonshire District Council,11/09/2014,154411,48630,5,58.16,Snackline Direct Ltd,CR478090,One Leisure Huntingdon,Confectionery,572
http://statistics.data.gov.uk/id/local-authority/12UE,Huntingdonshire District Council,18/09/2014,154406,9215,5,770.27,Roger Wilson Electronics,CR028041,One Leisure Huntingdon,Gen Building Mtce - Planned,304
http://statistics.data.gov.uk/id/local-authority/12UE,Huntingdonshire District Council,04/09/2014,154395,9217,5,407.76,Roger Wilson Electronics,CR028041,One Leisure Huntingdon,Gen Building Mtce - Planned,304
http://statistics.data.gov.uk/id/local-authority/12UE,Huntingdonshire District Council,04/09/2014,154062,48376,5,257.93,Snackline Direct Ltd,CR478090,One Leisure Huntingdon,Vending Materials,560
http://statistics.data.gov.uk/id/local-authority/12UE,Huntingdonshire District Council,11/09/2014,154053,1436,5,174.42,South East Sport Services,CR479901,One Leisure Huntingdon,Equipment Maintenance,511
http://statistics.data.gov.uk/id/local-authority/12UE,Huntingdonshire District Council,21/08/2014,154038,3025659390,5,487.2,Boc,CR027641,One Leisure Huntingdon,Equipment Hire,507
http://statistics.data.gov.uk/id/local-authority/12UE,Huntingdonshire District Council,04/09/2014,154001,22466,5,276,County Security Services Ltd,CR422439,One Leisure Huntingdon,Equipment Maintenance,511
http://statistics.data.gov.uk/id/local-authority/12UE,Huntingdonshire District Council,28/08/2014,153778,73557,5,137.22,Gladstone Mrm,CR405717,One Leisure Huntingdon,Training - Operational,131
http://statistics.data.gov.uk/id/local-authority/12UE,Huntingdonshire District Council,25/09/2014,153777,SUP0002750,5,"14,166.00",Gladstone Mrm,CR405717,One Leisure Huntingdon,Software,206
http://statistics.data.gov.uk/id/local-authority/12UE,Huntingdonshire District Council,04/09/2014,153767,13580,5,99.6,Bigprinting,CR416383,One Leisure Huntingdon,Printing (External),220
http://statistics.data.gov.uk/id/local-authority/12UE,Huntingdonshire District Council,04/09/2014,153738,7.43E+11,5,1.31,Virgin Media Business,CR033120,One Leisure Huntingdon,Telephone Charges,248
http://statistics.data.gov.uk/id/local-authority/12UE,Huntingdonshire District Council,28/08/2014,153734,11528,5,301.32,Jade Security Services Ltd,CR422256,One Leisure Huntingdon,Cash Collection,702
http://statistics.data.gov.uk/id/local-authority/12UE,Huntingdonshire District Council,21/08/2014,153670,381239505,5,"1,095.27",Swalec,CR407130,One Leisure Huntingdon,Electricity,420
http://statistics.data.gov.uk/id/local-authority/12UE,Huntingdonshire District Council,18/09/2014,153649,357354,5,"1,342.04",Swimrite Supplies Ltd (Srs Leisure),CR478711,One Leisure Huntingdon,Materials For Resale,570
http://statistics.data.gov.uk/id/local-authority/12UE,Huntingdonshire District Council,21/08/2014,153644,40676,5,324,Technical Surfaces Ltd,CR031941,One Leisure Huntingdon,Grounds Mtce Contractors,351
http://statistics.data.gov.uk/id/local-authority/12UE,Huntingdonshire District Council,28/08/2014,153640,INV532771,5,"1,387.50",Ecocleen Services Limited,CR406985,One Leisure Huntingdon,Building Cleaning Internal,440
http://statistics.data.gov.uk/id/local-authority/12UE,Huntingdonshire District Council,28/08/2014,153638,37065,5,564,Csl Group,CR406172,One Leisure Huntingdon,Equipment Maintenance,511
http://statistics.data.gov.uk/id/local-authority/12UE,Huntingdonshire District Council,04/09/2014,153633,352759,5,141.6,Uk Point Of Sale Group Ltd,CR478991,One Leisure Huntingdon,Stationery,225
http://statistics.data.gov.uk/id/local-authority/12UE,Huntingdonshire District Council,14/08/2014,153583,12489088970,5,618.23,E-On Energy,CR416430,One Leisure Huntingdon,Gas,421
http://statistics.data.gov.uk/id/local-authority/12UE,Huntingdonshire District Council,14/08/2014,153578,12489088110,5,"3,991.39",E-On Energy,CR416430,One Leisure Huntingdon,Gas,421
http://statistics.data.gov.uk/id/local-authority/12UE,Huntingdonshire District Council,28/08/2014,153418,25714,5,52.2,Prime Option,CR455404,One Leisure Huntingdon,Direct Banking Service,768
http://statistics.data.gov.uk/id/local-authority/12UE,Huntingdonshire District Council,21/08/2014,153388,65916,5,"4,753.29",Haven Power Ltd,CR455940,One Leisure Huntingdon,Electricity,420
http://statistics.data.gov.uk/id/local-authority/12UE,Huntingdonshire District Council,14/08/2014,153351,14009119,5,767.86,Technogym Uk Ltd,CR033037,One Leisure Huntingdon,Equipment Maintenance,511
http://statistics.data.gov.uk/id/local-authority/12UE,Huntingdonshire District Council,04/09/2014,153349,352314,5,187.2,Uk Point Of Sale Group Ltd,CR478991,One Leisure Huntingdon,Advertising/Promoting Services,255
http://statistics.data.gov.uk/id/local-authority/12UE,Huntingdonshire District Council,21/08/2014,153339,6015695,5,268.32,Healthclub Partners (Rudy Technoligies Ltd),CR030379,One Leisure Huntingdon,Chemicals,551
http://statistics.data.gov.uk/id/local-authority/12UE,Huntingdonshire District Council,28/08/2014,153285,66642,5,840,Marketing Force Limited,CR478596,One Leisure Huntingdon,Advertising/Promoting Services,255
http://statistics.data.gov.uk/id/local-authority/12UE,Huntingdonshire District Council,14/08/2014,153280,300680807,5,102,Yell Limited,CR416111,One Leisure Huntingdon,Advertising/Promoting Services,255
http://statistics.data.gov.uk/id/local-authority/12UE,Huntingdonshire District Council,07/08/2014,153277,16899,5,755,Swan Print Ltd,CR413699,One Leisure Huntingdon,Printing (External),220
http://statistics.data.gov.uk/id/local-authority/12UE,Huntingdonshire District Council,28/08/2014,153256,23868,5,59.4,Pro-Ad Ltd,CR453959,One Leisure Huntingdon,Materials For Resale,570
http://statistics.data.gov.uk/id/local-authority/12UE,Huntingdonshire District Council,14/08/2014,153122,36193,5,572,Clanpress King'S Lynn Ltd,CR413516,One Leisure Huntingdon,Printing (External),220
http://statistics.data.gov.uk/id/local-authority/12UE,Huntingdonshire District Council,21/08/2014,152917,30908,5,329.94,Pulse Fitness Limited,CR422466,One Leisure Huntingdon,Equipment Maintenance,511
http://statistics.data.gov.uk/id/local-authority/12UE,Huntingdonshire District Council,07/08/2014,152783,59352669,5,150,Local World Ltd,CR000072,One Leisure Huntingdon,Advertising/Promoting Services,255
http://statistics.data.gov.uk/id/local-authority/12UE,Huntingdonshire District Council,14/08/2014,152751,1111911030,5,4.8,Orange Airtime,CR455799,One Leisure Huntingdon,Mobile Telephones & Radios,241
http://statistics.data.gov.uk/id/local-authority/12UE,Huntingdonshire District Council,14/08/2014,152505,2112258,5,264.02,Glaxosmithkline,CR010424,One Leisure Huntingdon,Vending Materials,560
http://statistics.data.gov.uk/id/local-authority/12UE,Huntingdonshire District Council,14/08/2014,152450,47739,5,297.65,Snackline Direct Ltd,CR478090,One Leisure Huntingdon,Vending Materials,560
http://statistics.data.gov.uk/id/local-authority/12UE,Huntingdonshire District Council,07/08/2014,152379,4444,5,270,Link Into Leisure Ltd,CR422446,One Leisure Huntingdon,Training - Operational,131
http://statistics.data.gov.uk/id/local-authority/12UE,Huntingdonshire District Council,24/07/2014,152377,BD832985,5,275.82,Amari Plastics Plc,CR455931,One Leisure Huntingdon,Gen Building Mtce - Planned,304
http://statistics.data.gov.uk/id/local-authority/12UE,Huntingdonshire District Council,24/07/2014,152375,BD832976,5,776.77,Amari Plastics Plc,CR455931,One Leisure Huntingdon,Gen Building Mtce - Planned,304
http://statistics.data.gov.uk/id/local-authority/12UE,Huntingdonshire District Council,31/07/2014,152368,44SI 543125,5,584.28,Brenntag Uk Ltd,CR015017,One Leisure Huntingdon,Chemicals,551
http://statistics.data.gov.uk/id/local-authority/12UE,Huntingdonshire District Council,14/08/2014,152358,73469,5,"1,368.00",Gladstone Mrm,CR405717,One Leisure Huntingdon,Equipment Hire,507
http://statistics.data.gov.uk/id/local-authority/12UE,Huntingdonshire District Council,14/08/2014,152358,73469,5,"2,160.00",Gladstone Mrm,CR405717,One Leisure Huntingdon,Licences,507
http://statistics.data.gov.uk/id/local-authority/12UE,Huntingdonshire District Council,14/08/2014,152324,73385,5,432,Gladstone Mrm,CR405717,One Leisure Huntingdon,Other I T Hardware,203
http://statistics.data.gov.uk/id/local-authority/12UE,Huntingdonshire District Council,24/07/2014,152317,103528071,5,"1,918.60",Anglian Water,CR000071,One Leisure Huntingdon,Sewerage,433
http://statistics.data.gov.uk/id/local-authority/12UE,Huntingdonshire District Council,24/07/2014,152317,103528071,5,"1,824.83",Anglian Water,CR000071,One Leisure Huntingdon,Water,432
http://statistics.data.gov.uk/id/local-authority/12UE,Huntingdonshire District Council,24/07/2014,152316,110638988,5,"1,135.08",Anglian Water,CR000071,One Leisure Huntingdon,Water,432
http://statistics.data.gov.uk/id/local-authority/12UE,Huntingdonshire District Council,24/07/2014,152175,5105852,5,511.2,Integrated Water Services Ltd,CR452140,One Leisure Huntingdon,Gen Building Mtce - Planned,304
http://statistics.data.gov.uk/id/local-authority/12UE,Huntingdonshire District Council,24/07/2014,152097,11437,5,301.32,Jade Security Services Ltd,CR422256,One Leisure Huntingdon,Cash Collection,702
http://statistics.data.gov.uk/id/local-authority/12UE,Huntingdonshire District Council,07/08/2014,152090,1045,5,"1,740.00",Coolsparks Limited,CR455138,One Leisure Huntingdon,Equipment Purchases,500
http://statistics.data.gov.uk/id/local-authority/12UE,Huntingdonshire District Council,24/07/2014,152088,373,5,990.79,Chris Robinson T/A Cr Design,CR416482,One Leisure Huntingdon,Gen Building Mtce - Planned,304
http://statistics.data.gov.uk/id/local-authority/12UE,Huntingdonshire District Council,24/07/2014,152087,9200,5,426.48,Roger Wilson Electronics,CR028041,One Leisure Huntingdon,Gen Building Mtce - Planned,304
http://statistics.data.gov.uk/id/local-authority/12UE,Huntingdonshire District Council,17/07/2014,152032,12489088110,5,"4,123.38",E-On Energy,CR416430,One Leisure Huntingdon,Gas,421
http://statistics.data.gov.uk/id/local-authority/12UE,Huntingdonshire District Council,17/07/2014,152031,12489088970,5,651.12,E-On Energy,CR416430,One Leisure Huntingdon,Gas,421
http://statistics.data.gov.uk/id/local-authority/12UE,Huntingdonshire District Council,17/07/2014,152027,14005227,5,"3,804.00",Technogym Uk Ltd,CR033037,One Leisure Huntingdon,Software,206
http://statistics.data.gov.uk/id/local-authority/12UE,Huntingdonshire District Council,31/07/2014,152021,306,5,"1,194.00",Milk Leisure Ltd,CR455268,One Leisure Huntingdon,Gen Building Mtce - Planned,304
http://statistics.data.gov.uk/id/local-authority/12UE,Huntingdonshire District Council,24/07/2014,152012,INV1480277,5,108,Interaction Recruitment Plc,CR007892,One Leisure Huntingdon,Printing (External),220
http://statistics.data.gov.uk/id/local-authority/12UE,Huntingdonshire District Council,17/07/2014,152011,2051,5,50,Bonkers About Babies,CR416298,One Leisure Huntingdon,Advertising/Promoting Services,255
http://statistics.data.gov.uk/id/local-authority/12UE,Huntingdonshire District Council,24/07/2014,152010,65882,5,660,Marketing Force Limited,CR478596,One Leisure Huntingdon,Advertising/Promoting Services,255
http://statistics.data.gov.uk/id/local-authority/12UE,Huntingdonshire District Council,31/07/2014,152009,4799,5,400,Leisure-Net Solutions,CR411853,One Leisure Huntingdon,Advertising/Promoting Services,255
http://statistics.data.gov.uk/id/local-authority/12UE,Huntingdonshire District Council,31/07/2014,152002,1194,5,120,Think Local Magazine,CR422309,One Leisure Huntingdon,Advertising/Promoting Services,255
http://statistics.data.gov.uk/id/local-authority/12UE,Huntingdonshire District Council,31/07/2014,151995,47328,5,225.22,Snackline Direct Ltd,CR478090,One Leisure Huntingdon,Bar Provisions,558
http://statistics.data.gov.uk/id/local-authority/12UE,Huntingdonshire District Council,31/07/2014,151995,47328,5,73.02,Snackline Direct Ltd,CR478090,One Leisure Huntingdon,Confectionery,572
http://statistics.data.gov.uk/id/local-authority/12UE,Huntingdonshire District Council,24/07/2014,151993,2109966,5,426.1,Glaxosmithkline,CR010424,One Leisure Huntingdon,Vending Materials,560
http://statistics.data.gov.uk/id/local-authority/12UE,Huntingdonshire District Council,07/08/2014,151964,348633,5,142.32,Uk Point Of Sale Group Ltd,CR478991,One Leisure Huntingdon,Advertising/Promoting Services,255
http://statistics.data.gov.uk/id/local-authority/12UE,Huntingdonshire District Council,14/08/2014,151961,73436,5,"2,155.20",Gladstone Mrm,CR405717,One Leisure Huntingdon,Equipment Purchases,500
http://statistics.data.gov.uk/id/local-authority/12UE,Huntingdonshire District Council,10/07/2014,151733,509397,5,507.32,J V Trading,CR422174,One Leisure Huntingdon,Bar Provisions,558
http://statistics.data.gov.uk/id/local-authority/12UE,Huntingdonshire District Council,10/07/2014,151729,636276,5,264,Party Packs,CR025340,One Leisure Huntingdon,Materials,550
http://statistics.data.gov.uk/id/local-authority/12UE,Huntingdonshire District Council,31/07/2014,151695,9190,5,256.51,Roger Wilson Electronics,CR028041,One Leisure Huntingdon,Gen Building Mtce - Planned,304
http://statistics.data.gov.uk/id/local-authority/12UE,Huntingdonshire District Council,31/07/2014,151694,INV532055,5,"1,387.50",Ecocleen Services Limited,CR406985,One Leisure Huntingdon,Building Cleaning Internal,440
http://statistics.data.gov.uk/id/local-authority/12UE,Huntingdonshire District Council,10/07/2014,151689,1494886,1,"1,152.00",Espo,CR006566,One Leisure Huntingdon,Equipment Purchases,500
http://statistics.data.gov.uk/id/local-authority/12UE,Huntingdonshire District Council,10/07/2014,151685,381239505,5,974.16,Swalec,CR407130,One Leisure Huntingdon,Electricity,420
http://statistics.data.gov.uk/id/local-authority/12UE,Huntingdonshire District Council,31/07/2014,151681,742878104/0714,5,0.14,Virgin Media Business,CR033120,One Leisure Huntingdon,Telephone Charges,248
http://statistics.data.gov.uk/id/local-authority/12UE,Huntingdonshire District Council,17/07/2014,151666,65916,5,"4,408.26",Haven Power Ltd,CR455940,One Leisure Huntingdon,Electricity,420
http://statistics.data.gov.uk/id/local-authority/12UE,Huntingdonshire District Council,10/07/2014,151651,25451,5,64.8,Prime Option,CR455404,One Leisure Huntingdon,Direct Banking Service,768
http://statistics.data.gov.uk/id/local-authority/12UE,Huntingdonshire District Council,17/07/2014,151178,3007002231,5,74.4,Yell Limited,CR416111,One Leisure Huntingdon,Advertising/Promoting Services,255
http://statistics.data.gov.uk/id/local-authority/12UE,Huntingdonshire District Council,24/07/2014,151177,GD271,5,264,Greenday Energy Ltd,CR422398,One Leisure Huntingdon,Consultants,711
http://statistics.data.gov.uk/id/local-authority/12UE,Huntingdonshire District Council,03/07/2014,150840,46396,5,340.15,Snackline Direct Ltd,CR478090,One Leisure Huntingdon,Bar Provisions,558
http://statistics.data.gov.uk/id/local-authority/12UE,Huntingdonshire District Council,03/07/2014,150840,46396,5,159.35,Snackline Direct Ltd,CR478090,One Leisure Huntingdon,Confectionery,572
http://statistics.data.gov.uk/id/local-authority/12UE,Huntingdonshire District Council,03/07/2014,150834,14007296,5,731.32,Technogym Uk Ltd,CR033037,One Leisure Huntingdon,Equipment Maintenance,511
http://statistics.data.gov.uk/id/local-authority/12UE,Huntingdonshire District Council,10/07/2014,150828,1500018,1,314.68,Espo,CR006566,One Leisure Huntingdon,Stationery,225
http://statistics.data.gov.uk/id/local-authority/12UE,Huntingdonshire District Council,10/07/2014,150806,GD270,5,576,Greenday Energy Ltd,CR422398,One Leisure Huntingdon,Consultants,711
http://statistics.data.gov.uk/id/local-authority/12UE,Huntingdonshire District Council,17/07/2014,150794,1102105950,5,4.8,Orange Airtime,CR455799,One Leisure Huntingdon,Mobile Telephones & Radios,241
http://statistics.data.gov.uk/id/local-authority/12UE,Huntingdonshire District Council,10/07/2014,150356,GM9672,5,348,Garner Medical Ltd,CR003972,One Leisure Huntingdon,Equipment Maintenance,511
http://statistics.data.gov.uk/id/local-authority/12UE,Huntingdonshire District Council,03/07/2014,150355,9163,5,758.44,Roger Wilson Electronics,CR028041,One Leisure Huntingdon,Gen Building Mtce - Planned,304
http://statistics.data.gov.uk/id/local-authority/12UE,Huntingdonshire District Council,10/07/2014,150354,9168,5,"1,094.40",Roger Wilson Electronics,CR028041,One Leisure Huntingdon,Gen Building Mtce - Planned,304
http://statistics.data.gov.uk/id/local-authority/12UE,Huntingdonshire District Council,03/07/2014,150279,36610,5,284.5,Csl Group,CR406172,One Leisure Huntingdon,Vending Materials,560
http://statistics.data.gov.uk/id/local-authority/12UE,Huntingdonshire District Council,03/07/2014,150246,600006914,5,518.4,Edf Energy Customer Field Services,CR477611,One Leisure Huntingdon,Electricity,420
http://statistics.data.gov.uk/id/local-authority/12UE,Huntingdonshire District Council,03/07/2014,150074,742878104/0614,5,1.22,Virgin Media Business,CR033120,One Leisure Huntingdon,Telephone Charges,248
http://statistics.data.gov.uk/id/local-authority/12UE,Huntingdonshire District Council,03/07/2014,149608,1212357,5,561.6,Burgin Ltd,CR482438,One Leisure Huntingdon,Plant & Equipment Maintenance,380
http://statistics.data.gov.uk/id/local-authority/12UE,Huntingdonshire District Council,03/07/2014,149605,1212355,5,561.6,Burgin Ltd,CR482438,One Leisure Huntingdon,Plant & Equipment Maintenance,380
http://statistics.data.gov.uk/id/local-authority/12UE,Huntingdonshire District Council,18/09/2014,570055,201408,5,325,Splash Academy,CR403645,One Leisure Huntingdon,Training - Operational,131
http://statistics.data.gov.uk/id/local-authority/12UE,Huntingdonshire District Council,18/09/2014,155682,14009923,5,"3,618.00",Technogym Uk Ltd,CR033037,One Leisure Ramsey,Equipment Purchases,500
http://statistics.data.gov.uk/id/local-authority/12UE,Huntingdonshire District Council,18/09/2014,155617,341225796,5,"2,669.68",Swalec,CR407130,One Leisure Ramsey,Electricity,420
http://statistics.data.gov.uk/id/local-authority/12UE,Huntingdonshire District Council,25/09/2014,155461,11696,5,50.22,Jade Security Services Ltd,CR422256,One Leisure Ramsey,Cash Collection,702
http://statistics.data.gov.uk/id/local-authority/12UE,Huntingdonshire District Council,18/09/2014,155372,12489090790,5,974.99,E-On Energy,CR416430,One Leisure Ramsey,Gas,421
http://statistics.data.gov.uk/id/local-authority/12UE,Huntingdonshire District Council,11/09/2014,155193,1121278068,5,0.79,Orange Airtime,CR455799,One Leisure Ramsey,Mobile Telephones & Radios,241
http://statistics.data.gov.uk/id/local-authority/12UE,Huntingdonshire District Council,11/09/2014,154857,SIN472141,5,621.18,Corporate Trends,CR415966,One Leisure Ramsey,Protective Clothing & Uniforms,163
http://statistics.data.gov.uk/id/local-authority/12UE,Huntingdonshire District Council,04/09/2014,154646,INV532767,5,917.81,Ecocleen Services Limited,CR406985,One Leisure Ramsey,Building Cleaning Internal,440
http://statistics.data.gov.uk/id/local-authority/12UE,Huntingdonshire District Council,04/09/2014,154645,40692,5,324,Technical Surfaces Ltd,CR031941,One Leisure Ramsey,Grounds Mtce Contractors,351
http://statistics.data.gov.uk/id/local-authority/12UE,Huntingdonshire District Council,04/09/2014,154642,101029,5,258.01,Menerga Technical Services Ltd,CR033494,One Leisure Ramsey,Plant & Equipment Maintenance,380
http://statistics.data.gov.uk/id/local-authority/12UE,Huntingdonshire District Council,04/09/2014,154393,9218,5,"1,072.13",Roger Wilson Electronics,CR028041,One Leisure Ramsey,Gen Building Mtce - Planned,304
http://statistics.data.gov.uk/id/local-authority/12UE,Huntingdonshire District Council,11/09/2014,154053,1436,5,145.86,South East Sport Services,CR479901,One Leisure Ramsey,Equipment Maintenance,511
http://statistics.data.gov.uk/id/local-authority/12UE,Huntingdonshire District Council,28/08/2014,153778,73557,5,68.6,Gladstone Mrm,CR405717,One Leisure Ramsey,Training - Operational,131
http://statistics.data.gov.uk/id/local-authority/12UE,Huntingdonshire District Council,25/09/2014,153777,SUP0002750,5,"7,683.00",Gladstone Mrm,CR405717,One Leisure Ramsey,Software,206
